Workbook

Sheet OCTUBRE
A1: MINISTERIO DE COMUNICACIONES, INFRAESTRUCTURA Y VIVIENDA
A3: SEGUIMIENTO DE EJECUCIÓN FÍSICA Y FINANCIERA ENERO A OCTUBRE 2024
U6: FÍSICA | AS6: FINANCIERO
K7: FÍSICO | Q7: FINANCIERO | U7: ENERO | W7: FEBRERO | Y7: MARZO | AA7: ABRIL | AC7: MAYO | AE7: JUNIO | AG7: JULIO | AI7: AGOSTO | AK7: SEPTIEMBRE | AM7: OCTUBRE | AO7: NOVIEMBRE | AQ7: DICIEMBRE | AS7: ENERO | AV7: FEBRERO | AY7: MARZO | BB7: ABRIL | BE7: MAYO | BH7: JUNIO | BK7: JULIO | BN7: AGOSTO | BQ7: SEPTIEMBRE | BU7: OCTUBRE
A8: UNIDAD | B8: PG | C8: SP | D8: PY | E8: ACT | F8: OB | G8: PRODUCTO | I8: SUBPRODUCTO | K8: UNIDAD DE MEDIDA | L8: INICIAL | M8: MODIFICADO | N8: VIGENTE | O8: EJECUTADO ACUMULADO | P8: % DE EJECUCIÓN | Q8: INICIAL | R8: VIGENTE | S8: EJECUTADO ACUMULADO | T8: % DE EJECUCIÓN | U8: MOD | V8: EJEC | W8: MOD | X8: EJEC | Y8: MOD | Z8: EJEC | AA8: MOD | AB8: EJEC | AC8: MOD | AD8: EJEC | AE8: MOD | AF8: EJEC | AG8: MOD | AH8: EJEC | AI8: MOD | AJ8: EJEC | AK8: MOD | AL8: EJEC | AM8: MOD | AN8: Ejecutado | AO8: MOD | AP8: EJEC | AQ8: MOD | AR8: EJEC | AS8: MOD | AT8: EJEC | AU8: NOM | AV8: MOD | AW8: EJEC | AX8: NOM | AY8: MOD | AZ8: EJEC | BA8: NOM | BB8: MOD | BC8: EJEC | BD8: NOM | BE8: MOD | BF8: EJEC | BG8: NOMINA | BH8: MOD | BI8: EJEC | BJ8: NOMINA | BK8: MOD | BL8: EJEC | BM8: NOMINA | BN8: MOD | BO8: EJEC | BP8: NOMINA | BQ8: MOD | BR8: EJEC | BS8: NOMINA | BT8: MOD | BU8: Ejecutado
A9: 201 | B9: 01 | C9: 00 | D9: 000 | E9: 003 | F9: 000 | G9: 000-001 | H9: Servicios Financieros | K9: Evento | L9: 31 | M9: 0 | N9: 31 | O9: 31 | P9: =+O9/N9 -> 1 | Q9: 15083171 | R9: 15581273 | S9: 7109206.22 | T9: =+S9/R9 -> 0.4562660715 | U9: 0 | V9: 29 | W9: 0 | X9: 0 | Y9: 0 | Z9: 0 | AA9: 0 | AB9: 0 | AC9: 0 | AD9: 0 | AE9: 0 | AF9: 0 | AG9: 0 | AH9: 1 | AI9: 0 | AJ9: 0 | AK9: 0 | AL9: 1 | AM9: 0 | AN9: 0 | AO9: 0 | AP9: 0 | AQ9: 0 | AR9: 0 | AS9: 70000 | AT9: 0 | AU9: 326042.46 | AV9: 0 | AW9: 310365.39 | AX9: 298215.79 | AY9: 0 | AZ9: 1454795.05 | BA9: 307428.84 | BB9: 0 | BC9: 166574.08 | BD9: 351190.67 | BE9: 0 | BF9: 14567 | BG9: 347074 | BH9: 0 | BI9: 689837.99 | BJ9: 329074 | BK9: 130562 | BL9: 665051.59 | BM9: 327584.28 | BN9: -1165228 | BO9: 21782.06 | BP9: 368041.74 | BQ9: 1462768 | BR9: 242223.2 | BS9: 428477.56 | BT9: 0 | BU9: 460880.52
A10: 201 | B10: 01 | C10: 00 | D10: 000 | E10: 003 | F10: 000 | I10: 000-001-0001 | J10: Servicios Financieros | K10: Evento | L10: 31 | M10: 0 | N10: 31 | O10: 31 | P10: =+O10/N10 -> 1 | Q10: 15083171 | R10: 15581273 | S10: 7109206.22 | T10: =+S10/R10 -> 0.4562660715 | U10: 0 | V10: 29 | W10: 0 | X10: 0 | Y10: 0 | Z10: 0 | AA10: 0 | AB10: 0 | AC10: 0 | AD10: 0 | AE10: 0 | AF10: 0 | AG10: 0 | AH10: 1 | AI10: 0 | AJ10: 0 | AK10: 0 | AL10: 1 | AM10: 0 | AN10: 0 | AS10: 70000 | AT10: 0 | AU10: 326042.46 | AV10: 0 | AW10: 310365.39 | AX10: 298215.79 | AY10: 0 | AZ10: 1454795.05 | BA10: 307428.84 | BB10: 0 | BC10: 166574.08 | BD10: 351190.67 | BE10: 0 | BF10: 14567 | BG10: 347074 | BH10: 0 | BI10: 689837.99 | BJ10: 329074 | BK10: 130562 | BL10: 665051.59 | BM10: 327584.28 | BN10: -1165228 | BO10: 21782.06 | BP10: 368041.74 | BQ10: 1462768 | BR10: 242223.2 | BS10: 428477.56 | BT10: 0 | BU10: 460880.52
A11: 201 | B11: 01 | C11: 00 | D11: 000 | E11: 002 | F11: 000 | G11: 000-003 | H11: Servicios Administrativos | K11: Evento | L11: 319 | M11: 0 | N11: 319 | O11: 170 | P11: 0.5329153605 | Q11: 15893462 | R11: 20358495 | S11: 11196285.69 | T11: 0.5499564526 | U11: 0 | V11: 61 | W11: 0 | X11: 5 | Y11: 0 | Z11: 0 | AA11: 0 | AB11: 0 | AC11: 0 | AD11: 0 | AE11: 0 | AF11: 0 | AG11: 0 | AH11: 41 | AI11: 0 | AJ11: 13 | AK11: 0 | AL11: 50 | AM11: 0 | AN11: 0 | AO11: 0 | AP11: 0 | AQ11: 0 | AR11: 0 | AS11: -32100 | AT11: 281464.44 | AU11: 587135.55 | AV11: 0 | AW11: 182667.58 | AX11: 568718.8 | AY11: 0 | AZ11: 138098.83 | BA11: 649846.8 | BB11: 0 | BC11: 359685.12 | BD11: 667915.18 | BE11: 0 | BF11: 596398.17 | BG11: 679391.87 | BH11: 0 | BI11: 568902.86 | BJ11: 672559.86 | BK11: 586459 | BL11: 469876.28 | BM11: 851295.49 | BN11: 8866 | BO11: 598772.06 | BP11: 699035.93 | BQ11: 3875000 | BR11: 375090.29 | BS11: 746133.44 | BT11: 26808 | BU11: 1503297.14
A12: 201 | B12: 01 | C12: 00 | D12: 000 | E12: 002 | F12: 000 | I12: 000-003-0001 | J12: Servicios Administrativos | K12: Evento | L12: 319 | M12: 0 | N12: 319 | O12: 170 | P12: 0.5329153605 | Q12: 15893462 | R12: 20358495 | S12: 11196285.69 | T12: 0.5499564526 | U12: 0 | V12: 61 | W12: 0 | X12: 5 | Y12: 0 | Z12: 0 | AA12: 0 | AB12: 0 | AC12: 0 | AD12: 0 | AE12: 0 | AF12: 0 | AG12: 0 | AH12: 41 | AI12: 0 | AJ12: 13 | AK12: 0 | AL12: 50 | AM12: 0 | AN12: 0 | AS12: -32100 | AT12: 281464.44 | AU12: 587135.55 | AV12: 0 | AW12: 182667.58 | AX12: 568718.8 | AY12: 0 | AZ12: 138098.83 | BA12: 649846.8 | BB12: 0 | BC12: 359685.12 | BD12: 667915.18 | BE12: 0 | BF12: 596398.17 | BG12: 679391.87 | BH12: 0 | BI12: 568902.86 | BJ12: 672559.86 | BK12: 586459 | BL12: 469876.28 | BM12: 851295.49 | BN12: 8866 | BO12: 598772.06 | BP12: 699035.93 | BQ12: 3875000 | BR12: 375090.29 | BS12: 746133.44 | BT12: 26808 | BU12: 1503297.14
A13: 201 | B13: 99 | C13: 00 | D13: 000 | E13: 001 | F13: 000 | G13: 000-004 | H13: Personas Jurídicas Beneficiadas Con Aportes Y/O Cuotas Para Transporte | K13: Aporte | L13: 13 | M13: 0 | N13: 13 | O13: 10 | P13: 0.7692307692 | Q13: 5874520 | R13: 5874520 | S13: 4741773 | T13: 0.8071762459 | U13: 0 | V13: 1 | W13: 0 | X13: 2 | Y13: 0 | Z13: 0 | AA13: 0 | AB13: 0 | AC13: 0 | AD13: 0 | AE13: 0 | AF13: 0 | AG13: 0 | AH13: 4 | AI13: 0 | AJ13: 1 | AK13: 0 | AL13: 2 | AM13: 0 | AN13: 0 | AO13: 0 | AP13: 0 | AQ13: 0 | AR13: 0 | AS13: 0 | AT13: 427043 | AU13: 0 | AV13: 0 | AW13: 427043 | AY13: 0 | AZ13: 524545 | BB13: 0 | BC13: 507834 | BD13: 0 | BE13: 0 | BF13: 392582 | BH13: 0 | BI13: 582211 | BK13: 0 | BL13: 489312 | BN13: 0 | BO13: 815774 | BQ13: 0 | BR13: 333248 | BS13: 0 | BT13: 0 | BU13: 242181
A14: 201 | B14: 99 | C14: 00 | D14: 000 | E14: 001 | F14: 000 | I14: 000-004-0001 | J14: Personas Jurídicas Beneficiadas Con Aportes Y/O Cuotas Para Transporte | K14: Aporte | L14: 13 | M14: 0 | N14: 13 | O14: 10 | P14: 0.7692307692 | Q14: 5874520 | R14: 5874520 | S14: 4741773 | T14: 0.8071762459 | U14: 0 | V14: 1 | W14: 0 | X14: 2 | Y14: 0 | Z14: 0 | AA14: 0 | AB14: 0 | AC14: 0 | AD14: 0 | AE14: 0 | AF14: 0 | AG14: 0 | AH14: 4 | AI14: 0 | AJ14: 1 | AK14: 0 | AL14: 2 | AM14: 0 | AN14: 0 | AS14: 0 | AT14: 427043 | AV14: 0 | AW14: 427043 | AY14: 0 | AZ14: 524545 | BB14: 0 | BC14: 507834 | BE14: 0 | BF14: 392582 | BH14: 0 | BI14: 582211 | BK14: 0 | BL14: 489312 | BN14: 0 | BO14: 815774 | BQ14: 0 | BR14: 333248 | BT14: 0 | BU14: 242181
A15: 201 | B15: 99 | C15: 00 | D15: 000 | E15: 002 | F15: 000 | G15: 000-005 | H15: Personas Jurídicas Beneficiadas Con Aportes Y/O Cuotas Para Comunicaciones | K15: Aporte | L15: 1 | M15: 0 | N15: 1 | O15: 1 | P15: 1 | Q15: 55159 | R15: 59159 | S15: 58433.57 | T15: 0.9877376223 | U15: 0 | V15: 0 | W15: 0 | X15: 0 | Y15: 0 | Z15: 0 | AA15: 0 | AB15: 0 | AC15: 0 | AD15: 0 | AE15: 0 | AF15: 0 | AG15: 0 | AH15: 0 | AI15: 0 | AJ15: 0 | AK15: 0 | AL15: 1 | AM15: 0 | AN15: 0 | AO15: 0 | AP15: 0 | AQ15: 0 | AR15: 0 | AS15: 0 | AT15: 0 | AU15: 0 | AV15: 0 | AW15: 0 | AX15: 0 | AY15: 0 | AZ15: 0 | BA15: 0 | BB15: 0 | BC15: 0 | BD15: 0 | BE15: 4000 | BF15: 0 | BH15: 0 | BI15: 59102.32 | BK15: 0 | BL15: 0 | BN15: 0 | BO15: 0 | BQ15: 0 | BR15: 0 | BS15: 0 | BT15: 0 | BU15: -668.75
A16: 201 | B16: 99 | C16: 00 | D16: 000 | E16: 002 | F16: 000 | I16: 000-005-0001 | J16: Personas Jurídicas Beneficiadas Con Aportes Y/O Cuotas Para Comunicaciones | K16: Aporte | L16: 1 | M16: 0 | N16: 1 | O16: 1 | P16: 1 | Q16: 55159 | R16: 59159 | S16: 58433.57 | T16: 0.9877376223 | U16: 0 | V16: 0 | W16: 0 | X16: 0 | Y16: 0 | Z16: 0 | AA16: 0 | AB16: 0 | AC16: 0 | AD16: 0 | AE16: 0 | AF16: 0 | AG16: 0 | AH16: 0 | AI16: 0 | AJ16: 0 | AK16: 0 | AL16: 1 | AM16: 0 | AN16: 0 | AS16: 0 | AT16: 0 | AV16: 0 | AW16: 0 | AY16: 0 | AZ16: 0 | BB16: 0 | BC16: 0 | BE16: 4000 | BF16: 0 | BH16: 0 | BI16: 59102.32 | BK16: 0 | BL16: 0 | BN16: 0 | BO16: 0 | BQ16: 0 | BR16: 0 | BT16: 0 | BU16: -668.75
A17: 201 | B17: 99 | C17: 00 | D17: 000 | E17: 003 | F17: 000 | G17: 000-006 | H17: Personas Jurídicas Beneficiadas Con Aportes Y/O Cuotas Para Control Del Medio Ambiente | K17: Aporte | L17: 1 | M17: 0 | N17: 1 | O17: 1 | P17: 1 | Q17: 400000 | R17: 396000 | S17: 390612 | T17: 0.9863939394 | U17: 0 | V17: 0 | W17: 0 | X17: 0 | Y17: 0 | Z17: 0 | AA17: 0 | AB17: 0 | AC17: 0 | AD17: 0 | AE17: 0 | AF17: 0 | AG17: 0 | AH17: 0 | AI17: 0 | AJ17: 0 | AK17: 0 | AL17: 1 | AM17: 0 | AN17: 0 | AO17: 0 | AP17: 0 | AQ17: 0 | AR17: 0 | AS17: 0 | AT17: 0 | AU17: 0 | AV17: 0 | AW17: 390612 | AX17: 0 | AY17: 0 | AZ17: 0 | BA17: 0 | BB17: 0 | BC17: 0 | BD17: 0 | BE17: -4000 | BF17: 0 | BH17: 0 | BI17: 0 | BK17: 0 | BL17: 0 | BN17: 0 | BO17: 0 | BQ17: 0 | BR17: 0 | BS17: 0 | BT17: 0 | BU17: 0
A18: 201 | B18: 99 | C18: 00 | D18: 000 | E18: 003 | F18: 000 | I18: 000-006-0001 | J18: Personas Jurídicas Beneficiadas Con Aportes Y/O Cuotas Para Control Del Medio Ambiente | K18: Aporte | L18: 1 | M18: 0 | N18: 1 | O18: 1 | P18: 1 | Q18: 400000 | R18: 396000 | S18: 390612 | T18: 0.9863939394 | U18: 0 | V18: 0 | W18: 0 | X18: 0 | Y18: 0 | Z18: 0 | AA18: 0 | AB18: 0 | AC18: 0 | AD18: 0 | AE18: 0 | AF18: 0 | AG18: 0 | AH18: 0 | AI18: 0 | AJ18: 0 | AK18: 0 | AL18: 1 | AM18: 0 | AN18: 0 | AS18: 0 | AT18: 0 | AV18: 0 | AW18: 390612 | AY18: 0 | AZ18: 0 | BB18: 0 | BC18: 0 | BE18: -4000 | BF18: 0 | BH18: 0 | BI18: 0 | BK18: 0 | BL18: 0 | BN18: 0 | BO18: 0 | BQ18: 0 | BR18: 0 | BT18: 0 | BU18: 0
A19: 201 | B19: 01 | C19: 00 | D19: 000 | E19: 001 | F19: 000 | G19: 000-009 | H19: Dirección Superior | K19: Evento | L19: 216 | M19: 0 | N19: 216 | O19: 141 | P19: 0.6527777778 | Q19: 25693688 | R19: 30079364 | S19: 21529857.27 | T19: 0.7157683676 | U19: 0 | V19: 118 | W19: 0 | X19: 0 | Y19: 0 | Z19: 0 | AA19: 0 | AB19: 0 | AC19: 0 | AD19: 0 | AE19: 0 | AF19: 0 | AG19: 0 | AH19: 0 | AI19: 0 | AJ19: 0 | AK19: 0 | AL19: 23 | AM19: 0 | AN19: 0 | AO19: 0 | AP19: 0 | AQ19: 0 | AR19: 0 | AS19: -37900 | AT19: 0 | AU19: 2015828.02 | AV19: 0 | AW19: 0 | AX19: 1995750.32 | AY19: 0 | AZ19: 1559.8 | BA19: 1911508.41 | BB19: 0 | BC19: 4584.75 | BD19: 2184372.87 | BE19: 0 | BF19: 90963.99 | BG19: 2127501.16 | BH19: 0 | BI19: 51241.95 | BJ19: 2217162.45 | BK19: 3194022 | BL19: 62905.65 | BM19: 2295781.01 | BN19: 1156362 | BO19: 5060 | BP19: 2148068.67 | BQ19: 100000 | BR19: 77272 | BS19: 2082386.56 | BT19: -26808 | BU19: 2257909.66
A20: 201 | B20: 01 | C20: 00 | D20: 000 | E20: 001 | F20: 000 | I20: 000-009-0001 | J20: Dirección Superior | K20: Evento | L20: 216 | M20: 0 | N20: 216 | O20: 141 | P20: 0.6527777778 | Q20: 25693688 | R20: 30079364 | S20: 21529857.27 | T20: 0.7157683676 | U20: 0 | V20: 118 | W20: 0 | X20: 0 | Y20: 0 | Z20: 0 | AA20: 0 | AB20: 0 | AC20: 0 | AD20: 0 | AE20: 0 | AF20: 0 | AG20: 0 | AH20: 0 | AI20: 0 | AJ20: 0 | AK20: 0 | AL20: 23 | AM20: 0 | AN20: 0 | AS20: -37900 | AT20: 0 | AU20: 2015828.02 | AV20: 0 | AW20: 0 | AX20: 1995750.32 | AY20: 0 | AZ20: 1559.8 | BA20: 1911508.41 | BB20: 0 | BC20: 4584.75 | BD20: 2184372.87 | BE20: 0 | BF20: 90963.99 | BG20: 2127501.16 | BH20: 0 | BI20: 51241.95 | BJ20: 2217162.45 | BK20: 3194022 | BL20: 62905.65 | BM20: 2295781.01 | BN20: 1156362 | BO20: 5060 | BP20: 2148068.67 | BQ20: 100000 | BR20: 77272 | BS20: 2082386.56 | BT20: -26808 | BU20: 2257909.66
A21: 202 | B21: 11 | C21: 00 | D21: 000 | E21: 001 | F21: 000 | G21: 017-003 | H21: Dirección Y Coordinación | K21: Evento | L21: 472 | M21: 1 | N21: 473 | O21: 297 | P21: 0.6279069767 | Q21: 89558631 | R21: 383477604 | S21: 340168875.8 | T21: 0.8870632138 | U21: 0 | V21: 0 | W21: 0 | X21: 0 | Y21: 0 | Z21: 0 | AA21: 0 | AB21: 0 | AC21: 1 | AD21: 280 | AE21: 0 | AF21: 5 | AG21: 0 | AH21: 5 | AI21: 0 | AJ21: 5 | AK21: 0 | AL21: 1 | AM21: 0 | AN21: 1 | AO21: 0 | AP21: 0 | AQ21: 0 | AR21: 0 | AS21: 0 | AT21: 24488 | AU21: 3145568.69 | AV21: 0 | AW21: 59413.27 | AX21: 3949344.08 | AY21: 0 | AZ21: 2328439.64 | BA21: 3494686.58 | BB21: 0 | BC21: 212777.65 | BD21: 3372825.9 | BE21: 0 | BF21: 3499677.75 | BG21: 3317984.1 | BH21: 795000 | BI21: 3142299.49 | BJ21: 3735911.33 | BK21: 0 | BL21: 669053.7 | BM21: 4284611.79 | BN21: 9204934 | BO21: 1384040.43 | BP21: 3600378.72 | BQ21: 283878351 | BR21: 7617850.63 | BS21: 3501676.87 | BT21: 40688 | BU21: 288827847.2
A22: 202 | B22: 11 | C22: 00 | D22: 000 | E22: 001 | F22: 000 | I22: 017-003-0001 | J22: Dirección Y Coordinación | K22: Evento | L22: 472 | M22: 1 | N22: 473 | O22: 297 | P22: 0.6279069767 | Q22: 89558631 | R22: 383477604 | S22: 340168875.8 | T22: 0.8870632138 | U22: 0 | V22: 0 | W22: 0 | X22: 0 | Y22: 0 | Z22: 0 | AA22: 0 | AB22: 0 | AC22: 1 | AD22: 280 | AE22: 0 | AF22: 5 | AG22: 0 | AH22: 5 | AI22: 0 | AJ22: 5 | AK22: 0 | AL22: 1 | AM22: 0 | AN22: 1 | AS22: 0 | AT22: 24488 | AU22: 3145568.69 | AV22: 0 | AW22: 59413.27 | AX22: 3949344.08 | AY22: 0 | AZ22: 2328439.64 | BA22: 3494686.58 | BB22: 0 | BC22: 212777.65 | BD22: 3372825.9 | BE22: 0 | BF22: 3499677.75 | BG22: 3317984.1 | BH22: 795000 | BI22: 3142299.49 | BJ22: 3735911.33 | BK22: 0 | BL22: 669053.7 | BM22: 4284611.79 | BN22: 9204934 | BO22: 1384040.43 | BP22: 3600378.72 | BQ22: 283878351 | BR22: 7617850.63 | BS22: 3501676.87 | BT22: 40688 | BU22: 288827847.2
A23: 202 | B23: 11 | C23: 00 | D23: 000 | E23: 002 | F23: 000 | G23: 017-005 | H23: Red Vial Con Servicios De Mantenimiento | K23: Kilómetro | L23: 2657 | M23: 1 | N23: 2658 | O23: 755 | P23: 0.2840481565 | Q23: 201689369 | R23: 299148747 | S23: 107690819.3 | T23: 0.3599908755 | U23: 0 | V23: 0 | W23: 0 | X23: 0 | Y23: 0 | Z23: 0 | AA23: 0 | AB23: 0 | AC23: 0 | AD23: 188 | AE23: 0 | AF23: 213 | AG23: 0 | AH23: 233 | AI23: 0 | AJ23: 28 | AK23: 1 | AL23: 41 | AM23: 0 | AN23: 52 | AO23: 0 | AP23: 0 | AQ23: 0 | AR23: 0 | AS23: 0 | AT23: 4288.57 | AU23: 7506897.83 | AV23: 0 | AW23: 30557.87 | AX23: 6646781.61 | AY23: 0 | AZ23: -30200 | BA23: 6784456.11 | BB23: 0 | BC23: 985130.62 | BD23: 6631279.1 | BE23: 0 | BF23: 5773234.02 | BG23: 6704247.32 | BH23: -795000 | BI23: 5289541.5 | BJ23: 6545418.96 | BK23: -2500000 | BL23: -262294.05 | BM23: 10363971.68 | BN23: -9204934 | BO23: 6958538.72 | BP23: 6665583.75 | BQ23: 110000000 | BR23: 7205394.77 | BS23: 6501347.3 | BT23: -40688 | BU23: 17386643.66
A24: 202 | B24: 11 | C24: 00 | D24: 000 | E24: 002 | F24: 000 | I24: 017-005-0001 | J24: Red Vial Con Servicios De Mantenimiento | K24: Kilómetro | L24: 2657 | M24: 1 | N24: 2658 | O24: 755 | P24: 0.2840481565 | Q24: 201689369 | R24: 299148747 | S24: 107690819.3 | T24: 0.3599908755 | U24: 0 | V24: 0 | W24: 0 | X24: 0 | Y24: 0 | Z24: 0 | AA24: 0 | AB24: 0 | AC24: 0 | AD24: 188 | AE24: 0 | AF24: 213 | AG24: 0 | AH24: 233 | AI24: 0 | AJ24: 28 | AK24: 1 | AL24: 41 | AM24: 0 | AN24: 52 | AS24: 0 | AT24: 4288.57 | AU24: 7506897.83 | AV24: 0 | AW24: 30557.87 | AX24: 6646781.61 | AY24: 0 | AZ24: -30200 | BA24: 6784456.11 | BB24: 0 | BC24: 985130.62 | BD24: 6631279.1 | BE24: 0 | BF24: 5773234.02 | BG24: 6704247.32 | BH24: -795000 | BI24: 5289541.5 | BJ24: 6545418.96 | BK24: -2500000 | BL24: -262294.05 | BM24: 10363971.68 | BN24: -9204934 | BO24: 6958538.72 | BP24: 6665583.75 | BQ24: 110000000 | BR24: 7205394.77 | BS24: 6501347.3 | BT24: -40688 | BU24: 17386643.66
A25: 202 | B25: 11 | C25: 03 | D25: 000 | E25: 001 | F25: 000 | G25: 017-008 | H25: Red Vial De Rutas Centroamericanas Con Servicios De Mantenimiento | K25: Kilómetro | L25: 82 | M25: -48 | N25: 34 | O25: 0 | P25: 0 | Q25: 311854271 | R25: 311854271 | S25: 233625894.3 | T25: 0.7491508567 | U25: 0 | V25: 0 | W25: 0 | X25: 0 | Y25: 0 | Z25: 0 | AA25: 0 | AB25: 0 | AC25: 0 | AD25: 0 | AE25: 0 | AF25: 0 | AG25: 0 | AH25: 0 | AI25: 0 | AJ25: 0 | AK25: 0 | AL25: 0 | AM25: -48 | AN25: 0 | AO25: 0 | AP25: 0 | AQ25: 0 | AR25: 0 | AS25: 0 | AT25: 215488183.1 | AV25: 0 | AW25: 0 | AX25: 0 | AY25: 0 | AZ25: 0 | BA25: 0 | BB25: 0 | BC25: 0 | BD25: 0 | BE25: 0 | BF25: 0 | BH25: 0 | BI25: 0 | BK25: 0 | BL25: 0 | BN25: 0 | BO25: 0 | BQ25: 0 | BR25: 5107224.88 | BS25: 0 | BT25: 0 | BU25: 13030486.34
A26: 202 | B26: 11 | C26: 03 | D26: 000 | E26: 001 | F26: 000 | I26: 017-008-0001 | J26: Red Vial Con Servicios De Rehabilitación | K26: Kilómetro | L26: 82 | M26: -48 | N26: 34 | O26: 0 | P26: 0 | Q26: 311854271 | R26: 311854271 | S26: 233625894.3 | T26: 0.7491508567 | U26: 0 | V26: 0 | W26: 0 | X26: 0 | Y26: 0 | Z26: 0 | AA26: 0 | AB26: 0 | AC26: 0 | AD26: 0 | AE26: 0 | AF26: 0 | AG26: 0 | AH26: 0 | AI26: 0 | AJ26: 0 | AK26: 0 | AL26: 0 | AM26: -48 | AN26: 0 | AS26: 0 | AT26: 215488183.1 | AV26: 0 | AW26: 0 | AY26: 0 | AZ26: 0 | BB26: 0 | BC26: 0 | BE26: 0 | BF26: 0 | BH26: 0 | BI26: 0 | BK26: 0 | BL26: 0 | BN26: 0 | BO26: 0 | BQ26: 0 | BR26: 5107224.88 | BT26: 0 | BU26: 13030486.34
A27: 202 | B27: 94 | C27: 14 | D27: 000 | E27: 001 | F27: 000 | G27: 000-049 | H27: Intervenciones Realizadas Para La Atención De La Emergencia Por Época Lluviosa, Temporada Ciclónica Y Sistema De Baja Presión | K27: Documento | L27: 0 | M27: 18 | N27: 18 | O27: 0 | P27: 0 | Q27: 0 | R27: 29937211 | S27: 29495532.24 | T27: 0.9852464961 | U27: 10 | V27: 0 | W27: 0 | X27: 0 | Y27: 10 | Z27: 0 | AA27: -10 | AB27: 0 | AC27: 0 | AD27: 0 | AE27: 0 | AF27: 0 | AG27: -6 | AH27: 0 | AI27: 0 | AJ27: 0 | AK27: 0 | AL27: 0 | AM27: 14 | AN27: 0 | AO27: 0 | AP27: 0 | AQ27: 0 | AR27: 0 | AS27: 48648998 | AT27: 0 | AV27: 0 | AW27: 0 | AX27: 0 | AY27: 0 | AZ27: 0 | BA27: 0 | BB27: 0 | BC27: 0 | BD27: 0 | BE27: 0 | BF27: 0 | BH27: 0 | BI27: 29495532.24 | BK27: -18711787 | BL27: 0 | BN27: 0 | BO27: 0 | BQ27: 0 | BR27: 0 | BS27: 0 | BT27: 0 | BU27: 0
A28: 202 | B28: 94 | C28: 14 | D28: 000 | E28: 001 | F28: 000 | I28: 000-049-0001 | J28: Intervenciones Realizadas Para La Atención De La Emergencia Por Época Lluviosa, Temporada Ciclónica Y Sistema De Baja Presión | K28: Documento | L28: 0 | M28: 18 | N28: 18 | O28: 0 | P28: 0 | Q28: 0 | R28: 29937211 | S28: 29495532.24 | T28: 0.9852464961 | U28: 10 | V28: 0 | W28: 0 | X28: 0 | Y28: 10 | Z28: 0 | AA28: -10 | AB28: 0 | AC28: 0 | AD28: 0 | AE28: 0 | AF28: 0 | AG28: -6 | AH28: 0 | AI28: 0 | AJ28: 0 | AK28: 0 | AL28: 0 | AM28: 14 | AN28: 0 | AS28: 48648998 | AT28: 0 | AV28: 0 | AW28: 0 | AY28: 0 | AZ28: 0 | BB28: 0 | BC28: 0 | BE28: 0 | BF28: 0 | BH28: 0 | BI28: 29495532.24 | BK28: -18711787 | BL28: 0 | BN28: 0 | BO28: 0 | BQ28: 0 | BR28: 0 | BT28: 0 | BU28: 0
A29: 202 | B29: 94 | C29: 15 | D29: 000 | E29: 001 | F29: 000 | G29: 000-050 | H29: Intervenciones Realizadas Para La Atención De La Emergencia Provocada Por Los Efectos De La Época Lluviosa Y El Ciclón Tropical Julia | K29: Documento | L29: 0 | M29: 18 | N29: 18 | O29: 0 | P29: 0 | Q29: 0 | R29: 20062789 | S29: 6563243.01 | T29: 0.3271351261 | U29: 13 | V29: 0 | W29: 0 | X29: 0 | Y29: 13 | Z29: 0 | AA29: -13 | AB29: 0 | AC29: 0 | AD29: 0 | AE29: 0 | AF29: 0 | AG29: -1 | AH29: 0 | AI29: 0 | AJ29: 0 | AK29: 0 | AL29: 0 | AM29: 6 | AN29: 0 | AO29: 0 | AP29: 0 | AQ29: 0 | AR29: 0 | AS29: 46351002 | AT29: 0 | AV29: 0 | AW29: 0 | AX29: 0 | AY29: 0 | AZ29: 0 | BA29: 0 | BB29: 0 | BC29: 0 | BD29: 0 | BE29: 0 | BF29: 0 | BH29: 0 | BI29: 0 | BK29: -26288213 | BL29: 0 | BN29: 0 | BO29: 0 | BQ29: 0 | BR29: 6563243.01 | BS29: 0 | BT29: 0 | BU29: 0
A30: 202 | B30: 94 | C30: 15 | D30: 000 | E30: 001 | F30: 000 | I30: 000-050-0001 | J30: Intervenciones Realizadas Para La Atención De La Emergencia Provocada Por Los Efectos De La Época Lluviosa Y El Ciclón Tropical Julia | K30: Documento | L30: 0 | M30: 18 | N30: 18 | O30: 0 | P30: 0 | Q30: 0 | R30: 20062789 | S30: 6563243.01 | T30: 0.3271351261 | U30: 13 | V30: 0 | W30: 0 | X30: 0 | Y30: 13 | Z30: 0 | AA30: -13 | AB30: 0 | AC30: 0 | AD30: 0 | AE30: 0 | AF30: 0 | AG30: -1 | AH30: 0 | AI30: 0 | AJ30: 0 | AK30: 0 | AL30: 0 | AM30: 6 | AN30: 0 | AS30: 46351002 | AT30: 0 | AV30: 0 | AW30: 0 | AY30: 0 | AZ30: 0 | BB30: 0 | BC30: 0 | BE30: 0 | BF30: 0 | BH30: 0 | BI30: 0 | BK30: -26288213 | BL30: 0 | BN30: 0 | BO30: 0 | BQ30: 0 | BR30: 6563243.01 | BT30: 0 | BU30: 0
A31: 202 | B31: 94 | C31: 16 | D31: 000 | E31: 001 | F31: 000 | G31: 000-053 | H31: Intervenciones Realizadas Para La Atención De Daños Y Efectos Causados Por El Alto Índice De Lluvias Y Saturación Actual De Los Suelos En El Territorio Nacional (Dg 2-2024) | K31: Documento | L31: 0 | M31: 1 | N31: 1 | O31: 0 | P31: 0 | Q31: 0 | R31: 100000000 | S31: 0 | T31: 0 | U31: 0 | V31: 0 | W31: 0 | X31: 0 | Y31: 0 | Z31: 0 | AA31: 0 | AB31: 0 | AC31: 0 | AD31: 0 | AE31: 0 | AF31: 0 | AG31: 3 | AH31: 0 | AI31: 0 | AJ31: 0 | AK31: 0 | AL31: 0 | AM31: -2 | AN31: 0 | AO31: 0 | AP31: 0 | AQ31: 0 | AR31: 0 | AS31: 0 | AT31: 0 | AV31: 0 | AW31: 0 | AX31: 0 | AY31: 0 | AZ31: 0 | BA31: 0 | BB31: 0 | BC31: 0 | BD31: 0 | BE31: 0 | BF31: 0 | BH31: 0 | BI31: 0 | BK31: 100000000 | BL31: 0 | BM31: 0 | BN31: 0 | BO31: 0 | BP31: 0 | BQ31: 0 | BR31: 0 | BS31: 0 | BT31: 0 | BU31: 0
A32: 202 | B32: 94 | C32: 16 | D32: 000 | E32: 001 | F32: 000 | I32: 000-053-0001 | J32: Intervenciones Realizadas Para La Atención De Daños Y Efectos Causados Por El Alto Índice De Lluvias Y Saturación Actual De Los Suelos En El Territorio Nacional (Dg 2-2024) | K32: Documento | L32: 0 | M32: 1 | N32: 1 | O32: 0 | P32: 0 | Q32: 0 | R32: 100000000 | S32: 0 | T32: 0 | U32: 0 | V32: 0 | W32: 0 | X32: 0 | Y32: 0 | Z32: 0 | AA32: 0 | AB32: 0 | AC32: 0 | AD32: 0 | AE32: 0 | AF32: 0 | AG32: 3 | AH32: 0 | AI32: 0 | AJ32: 0 | AK32: 0 | AL32: 0 | AM32: -2 | AN32: 0 | AS32: 0 | AT32: 0 | AV32: 0 | AW32: 0 | AY32: 0 | AZ32: 0 | BB32: 0 | BC32: 0 | BE32: 0 | BF32: 0 | BH32: 0 | BI32: 0 | BK32: 100000000 | BL32: 0 | BN32: 0 | BO32: 0 | BQ32: 0 | BR32: 0 | BT32: 0 | BU32: 0
A33: 203 | B33: 11 | C33: 01 | D33: 000 | E33: 001 | F33: 000 | G33: 017-001 | H33: Red Vial Pavimentada Con Servicios De Mantenimiento (Fideicomiso) | K33: Documento | L33: 11 | M33: 15 | N33: 26 | O33: 14 | P33: 0.5384615385 | Q33: 5240000 | R33: 89497370 | S33: 75640963.13 | T33: 0.8451752619 | U33: 0 | V33: 0 | W33: 0 | X33: 0 | Y33: 0 | Z33: 0 | AA33: 1 | AB33: 0 | AC33: 14 | AD33: 0 | AE33: 0 | AF33: 0 | AG33: 0 | AH33: 14 | AI33: 0 | AJ33: 0 | AK33: 0 | AL33: 0 | AM33: 0 | AN33: 0 | AO33: 0 | AP33: 0 | AQ33: 0 | AR33: 0 | AS33: 0 | AT33: 0 | AU33: 0 | AV33: 0 | AW33: 0 | AY33: 0 | AZ33: 0 | BB33: 0 | BC33: 0 | BE33: 84257370 | BF33: 29860632.13 | BH33: 0 | BI33: 0 | BK33: 0 | BL33: 44549835 | BN33: 0 | BO33: 0 | BQ33: 0 | BR33: 1230496 | BT33: 0 | BU33: 0
A34: 203 | B34: 11 | C34: 01 | D34: 000 | E34: 001 | F34: 000 | I34: 017-001-0003 | J34: Red Vial Pavimentada Con Servicios De Mantenimiento (Fideicomiso) | K34: Documento | L34: 11 | M34: 15 | N34: 26 | O34: 14 | P34: 0.5384615385 | Q34: 5240000 | R34: 89497370 | S34: 75640963.13 | T34: 0.8451752619 | U34: 0 | V34: 0 | W34: 0 | X34: 0 | Y34: 0 | Z34: 0 | AA34: 1 | AB34: 0 | AC34: 14 | AD34: 0 | AE34: 0 | AF34: 0 | AG34: 0 | AH34: 14 | AI34: 0 | AJ34: 0 | AK34: 0 | AL34: 0 | AM34: 0 | AN34: 0 | AS34: 0 | AT34: 0 | AV34: 0 | AW34: 0 | AY34: 0 | AZ34: 0 | BB34: 0 | BC34: 0 | BE34: 84257370 | BF34: 29860632.13 | BH34: 0 | BI34: 0 | BK34: 0 | BL34: 44549835 | BN34: 0 | BO34: 0 | BQ34: 0 | BR34: 1230496 | BT34: 0 | BU34: 0
A35: 203 | B35: 11 | C35: 01 | D35: 000 | E35: 002 | F35: 000 | G35: 017-002 | H35: Red Vial Pavimentada Con Mantenimiento (Ejecución Normal) | K35: Kilómetro | L35: 6453 | M35: 1110 | N35: 7563 | O35: 2253 | P35: 0.2978976597 | Q35: 793952274 | R35: 711797635 | S35: 374353562.8 | T35: 0.5259269551 | U35: -170 | V35: 0 | W35: 0 | X35: 0 | Y35: 79 | Z35: 137 | AA35: 90 | AB35: 400 | AC35: 3 | AD35: 76 | AE35: 0 | AF35: 55 | AG35: 0 | AH35: 273 | AI35: 773 | AJ35: 19 | AK35: 335 | AL35: 567 | AM35: 0 | AN35: 726 | AO35: 0 | AP35: 0 | AQ35: 0 | AR35: 0 | AS35: 0 | AT35: 6569490.93 | AU35: 0 | AV35: 0 | AW35: 0 | AX35: 0 | AY35: -99523 | AZ35: 13588143.88 | BA35: 0 | BB35: 0 | BC35: 42364617.95 | BD35: 0 | BE35: -57002126 | BF35: 42211102.24 | BH35: 60453514 | BI35: 44333128.61 | BK35: 0 | BL35: 85232255.63 | BN35: -225318 | BO35: 14460355.41 | BQ35: 165016952 | BR35: 88770382.38 | BT35: -250298138 | BU35: 36824085.76
A36: 203 | B36: 11 | C36: 01 | D36: 000 | E36: 002 | F36: 000 | I36: 017-002-0001 | J36: Red Vial Pavimentada Con Mantenimiento (Ejecución Normal) | K36: Kilómetro | L36: 6453 | M36: 1110 | N36: 7563 | O36: 2253 | P36: 0.2978976597 | Q36: 793952274 | R36: 711797635 | S36: 374353562.8 | T36: 0.5259269551 | U36: -170 | V36: 0 | W36: 0 | X36: 0 | Y36: 79 | Z36: 137 | AA36: 90 | AB36: 400 | AC36: 3 | AD36: 76 | AE36: 0 | AF36: 55 | AG36: 0 | AH36: 273 | AI36: 773 | AJ36: 19 | AK36: 335 | AL36: 567 | AM36: 0 | AN36: 726 | AS36: 0 | AT36: 6569490.93 | AV36: 0 | AW36: 0 | AY36: -99523 | AZ36: 13588143.88 | BB36: 0 | BC36: 42364617.95 | BE36: -57002126 | BF36: 42211102.24 | BH36: 60453514 | BI36: 44333128.61 | BK36: 0 | BL36: 85232255.63 | BN36: -225318 | BO36: 14460355.41 | BQ36: 165016952 | BR36: 88770382.38 | BT36: -250298138 | BU36: 36824085.76
A37: 203 | B37: 11 | C37: 00 | D37: 000 | E37: 001 | F37: 000 | G37: 017-003 | H37: Dirección Y Coordinación | K37: Evento | L37: 120 | M37: 178 | N37: 298 | O37: 10 | P37: 0.03355704698 | Q37: 27407860 | R37: 27407860 | S37: 14961440.06 | T37: 0.5458813661 | U37: 178 | V37: 0 | W37: 0 | X37: 0 | Y37: 0 | Z37: 0 | AA37: 0 | AB37: 0 | AC37: 0 | AD37: 0 | AE37: 0 | AF37: 1 | AG37: 0 | AH37: 5 | AI37: 0 | AJ37: 4 | AK37: 0 | AL37: 0 | AM37: 0 | AN37: 0 | AO37: 0 | AP37: 0 | AQ37: 0 | AR37: 0 | AS37: 0 | AT37: 0 | AU37: 1154079.2 | AV37: 0 | AW37: 68952.47 | AX37: 919443.66 | AY37: 0 | AZ37: 168913.79 | BA37: 992669.88 | BB37: 0 | BC37: 215441.41 | BD37: 1062179.98 | BE37: 0 | BF37: 224174.11 | BG37: 1077250 | BH37: 0 | BI37: 542630.49 | BJ37: 1205219.1 | BK37: 0 | BL37: 579237.07 | BM37: 1237566.57 | BN37: 0 | BO37: 571813.08 | BP37: 950512.1 | BQ37: 0 | BR37: 236611.87 | BS37: 928481.72 | BT37: 0 | BU37: 2826263.56
A38: 203 | B38: 11 | C38: 00 | D38: 000 | E38: 001 | F38: 000 | I38: 017-003-0001 | J38: Dirección Y Coordinación | K38: Evento | L38: 120 | M38: 178 | N38: 298 | O38: 10 | P38: 0.03355704698 | Q38: 27407860 | R38: 27407860 | S38: 14961440.06 | T38: 0.5458813661 | U38: 178 | V38: 0 | W38: 0 | X38: 0 | Y38: 0 | Z38: 0 | AA38: 0 | AB38: 0 | AC38: 0 | AD38: 0 | AE38: 0 | AF38: 1 | AG38: 0 | AH38: 5 | AI38: 0 | AJ38: 4 | AK38: 0 | AL38: 0 | AM38: 0 | AN38: 0 | AS38: 0 | AT38: 0 | AU38: 1154079.2 | AV38: 0 | AW38: 68952.47 | AX38: 919443.66 | AY38: 0 | AZ38: 168913.79 | BA38: 992669.88 | BB38: 0 | BC38: 215441.41 | BD38: 1062179.98 | BE38: 0 | BF38: 224174.11 | BG38: 1077250 | BH38: 0 | BI38: 542630.49 | BJ38: 1205219.1 | BK38: 0 | BL38: 579237.07 | BM38: 1237566.57 | BN38: 0 | BO38: 571813.08 | BP38: 950512.1 | BQ38: 0 | BR38: 236611.87 | BS38: 928481.72 | BT38: 0 | BU38: 2826263.56
A39: 203 | B39: 11 | C39: 02 | D39: 000 | E39: 001 | F39: 000 | G39: 017-006 | H39: Red Vial Rural Con Servicios De Mantenimiento (Fideicomiso) | K39: Documento | L39: 10 | M39: 0 | N39: 10 | O39: 0 | P39: 0 | Q39: 5000000 | R39: 5000000 | S39: 0 | T39: 0 | U39: 0 | V39: 0 | W39: 0 | X39: 0 | Y39: 0 | Z39: 0 | AA39: 0 | AB39: 0 | AC39: 0 | AD39: 0 | AE39: 0 | AF39: 0 | AG39: 0 | AH39: 0 | AI39: 0 | AJ39: 0 | AK39: 0 | AL39: 0 | AM39: 0 | AN39: 0 | AO39: 0 | AP39: 0 | AQ39: 0 | AR39: 0 | AS39: 0 | AT39: 0 | AU39: 0 | AV39: 0 | AW39: 0 | AY39: 0 | AZ39: 0 | BB39: 0 | BC39: 0 | BE39: 0 | BF39: 0 | BH39: 0 | BI39: 0 | BK39: 0 | BL39: 0 | BN39: 0 | BO39: 0 | BQ39: 0 | BR39: 0 | BT39: 0 | BU39: 0
A40: 203 | B40: 11 | C40: 02 | D40: 000 | E40: 001 | F40: 000 | I40: 017-006-0002 | J40: Red Vial Rural Con Servicios De Mantenimiento (Fideicomiso) | K40: Documento | L40: 10 | M40: 0 | N40: 10 | O40: 0 | P40: 0 | Q40: 5000000 | R40: 5000000 | S40: 0 | T40: 0 | U40: 0 | V40: 0 | W40: 0 | X40: 0 | Y40: 0 | Z40: 0 | AA40: 0 | AB40: 0 | AC40: 0 | AD40: 0 | AE40: 0 | AF40: 0 | AG40: 0 | AH40: 0 | AI40: 0 | AJ40: 0 | AK40: 0 | AL40: 0 | AM40: 0 | AN40: 0 | AS40: 0 | AT40: 0 | AV40: 0 | AW40: 0 | AY40: 0 | AZ40: 0 | BB40: 0 | BC40: 0 | BE40: 0 | BF40: 0 | BH40: 0 | BI40: 0 | BK40: 0 | BL40: 0 | BN40: 0 | BO40: 0 | BQ40: 0 | BR40: 0 | BT40: 0 | BU40: 0
A41: 203 | B41: 11 | C41: 02 | D41: 000 | E41: 002 | F41: 000 | G41: 017-007 | H41: Red Vial Terciaria Con Mantenimiento (Ejecución Normal) | K41: Kilómetro | L41: 5349 | M41: 51 | N41: 5400 | O41: 284 | P41: 0.05259259259 | Q41: 550792866 | R41: 338979566 | S41: 12130848.63 | T41: 0.03578637135 | U41: 558 | V41: 0 | W41: 0 | X41: 0 | Y41: 1 | Z41: 78 | AA41: 0 | AB41: 0 | AC41: 1 | AD41: 34 | AE41: 0 | AF41: 20 | AG41: 0 | AH41: 1 | AI41: -988 | AJ41: 0 | AK41: 479 | AL41: 66 | AM41: 0 | AN41: 85 | AO41: 0 | AP41: 0 | AQ41: 0 | AR41: 0 | AS41: 0 | AT41: 56334.81 | AU41: 0 | AV41: 0 | AW41: 0 | AX41: 0 | AY41: 99523 | AZ41: 5462127.89 | BA41: 0 | BB41: 0 | BC41: 0 | BD41: 0 | BE41: -27255244 | BF41: 1971999.56 | BH41: -60453514 | BI41: 5222.67 | BK41: 0 | BL41: 1776086.33 | BN41: 225318 | BO41: 33149.6 | BQ41: -124565952 | BR41: 1380086.2 | BT41: 136569 | BU41: 1445841.57
A42: 203 | B42: 11 | C42: 02 | D42: 000 | E42: 002 | F42: 000 | I42: 017-007-0001 | J42: Red Vial Terciaria Con Mantenimiento (Ejecución Normal) | K42: Kilómetro | L42: 5349 | M42: 51 | N42: 5400 | O42: 284 | P42: 0.05259259259 | Q42: 550792866 | R42: 338979566 | S42: 12130848.63 | T42: 0.03578637135 | U42: 558 | V42: 0 | W42: 0 | X42: 0 | Y42: 1 | Z42: 78 | AA42: 0 | AB42: 0 | AC42: 1 | AD42: 34 | AE42: 0 | AF42: 20 | AG42: 0 | AH42: 1 | AI42: -988 | AJ42: 0 | AK42: 479 | AL42: 66 | AM42: 0 | AN42: 85 | AS42: 0 | AT42: 56334.81 | AV42: 0 | AW42: 0 | AY42: 99523 | AZ42: 5462127.89 | BB42: 0 | BC42: 0 | BE42: -27255244 | BF42: 1971999.56 | BH42: -60453514 | BI42: 5222.67 | BK42: 0 | BL42: 1776086.33 | BN42: 225318 | BO42: 33149.6 | BQ42: -124565952 | BR42: 1380086.2 | BT42: 136569 | BU42: 1445841.57
A43: 203 | B43: 11 | C43: 03 | D43: 000 | E43: 001 | F43: 000 | G43: 017-008 | H43: Red Vial De Rutas Centroamericanas Con Servicios De Mantenimiento | K43: Kilómetro | L43: 0 | M43: 7 | N43: 7 | O43: 2 | P43: 0.2857142857 | Q43: 0 | R43: 162955206 | S43: 88988201.36 | T43: 0.5460899565 | U43: 0 | V43: 0 | W43: 0 | X43: 0 | Y43: 0 | Z43: 0 | AA43: 0 | AB43: 0 | AC43: 0 | AD43: 0 | AE43: 0 | AF43: 0 | AG43: 0 | AH43: 0 | AI43: 0 | AJ43: 0 | AK43: 0 | AL43: 0 | AM43: 7 | AN43: 2 | AO43: 0 | AP43: 0 | AQ43: 0 | AR43: 0 | AS43: 0 | AT43: 0 | AU43: 0 | AV43: 0 | AW43: 0 | AX43: 0 | AY43: 0 | AZ43: 0 | BA43: 0 | BB43: 0 | BC43: 0 | BD43: 0 | BE43: 0 | BF43: 0 | BG43: 0 | BH43: 0 | BI43: 0 | BJ43: 0 | BK43: 0 | BL43: 0 | BM43: 0 | BN43: 0 | BO43: 0 | BP43: 0 | BQ43: 0 | BR43: 0 | BS43: 0 | BT43: 162955206 | BU43: 88988201.36
A44: 203 | B44: 11 | C44: 03 | D44: 000 | E44: 001 | F44: 000 | I44: 017-008-0001 | J44: Red Vial Con Servicios De Rehabilitación | K44: Kilómetro | L44: 0 | M44: 7 | N44: 7 | O44: 2 | P44: 0.2857142857 | Q44: 0 | R44: 49841834 | S44: 17769973.94 | T44: 0.3565272887 | U44: 0 | V44: 0 | W44: 0 | X44: 0 | Y44: 0 | Z44: 0 | AA44: 0 | AB44: 0 | AC44: 0 | AD44: 0 | AE44: 0 | AF44: 0 | AG44: 0 | AH44: 0 | AI44: 0 | AJ44: 0 | AK44: 0 | AL44: 0 | AM44: 7 | AN44: 2 | AS44: 0 | AT44: 0 | AV44: 0 | AW44: 0 | AY44: 0 | AZ44: 0 | BB44: 0 | BC44: 0 | BE44: 0 | BF44: 0 | BH44: 0 | BI44: 0 | BK44: 0 | BL44: 0 | BN44: 0 | BO44: 0 | BQ44: 0 | BR44: 0 | BT44: 49841834 | BU44: 17769973.94
A45: 203 | B45: 11 | C45: 03 | D45: 000 | E45: 001 | F45: 000 | I45: 017-008-0002 | J45: Red Vial Con Servicios De Recapeo | K45: Documento | L45: 0 | M45: 12 | N45: 12 | O45: 5 | P45: 0.4166666667 | Q45: 0 | R45: 109171608 | S45: 71218227.42 | T45: 0.6523511811 | U45: 0 | V45: 0 | W45: 0 | X45: 0 | Y45: 0 | Z45: 0 | AA45: 0 | AB45: 0 | AC45: 0 | AD45: 0 | AE45: 0 | AF45: 0 | AG45: 0 | AH45: 0 | AI45: 0 | AJ45: 0 | AK45: 0 | AL45: 0 | AM45: 12 | AN45: 5 | AS45: 0 | AT45: 0 | AV45: 0 | AW45: 0 | AY45: 0 | AZ45: 0 | BB45: 0 | BC45: 0 | BE45: 0 | BF45: 0 | BH45: 0 | BI45: 0 | BK45: 0 | BL45: 0 | BN45: 0 | BO45: 0 | BQ45: 0 | BR45: 0 | BT45: 109171608 | BU45: 71218227.42
A46: 203 | B46: 11 | C46: 03 | D46: 000 | E46: 001 | F46: 000 | I46: 017-008-0003 | J46: Red Vial Con Servicios De Señalización | K46: Documento | L46: 0 | M46: 3 | N46: 3 | O46: 0 | P46: 0 | Q46: 0 | R46: 3941764 | S46: 0 | T46: 0 | U46: 0 | V46: 0 | W46: 0 | X46: 0 | Y46: 0 | Z46: 0 | AA46: 0 | AB46: 0 | AC46: 0 | AD46: 0 | AE46: 0 | AF46: 0 | AG46: 0 | AH46: 0 | AI46: 0 | AJ46: 0 | AK46: 0 | AL46: 0 | AM46: 3 | AN46: 0 | AS46: 0 | AT46: 0 | AV46: 0 | AW46: 0 | AY46: 0 | AZ46: 0 | BB46: 0 | BC46: 0 | BE46: 0 | BF46: 0 | BH46: 0 | BI46: 0 | BK46: 0 | BL46: 0 | BN46: 0 | BO46: 0 | BQ46: 0 | BR46: 0 | BT46: 3941764 | BU46: 0
A47: 203 | B47: 11 | C47: 03 | D47: 000 | E47: 002 | F47: 000 | G47: 017-009 | H47: Red Vial De Rutas Nacionales Con Servicios De Mantenimiento | K47: Documento | L47: 0 | M47: 8 | N47: 8 | O47: 3 | P47: 0.375 | Q47: 0 | R47: =+R48+R49 -> 32568450 | S47: =+S48+S49 -> 15754429.18 | T47: 0.4837328513 | U47: 0 | V47: 0 | W47: 0 | X47: 0 | Y47: 0 | Z47: 0 | AA47: 0 | AB47: 0 | AC47: 0 | AD47: 0 | AE47: 0 | AF47: 0 | AG47: 0 | AH47: 0 | AI47: 0 | AJ47: 0 | AK47: 0 | AL47: 0 | AM47: 8 | AN47: 3 | AO47: 0 | AP47: 0 | AQ47: 0 | AR47: 0 | AS47: 0 | AT47: 0 | AU47: 0 | AV47: 0 | AW47: 0 | AX47: 0 | AY47: 0 | AZ47: 0 | BA47: 0 | BB47: 0 | BC47: 0 | BD47: 0 | BE47: 0 | BF47: 0 | BH47: 0 | BI47: 0 | BK47: 0 | BL47: 0 | BN47: 0 | BO47: 0 | BQ47: 0 | BR47: 0 | BT47: 31325423 | BU47: 15754429.18
A48: 203 | B48: 11 | C48: 03 | D48: 000 | E48: 002 | F48: 000 | I48: 017-009-0001 | J48: Red Vial Con Servicios De Recapeo | K48: Documento | L48: 0 | M48: 8 | N48: 8 | O48: 3 | P48: 0.375 | Q48: 0 | R48: 31325423 | S48: 15754429.18 | T48: 0.5029278992 | U48: 0 | V48: 0 | W48: 0 | X48: 0 | Y48: 0 | Z48: 0 | AA48: 0 | AB48: 0 | AC48: 0 | AD48: 0 | AE48: 0 | AF48: 0 | AG48: 0 | AH48: 0 | AI48: 0 | AJ48: 0 | AK48: 0 | AL48: 0 | AM48: 8 | AN48: 3 | AS48: 0 | AT48: 0 | AV48: 0 | AW48: 0 | AY48: 0 | AZ48: 0 | BB48: 0 | BC48: 0 | BE48: 0 | BF48: 0 | BH48: 0 | BI48: 0 | BK48: 0 | BL48: 0 | BN48: 0 | BO48: 0 | BQ48: 0 | BR48: 0 | BT48: 31325423 | BU48: 15754429.18
A49: 203 | B49: 11 | C49: 03 | D49: 000 | E49: 002 | F49: 000 | I49: 017-009-0002 | J49: Red Vial Con Servicios De Señalización | K49: Documento | L49: 0 | M49: 7 | N49: 7 | O49: 0 | P49: 0 | Q49: 0 | R49: 1243027 | S49: 0 | T49: 0 | U49: 0 | V49: 0 | W49: 0 | X49: 0 | Y49: 0 | Z49: 0 | AA49: 0 | AB49: 0 | AC49: 0 | AD49: 0 | AE49: 0 | AF49: 0 | AG49: 0 | AH49: 0 | AI49: 0 | AJ49: 0 | AK49: 0 | AL49: 0 | AM49: 7 | AN49: 0 | AS49: 0 | AT49: 0 | AV49: 0 | AW49: 0 | AY49: 0 | AZ49: 0 | BB49: 0 | BC49: 0 | BE49: 0 | BF49: 0 | BH49: 0 | BI49: 0 | BK49: 0 | BL49: 0 | BN49: 0 | BO49: 0 | BQ49: 0 | BR49: 0 | BT49: 1243027 | BU49: 0
A50: 203 | B50: 11 | C50: 03 | D50: 000 | E50: 003 | F50: 000 | G50: 017-010 | H50: Red Vial De Rutas Departamentales Con Servicios De Mantenimiento | K50: Documento | L50: 0 | M50: 9 | N50: 9 | O50: 6 | P50: 0.6666666667 | Q50: 0 | R50: 54637913 | S50: 41454627.03 | T50: 0.7587154185 | U50: 0 | V50: 0 | W50: 0 | X50: 0 | Y50: 0 | Z50: 0 | AA50: 0 | AB50: 0 | AC50: 0 | AD50: 0 | AE50: 0 | AF50: 0 | AG50: 0 | AH50: 0 | AI50: 0 | AJ50: 0 | AK50: 0 | AL50: 0 | AM50: 9 | AN50: 6 | AO50: 0 | AP50: 0 | AQ50: 0 | AR50: 0 | AS50: 0 | AT50: 0 | AU50: 0 | AV50: 0 | AW50: 0 | AX50: 0 | AY50: 0 | AZ50: 0 | BA50: 0 | BB50: 0 | BC50: 0 | BD50: 0 | BE50: 0 | BF50: 0 | BH50: 0 | BI50: 0 | BK50: 0 | BL50: 0 | BN50: 0 | BO50: 0 | BQ50: 0 | BR50: 0 | BT50: 54637913 | BU50: 41454627.03
A51: 203 | B51: 11 | C51: 03 | D51: 000 | E51: 003 | F51: 000 | I51: 017-010-0001 | J51: Red Vial Con Servicios De Recapeo | K51: Documento | L51: 0 | M51: 9 | N51: 9 | O51: 6 | P51: 0.6666666667 | Q51: 0 | R51: 54637913 | S51: 41454627.03 | T51: 0.7587154185 | U51: 0 | V51: 0 | W51: 0 | X51: 0 | Y51: 0 | Z51: 0 | AA51: 0 | AB51: 0 | AC51: 0 | AD51: 0 | AE51: 0 | AF51: 0 | AG51: 0 | AH51: 0 | AI51: 0 | AJ51: 0 | AK51: 0 | AL51: 0 | AM51: 9 | AN51: 6 | AS51: 0 | AT51: 0 | AV51: 0 | AW51: 0 | AY51: 0 | AZ51: 0 | BB51: 0 | BC51: 0 | BE51: 0 | BF51: 0 | BH51: 0 | BI51: 0 | BK51: 0 | BL51: 0 | BN51: 0 | BO51: 0 | BQ51: 0 | BR51: 0 | BT51: 54637913 | BU51: 41454627.03
A52: 204 | B52: 12 | C52: 00 | D52: 000 | E52: 001 | F52: 000 | G52: 018-005 | H52: Dirección Y Coordinación | K52: Evento | L52: 85 | M52: 172 | N52: 257 | O52: 153 | P52: 0.5953307393 | Q52: 12264729 | R52: 17837974 | S52: 8592502.37 | T52: 0.4816972135 | U52: 172 | V52: 75 | W52: 0 | X52: 0 | Y52: 0 | Z52: 0 | AA52: 0 | AB52: 0 | AC52: 0 | AD52: 0 | AE52: 0 | AF52: 0 | AG52: 0 | AH52: 78 | AI52: 0 | AJ52: 0 | AK52: 0 | AL52: 0 | AM52: 0 | AN52: 0 | AO52: 0 | AP52: 0 | AQ52: 0 | AR52: 0 | AS52: -692765 | AT52: 142003.03 | AU52: 918573.03 | AV52: 0 | AW52: -91883.18 | AX52: 884768.59 | AY52: 0 | AZ52: 98336.96 | BA52: 651533.23 | BB52: 148002 | BC52: 92559.81 | BD52: 719768.09 | BE52: 0 | BF52: 306625.05 | BG52: 811119.61 | BH52: -45259 | BI52: 221443.84 | BJ52: 679209.65 | BK52: -50075 | BL52: 103076.29 | BM52: 665453.11 | BN52: -270 | BO52: 83604.34 | BP52: 621759.46 | BQ52: 6395452 | BR52: 325171.14 | BS52: 618625.66 | BT52: -181840 | BU52: 740754.66
A53: 204 | B53: 12 | C53: 00 | D53: 000 | E53: 001 | F53: 000 | I53: 018-005-0001 | J53: Dirección Y Coordinación | K53: Evento | L53: 85 | M53: 172 | N53: 257 | O53: 153 | P53: 0.5953307393 | Q53: 12264729 | R53: 17837974 | S53: 8592502.37 | T53: 0.4816972135 | U53: 172 | V53: 75 | W53: 0 | X53: 0 | Y53: 0 | Z53: 0 | AA53: 0 | AB53: 0 | AC53: 0 | AD53: 0 | AE53: 0 | AF53: 0 | AG53: 0 | AH53: 78 | AI53: 0 | AJ53: 0 | AK53: 0 | AL53: 0 | AM53: 0 | AN53: 0 | AS53: -692765 | AT53: 142003.03 | AU53: 918573.03 | AV53: 0 | AW53: -91883.18 | AX53: 884768.59 | AY53: 0 | AZ53: 98336.96 | BA53: 651533.23 | BB53: 148002 | BC53: 92559.81 | BD53: 719768.09 | BE53: 0 | BF53: 306625.05 | BG53: 811119.61 | BH53: -45259 | BI53: 221443.84 | BJ53: 679209.65 | BK53: -50075 | BL53: 103076.29 | BM53: 665453.11 | BN53: -270 | BO53: 83604.34 | BP53: 621759.46 | BQ53: 6395452 | BR53: 325171.14 | BS53: 618625.66 | BT53: -181840 | BU53: 740754.66
A54: 204 | B54: 12 | C54: 00 | D54: 000 | E54: 002 | F54: 000 | G54: 018-006 | H54: Regulación De Transporte Extraurbano De Pasajeros Y Carga Por Carretera | K54: Documento | L54: 4595 | M54: 6000 | N54: 10595 | O54: 4487 | P54: 0.4235016517 | Q54: 2686541 | R54: 3375428 | S54: 1943867.77 | T54: 0.5758877896 | U54: 6000 | V54: 105 | W54: 0 | X54: 125 | Y54: 0 | Z54: 332 | AA54: 0 | AB54: 263 | AC54: 0 | AD54: 195 | AE54: 0 | AF54: 738 | AG54: 0 | AH54: 733 | AI54: 0 | AJ54: 690 | AK54: 0 | AL54: 717 | AM54: 0 | AN54: 589 | AO54: 0 | AP54: 0 | AQ54: 0 | AR54: 0 | AS54: 692765 | AT54: 104031.9 | AU54: 44376.56 | AV54: 0 | AW54: 69420 | AX54: 30251.04 | AY54: 0 | AZ54: 290269.32 | BA54: 30251.04 | BB54: -148002 | BC54: 132474.4 | BD54: 30251.04 | BE54: 0 | BF54: 138143 | BG54: 30251.04 | BH54: 45259 | BI54: 106279.02 | BJ54: 30251.04 | BK54: 50075 | BL54: 261617.32 | BM54: 58502.08 | BN54: 270 | BO54: 165574.48 | BP54: 30251.04 | BQ54: -133320 | BR54: 228033.54 | BS54: 26496.66 | BT54: 181840 | BU54: 137143.25
A55: 204 | B55: 12 | C55: 00 | D55: 000 | E55: 002 | F55: 000 | I55: 018-006-0001 | J55: Personas Jurídicas O Individuales Con Licencias Otorgadas De Transporte Extraurbano De Pasajeros Por Carretera | K55: Documento | L55: 525 | M55: 0 | N55: 525 | O55: 491 | P55: 0.9352380952 | Q55: 1031212 | R55: 718194 | S55: 513861.74 | T55: 0.7154915524 | U55: 0 | V55: 40 | W55: 0 | X55: 5 | Y55: 0 | Z55: 40 | AA55: 0 | AB55: 40 | AC55: 0 | AD55: 75 | AE55: 0 | AF55: 40 | AG55: 0 | AH55: 88 | AI55: 0 | AJ55: 40 | AK55: 0 | AL55: 101 | AM55: 0 | AN55: 22 | AS55: -186435 | AT55: 99931.5 | AV55: 0 | AW55: -25000 | AY55: 0 | AZ55: 183168.12 | BB55: -123002 | BC55: 9104 | BE55: 0 | BF55: 9189 | BH55: 0 | BI55: 10822.02 | BK55: 50075 | BL55: 104671.01 | BN55: 270 | BO55: 39974.6 | BQ55: -53926 | BR55: 71147.5 | BT55: 0 | BU55: 10853.99
A56: 204 | B56: 12 | C56: 00 | D56: 000 | E56: 002 | F56: 000 | I56: 018-006-0002 | J56: Personas Jurídicas O Individuales Con Permisos Temporales Otorgados Para El Transporte Extraurbano De Pasajeros Por Carretera | K56: Documento | L56: 1575 | M56: 200 | N56: 1775 | O56: 650 | P56: 0.3661971831 | Q56: 183000 | R56: 183000 | S56: 0 | T56: 0 | U56: 200 | V56: 0 | W56: 0 | X56: 0 | Y56: 0 | Z56: 0 | AA56: 0 | AB56: 0 | AC56: 0 | AD56: 0 | AE56: 0 | AF56: 150 | AG56: 0 | AH56: 150 | AI56: 0 | AJ56: 150 | AK56: 0 | AL56: 0 | AM56: 0 | AN56: 200 | AS56: 0 | AT56: 0 | AV56: 0 | AW56: 0 | AY56: 0 | AZ56: 0 | BB56: 0 | BC56: 0 | BE56: 0 | BF56: 0 | BH56: 0 | BI56: 0 | BK56: 0 | BL56: 0 | BN56: 0 | BO56: 0 | BQ56: 0 | BR56: 0 | BT56: 0 | BU56: 0
A57: 204 | B57: 12 | C57: 00 | D57: 000 | E57: 002 | F57: 000 | I57: 018-006-0003 | J57: Personas Jurídicas O Individuales Con Licencias Modificadas De Transporte Extraurbano De Pasajeros Por Carretera | K57: Documento | L57: 1550 | M57: 500 | N57: 2050 | O57: 1324 | P57: 0.6458536585 | Q57: 728318 | R57: 1755223 | S57: 1187158.2 | T57: 0.6763574771 | U57: 500 | V57: 0 | W57: 0 | X57: 120 | Y57: 0 | Z57: 112 | AA57: 0 | AB57: 128 | AC57: 0 | AD57: 120 | AE57: 0 | AF57: 200 | AG57: 0 | AH57: 141 | AI57: 0 | AJ57: 200 | AK57: 0 | AL57: 216 | AM57: 0 | AN57: 87 | AS57: 879200 | AT57: 0 | AU57: 44376.56 | AV57: 0 | AW57: 94420 | AX57: 30251.04 | AY57: 0 | AZ57: 87920 | BA57: 30251.04 | BB57: 0 | BC57: 100920 | BD57: 30251.04 | BE57: 0 | BF57: 94420 | BG57: 30251.04 | BH57: 45259 | BI57: 94420 | BJ57: 30251.04 | BK57: 0 | BL57: 94420 | BM57: 58502.08 | BN57: 0 | BO57: 94420 | BP57: 30251.04 | BQ57: -79394 | BR57: 94420 | BS57: 26496.66 | BT57: 181840 | BU57: 120916.66
A58: 204 | B58: 12 | C58: 00 | D58: 000 | E58: 002 | F58: 000 | I58: 018-006-0004 | J58: Operativos De Control Fijo Del Servicio De Transporte Extraurbano | K58: Evento | L58: 1470 | M58: 400 | N58: 1870 | O58: 1060 | P58: 0.5668449198 | Q58: 369011 | R58: 369011 | S58: 189832.83 | T58: 0.5144367783 | U58: 400 | V58: 0 | W58: 0 | X58: 0 | Y58: 0 | Z58: 38 | AA58: 0 | AB58: 82 | AC58: 0 | AD58: 170 | AE58: 0 | AF58: 157 | AG58: 0 | AH58: 157 | AI58: 0 | AJ58: 146 | AK58: 0 | AL58: 153 | AM58: 0 | AN58: 157 | AS58: 0 | AT58: 0 | AV58: 0 | AW58: 0 | AY58: 0 | AZ58: 7596 | BB58: 0 | BC58: 16750 | BE58: 0 | BF58: 33379 | BH58: 0 | BI58: 1037 | BK58: 0 | BL58: 62526.31 | BN58: 0 | BO58: 31179.88 | BQ58: 0 | BR58: 31992.04 | BT58: 0 | BU58: 5372.6
A59: 204 | B59: 12 | C59: 00 | D59: 000 | E59: 002 | F59: 000 | I59: 018-006-0005 | J59: Personas Jurídicas O Individuales Con Permisos Expresos Para El Transporte Extraurbano De Pasajeros Por Carretera | K59: Documento | L59: 420 | M59: 5100 | N59: 5520 | O59: 2022 | P59: 0.3663043478 | Q59: 350000 | R59: 350000 | S59: 53015 | T59: 0.1514714286 | U59: 5100 | V59: 65 | W59: 0 | X59: 0 | Y59: 0 | Z59: 180 | AA59: 0 | AB59: 95 | AC59: 0 | AD59: 0 | AE59: 0 | AF59: 348 | AG59: 0 | AH59: 354 | AI59: 0 | AJ59: 300 | AK59: 0 | AL59: 400 | AM59: 0 | AN59: 280 | AS59: 0 | AT59: 4100.4 | AV59: 0 | AW59: 0 | AY59: 0 | AZ59: 11585.2 | BB59: 0 | BC59: 5700.4 | BE59: 0 | BF59: 1155 | BH59: 0 | BI59: 0 | BK59: 0 | BL59: 0 | BN59: 0 | BO59: 0 | BQ59: 0 | BR59: 30474 | BT59: 0 | BU59: 0
A60: 204 | B60: 12 | C60: 00 | D60: 000 | E60: 002 | F60: 000 | I60: 018-006-0007 | J60: Personas Jurídicas O Individuales Con Constancias De Registro De Pilotos Para El Transporte Extraurbano De Pasajeros Por Carretera | K60: Documento | L60: 525 | M60: 200 | N60: 725 | O60: 0 | P60: 0 | Q60: 25000 | R60: 0 | S60: 0 | T60: 0 | U60: 200 | V60: 0 | W60: 0 | X60: 0 | Y60: 0 | Z60: 0 | AA60: 0 | AB60: 0 | AC60: 0 | AD60: 0 | AE60: 0 | AF60: 0 | AG60: 0 | AH60: 0 | AI60: 0 | AJ60: 0 | AK60: 0 | AL60: 0 | AM60: 0 | AN60: 0 | AS60: 0 | AT60: 0 | AV60: 0 | AW60: 0 | AY60: 0 | AZ60: 0 | BB60: -25000 | BC60: 0 | BE60: 0 | BF60: 0 | BH60: 0 | BI60: 0 | BK60: 0 | BL60: 0 | BN60: 0 | BO60: 0 | BQ60: 0 | BR60: 0 | BT60: 0 | BU60: 0
A61: 205 | B61: 99 | C61: 00 | D61: 000 | E61: 002 | F61: 000 | G61: 000-005 | H61: Personas Jurídicas Beneficiadas Con Aportes Y/O Cuotas Para Comunicaciones | K61: Aporte | L61: 1 | M61: 1 | N61: 2 | O61: 0 | P61: 0 | Q61: 450000 | R61: 450000 | S61: 398648.12 | T61: 0.8858847111 | U61: 1 | V61: 0 | W61: 0 | X61: 0 | Y61: 0 | Z61: 0 | AA61: 0 | AB61: 0 | AC61: 0 | AD61: 0 | AE61: 0 | AF61: 0 | AG61: 0 | AH61: 0 | AI61: 0 | AJ61: 0 | AK61: 0 | AL61: 0 | AM61: 0 | AN61: 0 | AO61: 0 | AP61: 0 | AQ61: 0 | AR61: 0 | AS61: 0 | AT61: 0 | AU61: 0 | AV61: 0 | AW61: 0 | AY61: 0 | AZ61: 0 | BB61: 0 | BC61: 403449.93 | BE61: 0 | BF61: -403449.93 | BH61: 0 | BI61: 170287.21 | BK61: 0 | BL61: 0 | BN61: 0 | BO61: 0 | BQ61: 0 | BR61: 0 | BS61: 0 | BT61: 0 | BU61: 228360.91
A62: 205 | B62: 99 | C62: 00 | D62: 000 | E62: 002 | F62: 000 | I62: 000-005-0001 | J62: Personas Jurídicas Beneficiadas Con Aportes Y/O Cuotas Para Comunicaciones | K62: Aporte | L62: 1 | M62: 1 | N62: 2 | O62: 0 | P62: 0 | Q62: 450000 | R62: 450000 | S62: 398648.12 | T62: 0.8858847111 | U62: 1 | V62: 0 | W62: 0 | X62: 0 | Y62: 0 | Z62: 0 | AA62: 0 | AB62: 0 | AC62: 0 | AD62: 0 | AE62: 0 | AF62: 0 | AG62: 0 | AH62: 0 | AI62: 0 | AJ62: 0 | AK62: 0 | AL62: 0 | AM62: 0 | AN62: 0 | AS62: 0 | AT62: 0 | AV62: 0 | AW62: 0 | AY62: 0 | AZ62: 0 | BB62: 0 | BC62: 403449.93 | BE62: 0 | BF62: -403449.93 | BH62: 0 | BI62: 170287.21 | BK62: 0 | BL62: 0 | BN62: 0 | BO62: 0 | BQ62: 0 | BR62: 0 | BT62: 0 | BU62: 228360.91
A63: 205 | B63: 13 | C63: 00 | D63: 000 | E63: 001 | F63: 000 | G63: 000-013 | H63: Dirección Y Coordinación | K63: Evento | L63: 990 | M63: 1034 | N63: 2024 | O63: 1875 | P63: 0.9263833992 | Q63: 144895709 | R63: 164411989 | S63: 116506326.2 | T63: 0.7086242729 | U63: 786 | V63: 0 | W63: 0 | X63: 741 | Y63: 0 | Z63: 47 | AA63: 0 | AB63: 50 | AC63: 0 | AD63: 559 | AE63: 0 | AF63: 50 | AG63: 0 | AH63: 50 | AI63: 248 | AJ63: 258 | AK63: 0 | AL63: 60 | AM63: 0 | AN63: 60 | AO63: 0 | AP63: 0 | AQ63: 0 | AR63: 0 | AS63: 0 | AT63: 1571707.34 | AU63: 5896561.8 | AV63: 0 | AW63: 1736690.77 | AX63: 5449773.88 | AY63: 0 | AZ63: 2054724.09 | BA63: 5595839.14 | BB63: 0 | BC63: 26341909.74 | BD63: 4903948.84 | BE63: -881155 | BF63: 3072523.22 | BG63: 4765679.06 | BH63: -3116 | BI63: 4776244.44 | BJ63: 4911193.96 | BK63: -161500 | BL63: 1617061.73 | BM63: 5520736.01 | BN63: 0 | BO63: 2137689.42 | BP63: 5254537.5 | BQ63: 3584436 | BR63: 16404689.66 | BS63: 5135370.48 | BT63: 16977615 | BU63: 9359445.08
A64: 205 | B64: 13 | C64: 00 | D64: 000 | E64: 001 | F64: 000 | I64: 000-013-0001 | J64: Dirección Y Coordinación | K64: Evento | L64: 990 | M64: 1034 | N64: 2024 | O64: 1875 | P64: 0.9263833992 | Q64: 144895709 | R64: 164411989 | S64: 116506326.2 | T64: 0.7086242729 | U64: 786 | V64: 0 | W64: 0 | X64: 741 | Y64: 0 | Z64: 47 | AA64: 0 | AB64: 50 | AC64: 0 | AD64: 559 | AE64: 0 | AF64: 50 | AG64: 0 | AH64: 50 | AI64: 248 | AJ64: 258 | AK64: 0 | AL64: 60 | AM64: 0 | AN64: 60 | AS64: 0 | AT64: 1571707.34 | AU64: 5896561.8 | AV64: 0 | AW64: 1736690.77 | AX64: 5449773.88 | AY64: 0 | AZ64: 2054724.09 | BA64: 5595839.14 | BB64: 0 | BC64: 26341909.74 | BD64: 4903948.84 | BE64: -881155 | BF64: 3072523.22 | BG64: 4765679.06 | BH64: -3116 | BI64: 4776244.44 | BJ64: 4911193.96 | BK64: -161500 | BL64: 1617061.73 | BM64: 5520736.01 | BN64: 0 | BO64: 2137689.42 | BP64: 5254537.5 | BQ64: 3584436 | BR64: 16404689.66 | BS64: 5135370.48 | BT64: 16977615 | BU64: 9359445.08
A65: 205 | B65: 13 | C65: 00 | D65: 000 | E65: 002 | F65: 000 | G65: 000-014 | H65: Aeronaves Con Servicios De Aeronavegabilidad | K65: Aeronave | L65: 1676 | M65: 3865 | N65: 5541 | O65: 4497 | P65: 0.8115863563 | Q65: 74253515 | R65: 57963216 | S65: 33723574.67 | T65: 0.5818099305 | U65: 3865 | V65: 0 | W65: 0 | X65: 896 | Y65: 0 | Z65: 454 | AA65: 0 | AB65: 441 | AC65: 0 | AD65: 457 | AE65: 0 | AF65: 414 | AG65: 0 | AH65: 460 | AI65: 0 | AJ65: 452 | AK65: 0 | AL65: 447 | AM65: 0 | AN65: 476 | AO65: 0 | AP65: 0 | AQ65: 0 | AR65: 0 | AS65: 0 | AT65: 301318.1 | AU65: 1561731.3 | AV65: 0 | AW65: -64784.55 | AX65: 1433470 | AY65: 0 | AZ65: 1589609.95 | BA65: 1418470 | BB65: 0 | BC65: 3132866.46 | BD65: 2227282.17 | BE65: 881155 | BF65: 1199838.66 | BG65: 2185370 | BH65: 3116 | BI65: 2464744.75 | BJ65: 2252136.74 | BK65: 155545 | BL65: 1128403.1 | BM65: 2364477.44 | BN65: 0 | BO65: 1375513.24 | BP65: 2198209.72 | BQ65: 0 | BR65: 1392316.1 | BS65: 2151398.1 | BT65: -17330115 | BU65: 3411203.39
A66: 205 | B66: 13 | C66: 00 | D66: 000 | E66: 002 | F66: 000 | I66: 000-014-0001 | J66: Pasajeros Que Ingresan Por Medio De Transporte Aéreo Con Servicios De Desembarque | K66: Persona | L66: 291179 | M66: 1589874 | N66: 1881053 | O66: 1499502 | P66: 0.7971609519 | Q66: 18478387 | R66: 18760818 | S66: 11843536.5 | T66: 0.6312910503 | U66: 1589874 | V66: 0 | W66: 0 | X66: 272839 | Y66: 0 | Z66: 150711 | AA66: 0 | AB66: 163121 | AC66: 0 | AD66: 145737 | AE66: 0 | AF66: 162126 | AG66: 0 | AH66: 173402 | AI66: 0 | AJ66: 150222 | AK66: 0 | AL66: 135367 | AM66: 0 | AN66: 145977 | AS66: 0 | AT66: 22657.5 | AU66: 889926.03 | AV66: 0 | AW66: -20242.5 | AX66: 816838.51 | AY66: 0 | AZ66: 0 | BA66: 808291.02 | BB66: 0 | BC66: 0 | BD66: 1269178.88 | BE66: 200000 | BF66: 0 | BG66: 1245295.94 | BH66: 2431 | BI66: 163466 | BJ66: 1283342.64 | BK66: 80000 | BL66: 0 | BM66: 1347357.27 | BN66: 0 | BO66: 125250 | BP66: 1252612.44 | BQ66: 0 | BR66: 11757.5 | BS66: 1225937.63 | BT66: 0 | BU66: 1401867.64
A67: 205 | B67: 13 | C67: 00 | D67: 000 | E67: 002 | F67: 000 | I67: 000-014-0002 | J67: Pasajeros Que Egresan Por Medio De Transporte Aéreo Con Servicios De Embarque | K67: Persona | L67: 1676801 | M67: 186826 | N67: 1863627 | O67: 1515053 | P67: 0.8129593529 | Q67: 54283348 | R67: 37710618 | S67: 21688354.67 | T67: 0.5751259412 | U67: 186826 | V67: 0 | W67: 0 | X67: 279002 | Y67: 0 | Z67: 153513 | AA67: 0 | AB67: 164213 | AC67: 0 | AD67: 149000 | AE67: 0 | AF67: 156555 | AG67: 0 | AH67: 167510 | AI67: 0 | AJ67: 164260 | AK67: 0 | AL67: 139416 | AM67: 0 | AN67: 141584 | AS67: 0 | AT67: 278660.6 | AU67: 671805.27 | AV67: 0 | AW67: -44542.05 | AX67: 616631.49 | AY67: 0 | AZ67: 1589609.95 | BA67: 610178.98 | BB67: 0 | BC67: 3131658.96 | BD67: 958103.29 | BE67: 681155 | BF67: 1199838.66 | BG67: 940074.06 | BH67: 685 | BI67: 2199802.75 | BJ67: 968794.1 | BK67: 75545 | BL67: 1128403.1 | BM67: 1017120.17 | BN67: 0 | BO67: 1161263.24 | BP67: 945597.28 | BQ67: 0 | BR67: 1380558.6 | BS67: 925460.47 | BT67: -17330115 | BU67: 2009335.75
A68: 205 | B68: 13 | C68: 00 | D68: 000 | E68: 002 | F68: 000 | I68: 000-014-0003 | J68: Carga Embarcada Para La Exportación Aérea | K68: Kilogramo | L68: 86739745 | M68: -57447667 | N68: 29292078 | O68: 21105251 | P68: 0.7205105421 | Q68: 591375 | R68: 591375 | S68: 191683.5 | T68: 0.324131896 | U68: -57447667 | V68: 0 | W68: 0 | X68: 4174492 | Y68: 0 | Z68: 1927292 | AA68: 0 | AB68: 2000521 | AC68: 0 | AD68: 2155498 | AE68: 0 | AF68: 2106840 | AG68: 0 | AH68: 2370796 | AI68: 0 | AJ68: 1876306 | AK68: 0 | AL68: 1956123 | AM68: 0 | AN68: 2537383 | AS68: 0 | AT68: 0 | AV68: 0 | AW68: 0 | AY68: 0 | AZ68: 0 | BB68: 0 | BC68: 1207.5 | BE68: 0 | BF68: 0 | BH68: 0 | BI68: 101476 | BK68: 0 | BL68: 0 | BN68: 0 | BO68: 89000 | BQ68: 0 | BR68: 0 | BT68: 0 | BU68: 0
A69: 205 | B69: 13 | C69: 00 | D69: 000 | E69: 002 | F69: 000 | I69: 000-014-0004 | J69: Carga Desembarcada Para La Importación Aérea | K69: Kilogramo | L69: 33930296 | M69: -9383660 | N69: 24546636 | O69: 20134621 | P69: 0.8202598922 | Q69: 264205 | R69: 264205 | S69: 0 | T69: 0 | U69: -9383660 | V69: 0 | W69: 0 | X69: 3806607 | Y69: 0 | Z69: 2167626 | AA69: 0 | AB69: 1900453 | AC69: 0 | AD69: 2031356 | AE69: 0 | AF69: 1976731 | AG69: 0 | AH69: 2071946 | AI69: 0 | AJ69: 2130158 | AK69: 0 | AL69: 1902426 | AM69: 0 | AN69: 2147318 | AS69: 0 | AT69: 0 | AV69: 0 | AW69: 0 | AY69: 0 | AZ69: 0 | BB69: 0 | BC69: 0 | BE69: 0 | BF69: 0 | BH69: 0 | BI69: 0 | BK69: 0 | BL69: 0 | BN69: 0 | BO69: 0 | BQ69: 0 | BR69: 0 | BT69: 0 | BU69: 0
A70: 205 | B70: 13 | C70: 00 | D70: 000 | E70: 002 | F70: 000 | I70: 000-014-0005 | J70: Aeronaves Con Inspección Técnica | K70: Aeronave | L70: 297 | M70: 234 | N70: 531 | O70: 397 | P70: 0.747645951 | Q70: 206100 | R70: 206100 | S70: 0 | T70: 0 | U70: 234 | V70: 0 | W70: 0 | X70: 72 | Y70: 0 | Z70: 42 | AA70: 0 | AB70: 35 | AC70: 0 | AD70: 43 | AE70: 0 | AF70: 31 | AG70: 0 | AH70: 47 | AI70: 0 | AJ70: 37 | AK70: 0 | AL70: 35 | AM70: 0 | AN70: 55 | AS70: 0 | AT70: 0 | AV70: 0 | AW70: 0 | AY70: 0 | AZ70: 0 | BB70: 0 | BC70: 0 | BE70: 0 | BF70: 0 | BH70: 0 | BI70: 0 | BK70: 0 | BL70: 0 | BN70: 0 | BO70: 0 | BQ70: 0 | BR70: 0 | BT70: 0 | BU70: 0
A71: 205 | B71: 13 | C71: 00 | D71: 000 | E71: 002 | F71: 000 | I71: 000-014-0006 | J71: Aeronaves Nacionales Y Extranjeras Con Certificado De Matrícula Autorizada Y Renovada | K71: Aeronave | L71: 135 | M71: 75 | N71: 210 | O71: 134 | P71: 0.6380952381 | Q71: 250275 | R71: 250275 | S71: 0 | T71: 0 | U71: 75 | V71: 0 | W71: 0 | X71: 24 | Y71: 0 | Z71: 12 | AA71: 0 | AB71: 6 | AC71: 0 | AD71: 14 | AE71: 0 | AF71: 17 | AG71: 0 | AH71: 13 | AI71: 0 | AJ71: 15 | AK71: 0 | AL71: 12 | AM71: 0 | AN71: 21 | AS71: 0 | AT71: 0 | AV71: 0 | AW71: 0 | AY71: 0 | AZ71: 0 | BB71: 0 | BC71: 0 | BE71: 0 | BF71: 0 | BH71: 0 | BI71: 0 | BK71: 0 | BL71: 0 | BN71: 0 | BO71: 0 | BQ71: 0 | BR71: 0 | BT71: 0 | BU71: 0
A72: 205 | B72: 13 | C72: 00 | D72: 000 | E72: 002 | F72: 000 | I72: 000-014-0007 | J72: Aeronaves Con Servicios De Pernocte En Rampa Internacional Del Aeropuerto | K72: Aeronave | L72: 1244 | M72: 3556 | N72: 4800 | O72: 3966 | P72: 0.82625 | Q72: 179825 | R72: 179825 | S72: 0 | T72: 0 | U72: 3556 | V72: 0 | W72: 0 | X72: 800 | Y72: 0 | Z72: 400 | AA72: 0 | AB72: 400 | AC72: 0 | AD72: 400 | AE72: 0 | AF72: 366 | AG72: 0 | AH72: 400 | AI72: 0 | AJ72: 400 | AK72: 0 | AL72: 400 | AM72: 0 | AN72: 400 | AS72: 0 | AT72: 0 | AV72: 0 | AW72: 0 | AY72: 0 | AZ72: 0 | BB72: 0 | BC72: 0 | BE72: 0 | BF72: 0 | BH72: 0 | BI72: 0 | BK72: 0 | BL72: 0 | BN72: 0 | BO72: 0 | BQ72: 0 | BR72: 0 | BT72: 0 | BU72: 0
A73: 205 | B73: 13 | C73: 00 | D73: 000 | E73: 003 | F73: 000 | G73: 000-016 | H73: Aeronaves Con Servicios Operativos De Aviación Y Soporte Técnico | K73: Aeronave | L73: 84696 | M73: 15562 | N73: 100258 | O73: 80405 | P73: 0.8019808893 | Q73: 13660761 | R73: 13660761 | S73: 10149041.82 | T73: 0.7429338541 | U73: 15562 | V73: 0 | W73: 0 | X73: 15924 | Y73: 0 | Z73: 8165 | AA73: 0 | AB73: 8164 | AC73: 0 | AD73: 7875 | AE73: 0 | AF73: 7716 | AG73: 0 | AH73: 7869 | AI73: 0 | AJ73: 7693 | AK73: 0 | AL73: 8235 | AM73: 0 | AN73: 8764 | AO73: 0 | AP73: 0 | AQ73: 0 | AR73: 0 | AS73: 0 | AT73: 0 | AU73: 954371 | AV73: 0 | AW73: 0 | AX73: 920637.93 | AY73: 0 | AZ73: 0 | BA73: 941465.52 | BB73: 0 | BC73: 0 | BD73: 907500 | BE73: 0 | BF73: 0 | BG73: 910500 | BH73: 0 | BI73: 0 | BJ73: 1094047.28 | BK73: 0 | BL73: 0 | BM73: 1069660 | BN73: 0 | BO73: 0 | BP73: 1069660 | BQ73: 0 | BR73: 0 | BS73: 1165193.42 | BT73: 0 | BU73: 1116006.67
A74: 205 | B74: 13 | C74: 00 | D74: 000 | E74: 003 | F74: 000 | I74: 000-016-0001 | J74: Aeronaves Con Servicios Operativos De Aviación Y Soporte Técnico | K74: Aeronave | L74: 84696 | M74: 15562 | N74: 100258 | O74: 80405 | P74: =+O74/N74 -> 0.8019808893 | Q74: 13660761 | R74: 13660761 | S74: 10149041.82 | T74: =+S74/R74 -> 0.7429338541 | U74: 15562 | V74: 0 | W74: 0 | X74: 15924 | Y74: 0 | Z74: 8165 | AA74: 0 | AB74: 8164 | AC74: 0 | AD74: 7875 | AE74: 0 | AF74: 7716 | AG74: 0 | AH74: 7869 | AI74: 0 | AJ74: 7693 | AK74: 0 | AL74: 8235 | AM74: 0 | AN74: 8764 | AS74: 0 | AT74: 0 | AU74: 954371 | AV74: 0 | AW74: 0 | AX74: 920637.93 | AY74: 0 | AZ74: 0 | BA74: 941465.52 | BB74: 0 | BC74: 0 | BD74: 907500 | BE74: 0 | BF74: 0 | BG74: 910500 | BH74: 0 | BI74: 0 | BJ74: 1094047.28 | BK74: 0 | BL74: 0 | BM74: 1069660 | BN74: 0 | BO74: 0 | BP74: 1069660 | BQ74: 0 | BR74: 0 | BS74: 1165193.42 | BT74: 0 | BU74: 1116006.67
A75: 205 | B75: 13 | C75: 00 | D75: 000 | E75: 004 | F75: 000 | G75: 000-017 | H75: Infraestructura De La Red Aeroportuaria Nacional Con Servicios De Mantenimiento | K75: Metro cuadrado | L75: 728874 | M75: -613759 | N75: 115115 | O75: 95139 | P75: 0.826469183 | Q75: 16133540 | R75: 16491995 | S75: 4026104.46 | T75: 0.2441247684 | U75: -613759 | V75: 0 | W75: 0 | X75: 19138 | Y75: 0 | Z75: 10030 | AA75: 0 | AB75: 9859 | AC75: 0 | AD75: 9790 | AE75: 0 | AF75: 10555 | AG75: 0 | AH75: 8909 | AI75: 0 | AJ75: 9461 | AK75: 0 | AL75: 8264 | AM75: 0 | AN75: 9133 | AO75: 0 | AP75: 0 | AQ75: 0 | AR75: 0 | AS75: 0 | AT75: 76391.45 | AU75: 0 | AV75: 0 | AW75: 27592.33 | AX75: 0 | AY75: 0 | AZ75: 55294.94 | BA75: 0 | BB75: 0 | BC75: 57743.13 | BD75: 0 | BE75: 0 | BF75: 46394.12 | BG75: 0 | BH75: 0 | BI75: 867153.4 | BK75: 5955 | BL75: 517129.15 | BN75: 0 | BO75: 577981.64 | BQ75: 0 | BR75: 830050.07 | BS75: 0 | BT75: 352500 | BU75: 970374.23
A76: 205 | B76: 13 | C76: 00 | D76: 000 | E76: 004 | F76: 000 | I76: 000-017-0001 | J76: Infraestructura De La Red Aeroportuaria Nacional Con Servicios De Mantenimiento | K76: Metro cuadrado | L76: 728874 | M76: -613759 | N76: 115115 | O76: 95139 | P76: 0.826469183 | Q76: 16133540 | R76: 16491995 | S76: 4026104.46 | T76: 0.2441247684 | U76: -613759 | V76: 0 | W76: 0 | X76: 19138 | Y76: 0 | Z76: 10030 | AA76: 0 | AB76: 9859 | AC76: 0 | AD76: 9790 | AE76: 0 | AF76: 10555 | AG76: 0 | AH76: 8909 | AI76: 0 | AJ76: 9461 | AK76: 0 | AL76: 8264 | AM76: 0 | AN76: 9133 | AS76: 0 | AT76: 76391.45 | AV76: 0 | AW76: 27592.33 | AY76: 0 | AZ76: 55294.94 | BB76: 0 | BC76: 57743.13 | BE76: 0 | BF76: 46394.12 | BH76: 0 | BI76: 867153.4 | BK76: 5955 | BL76: 517129.15 | BN76: 0 | BO76: 577981.64 | BQ76: 0 | BR76: 830050.07 | BT76: 352500 | BU76: 970374.23
A77: 206 | B77: 14 | C77: 00 | D77: 000 | E77: 001 | F77: 000 | G77: 000-018 | H77: Dirección Y Coordinación | K77: Evento | L77: 233 | M77: -82 | N77: 151 | O77: 117 | P77: 0.7748344371 | Q77: 214756462 | R77: 80760750 | S77: 52120673.21 | T77: 0.6453713371 | U77: -45 | V77: 0 | W77: 0 | X77: 0 | Y77: 0 | Z77: 0 | AA77: 0 | AB77: 0 | AC77: 0 | AD77: 107 | AE77: 0 | AF77: 1 | AG77: 12 | AH77: 0 | AI77: -49 | AJ77: 1 | AK77: 0 | AL77: 8 | AM77: 0 | AN77: 0 | AO77: 0 | AP77: 0 | AQ77: 0 | AR77: 0 | AS77: -110908161 | AT77: 17223313.28 | AU77: 1346016.95 | AV77: 0 | AW77: 12281.97 | AX77: 1047433.02 | AY77: 0 | AZ77: 275226.58 | BA77: 1072920.26 | BB77: 0 | BC77: 380324.19 | BD77: 1149604.34 | BE77: 0 | BF77: 176913.58 | BG77: 1202751.2 | BH77: 0 | BI77: 505806.71 | BJ77: 1202349.98 | BK77: 0 | BL77: 2499697.75 | BM77: 1271386.03 | BN77: 0 | BO77: 744952.29 | BP77: 1265082.06 | BQ77: -23087551 | BR77: 11087493.72 | BS77: 1435773.22 | BT77: 0 | BU77: 8221346.08
A78: 206 | B78: 14 | C78: 00 | D78: 000 | E78: 001 | F78: 000 | I78: 000-018-0001 | J78: Dirección Y Coordinación | K78: Evento | L78: 117 | M78: 0 | N78: 117 | O78: 117 | P78: 1 | Q78: 28177916 | R78: 27927916 | S78: 16152652.03 | T78: 0.5783694004 | U78: 0 | V78: 0 | W78: 0 | X78: 0 | Y78: 0 | Z78: 0 | AA78: 0 | AB78: 0 | AC78: 0 | AD78: 107 | AE78: 0 | AF78: 1 | AG78: 0 | AH78: 0 | AI78: 0 | AJ78: 1 | AK78: 0 | AL78: 8 | AM78: 0 | AN78: 0 | AS78: 0 | AT78: 131568.69 | AU78: 1346016.95 | AV78: 0 | AW78: 12281.97 | AX78: 1047433.02 | AY78: 0 | AZ78: 275226.58 | BA78: 1072920.26 | BB78: 0 | BC78: 380324.19 | BD78: 1149604.34 | BE78: 0 | BF78: 176913.58 | BG78: 1202751.2 | BH78: 0 | BI78: 505806.71 | BJ78: 1202349.98 | BK78: 0 | BL78: 243811.16 | BM78: 1271386.03 | BN78: 0 | BO78: 744952.29 | BP78: 1265082.06 | BQ78: -250000 | BR78: 746293.72 | BS78: 1435773.22 | BT78: 0 | BU78: 1942156.08
A79: 206 | B79: 14 | C79: 00 | D79: 000 | E79: 001 | F79: 000 | I79: 000-018-0002 | J79: Población Estudiantil Beneficiada Con Equipo Educacional | K79: Persona | L79: 10354 | M79: 11491 | N79: 21845 | O79: 21845 | P79: 1 | Q79: 5100000 | R79: 16620390 | S79: 16620390 | T79: 1 | U79: 11491 | V79: 0 | W79: 0 | X79: 0 | Y79: 0 | Z79: 0 | AA79: 0 | AB79: 0 | AC79: 0 | AD79: 21845 | AE79: 0 | AF79: 0 | AG79: 0 | AH79: 0 | AI79: 0 | AJ79: 0 | AK79: 0 | AL79: 0 | AM79: 0 | AN79: 0 | AS79: 11520390 | AT79: 0 | AV79: 0 | AW79: 0 | AY79: 0 | AZ79: 0 | BB79: 0 | BC79: 0 | BE79: 0 | BF79: 0 | BH79: 0 | BI79: 0 | BK79: 0 | BL79: 0 | BN79: 0 | BO79: 0 | BQ79: 0 | BR79: 10341200 | BT79: 0 | BU79: 6279190
A80: 206 | B80: 14 | C80: 00 | D80: 000 | E80: 001 | F80: 000 | I80: 000-018-0003 | J80: Remozamiento De Edificios Públicos | K80: Evento | L80: 116 | M80: -82 | N80: 34 | O80: 0 | P80: 0 | Q80: 181478546 | R80: 36212444 | S80: 19347631.18 | T80: 0.5342812868 | U80: -45 | V80: 0 | W80: 0 | X80: 0 | Y80: 0 | Z80: 0 | AA80: 0 | AB80: 0 | AC80: 0 | AD80: 0 | AE80: 0 | AF80: 0 | AG80: 12 | AH80: 0 | AI80: -49 | AJ80: 0 | AK80: 0 | AL80: 0 | AM80: 0 | AN80: 0 | AS80: -122428551 | AT80: 17091744.59 | AV80: 0 | AW80: 0 | AY80: 0 | AZ80: 0 | BB80: 0 | BC80: 0 | BE80: 0 | BF80: 0 | BH80: 0 | BI80: 0 | BK80: 0 | BL80: 2255886.59 | BN80: 0 | BO80: 0 | BQ80: -22837551 | BR80: 0 | BT80: 0 | BU80: 0
A81: 206 | B81: 94 | C81: 11 | D81: 000 | E81: 001 | F81: 000 | G81: 000-048 | H81: Intervenciones Realizadas Para La Atención De Daños Provocados Por Depresión Tropical Eta | K81: Documento | L81: 0 | M81: 27 | N81: 27 | O81: 0 | P81: 0 | Q81: 0 | R81: 12300957 | S81: 1966086.03 | T81: 0.159831957 | U81: 27 | V81: 0 | W81: 0 | X81: 0 | Y81: 0 | Z81: 0 | AA81: 0 | AB81: 0 | AC81: 0 | AD81: 0 | AE81: 0 | AF81: 0 | AG81: 0 | AH81: 0 | AI81: 0 | AJ81: 0 | AK81: 0 | AL81: 0 | AM81: 0 | AN81: 0 | AO81: 0 | AP81: 0 | AQ81: 0 | AR81: 0 | AS81: 12300957 | AT81: 1451876.2 | AU81: 0 | AV81: 0 | AW81: 0 | AY81: 0 | AZ81: 0 | BB81: 0 | BC81: 0 | BE81: 0 | BF81: 0 | BH81: 0 | BI81: 0 | BK81: 0 | BL81: 0 | BN81: 0 | BO81: 0 | BQ81: 0 | BR81: 514209.83 | BS81: 0 | BT81: 0 | BU81: 0
A82: 206 | B82: 94 | C82: 11 | D82: 000 | E82: 001 | F82: 000 | I82: 000-048-0002 | J82: Remozamiento De Edificios Públicos Para La Atención De Daños Provocados Por Depresiones Tropicales | K82: Evento | L82: 0 | M82: 27 | N82: 27 | O82: 0 | P82: 0 | Q82: 0 | R82: 12300957 | S82: 1966086.03 | T82: 0.159831957 | U82: 27 | V82: 0 | W82: 0 | X82: 0 | Y82: 0 | Z82: 0 | AA82: 0 | AB82: 0 | AC82: 0 | AD82: 0 | AE82: 0 | AF82: 0 | AG82: 0 | AH82: 0 | AI82: 0 | AJ82: 0 | AK82: 0 | AL82: 0 | AM82: 0 | AN82: 0 | AS82: 12300957 | AT82: 1451876.2 | AV82: 0 | AW82: 0 | AY82: 0 | AZ82: 0 | BB82: 0 | BC82: 0 | BE82: 0 | BF82: 0 | BH82: 0 | BI82: 0 | BK82: 0 | BL82: 0 | BN82: 0 | BO82: 0 | BQ82: 0 | BR82: 514209.83 | BT82: 0 | BU82: 0
A83: 206 | B83: 94 | C83: 14 | D83: 000 | E83: 001 | F83: 000 | G83: 000-049 | H83: Intervenciones Realizadas Para La Atención De La Emergencia Por Época Lluviosa, Temporada Ciclónica Y Sistema De Baja Presión | K83: Documento | L83: 0 | M83: 2 | N83: 2 | O83: 0 | P83: 0 | Q83: 0 | R83: 330983 | S83: 0 | T83: 0 | U83: 2 | V83: 0 | W83: 0 | X83: 0 | Y83: 0 | Z83: 0 | AA83: 0 | AB83: 0 | AC83: 0 | AD83: 0 | AE83: 0 | AF83: 0 | AG83: 0 | AH83: 0 | AI83: 0 | AJ83: 0 | AK83: 0 | AL83: 0 | AM83: 0 | AS83: 330983 | AT83: 0 | AU83: 0 | AV83: 0 | AW83: 0 | AY83: 0 | AZ83: 0 | BB83: 0 | BC83: 0 | BE83: 0 | BF83: 0 | BH83: 0 | BI83: 0 | BK83: 0 | BL83: 0 | BN83: 0 | BO83: 0 | BQ83: 0 | BR83: 0 | BS83: 0 | BT83: 0 | BU83: 0
A84: 206 | B84: 94 | C84: 14 | D84: 000 | E84: 001 | F84: 000 | I84: 000-049-0001 | J84: Intervenciones Realizadas Para La Atención De La Emergencia Por Época Lluviosa, Temporada Ciclónica Y Sistema De Baja Presión | K84: Documento | L84: 0 | M84: 2 | N84: 2 | O84: 0 | P84: 0 | Q84: 0 | R84: 330983 | S84: 0 | T84: 0 | U84: 2 | V84: 0 | W84: 0 | X84: 0 | Y84: 0 | Z84: 0 | AA84: 0 | AB84: 0 | AC84: 0 | AD84: 0 | AE84: 0 | AF84: 0 | AG84: 0 | AH84: 0 | AI84: 0 | AJ84: 0 | AK84: 0 | AL84: 0 | AM84: 0 | AN84: 0 | AS84: 330983 | AT84: 0 | AV84: 0 | AW84: 0 | AY84: 0 | AZ84: 0 | BB84: 0 | BC84: 0 | BE84: 0 | BF84: 0 | BH84: 0 | BI84: 0 | BK84: 0 | BL84: 0 | BN84: 0 | BO84: 0 | BQ84: 0 | BR84: 0 | BT84: 0 | BU84: 0
A85: 206 | B85: 94 | C85: 15 | D85: 000 | E85: 001 | F85: 000 | G85: 000-050 | H85: Intervenciones Realizadas Para La Atención De La Emergencia Provocada Por Los Efectos De La Época Lluviosa Y El Ciclón Tropical Julia | K85: Documento | L85: 0 | M85: 16 | N85: 16 | O85: 0 | P85: 0 | Q85: 0 | R85: 3276221 | S85: 0 | T85: 0 | U85: 16 | V85: 0 | W85: 0 | X85: 0 | Y85: 0 | Z85: 0 | AA85: 0 | AB85: 0 | AC85: 0 | AD85: 0 | AE85: 0 | AF85: 0 | AG85: 0 | AH85: 0 | AI85: 0 | AJ85: 0 | AK85: 0 | AL85: 0 | AM85: 0 | AN85: 0 | AS85: 3276221 | AT85: 0 | AU85: 0 | AV85: 0 | AW85: 0 | AY85: 0 | AZ85: 0 | BB85: 0 | BC85: 0 | BE85: 0 | BF85: 0 | BH85: 0 | BI85: 0 | BK85: 0 | BL85: 0 | BN85: 0 | BO85: 0 | BQ85: 0 | BR85: 0 | BS85: 0 | BT85: 0 | BU85: 0
A86: 206 | B86: 94 | C86: 15 | D86: 000 | E86: 001 | F86: 000 | I86: 000-050-0001 | J86: Intervenciones Realizadas Para La Atención De La Emergencia Provocada Por Los Efectos De La Época Lluviosa Y El Ciclón Tropical Julia | K86: Documento | L86: 0 | M86: 16 | N86: 16 | O86: 0 | P86: 0 | Q86: 0 | R86: 3276221 | S86: 0 | T86: 0 | U86: 16 | V86: 0 | W86: 0 | X86: 0 | Y86: 0 | Z86: 0 | AA86: 0 | AB86: 0 | AC86: 0 | AD86: 0 | AE86: 0 | AF86: 0 | AG86: 0 | AH86: 0 | AI86: 0 | AJ86: 0 | AK86: 0 | AL86: 0 | AM86: 0 | AN86: 0 | AS86: 3276221 | AT86: 0 | AV86: 0 | AW86: 0 | AY86: 0 | AZ86: 0 | BB86: 0 | BC86: 0 | BE86: 0 | BF86: 0 | BH86: 0 | BI86: 0 | BK86: 0 | BL86: 0 | BN86: 0 | BO86: 0 | BQ86: 0 | BR86: 0 | BT86: 0 | BU86: 0
A87: 206 | B87: 94 | C87: 16 | D87: 000 | E87: 001 | F87: 000 | G87: 000-053 | H87: Intervenciones Realizadas Para La Atención De Daños Y Efectos Causados Por El Alto Índice De Lluvias Y Saturación Actual De Los Suelos En El Territorio Nacional (Dg 2-2024) | K87: Documento | L87: 0 | M87: 35 | N87: 35 | O87: 9 | P87: 0.2571428571 | Q87: 0 | R87: 20000000 | S87: 4984577.46 | T87: 0.249228873 | U87: 0 | V87: 0 | W87: 0 | X87: 0 | Y87: 0 | Z87: 0 | AA87: 0 | AB87: 0 | AC87: 0 | AD87: 0 | AE87: 0 | AF87: 0 | AG87: 35 | AH87: 0 | AI87: 0 | AJ87: 0 | AK87: 0 | AL87: 9 | AM87: 0 | AN87: 0 | AO87: 0 | AP87: 0 | AQ87: 0 | AR87: 0 | AS87: 0 | AT87: 0 | AU87: 0 | AV87: 0 | AW87: 0 | AY87: 0 | AZ87: 0 | BB87: 0 | BC87: 0 | BE87: 0 | BF87: 0 | BG87: 0 | BH87: 0 | BI87: 0 | BJ87: 0 | BK87: 20000000 | BL87: 0 | BM87: 0 | BN87: 0 | BO87: 1661525.82 | BP87: 0 | BQ87: 0 | BR87: 3323051.64 | BS87: 0 | BT87: 0 | BU87: 0
A88: 206 | B88: 94 | C88: 16 | D88: 000 | E88: 001 | F88: 000 | I88: 000-053-0001 | J88: Intervenciones Realizadas Para La Atención De Daños Y Efectos Causados Por El Alto Índice De Lluvias Y Saturación Actual De Los Suelos En El Territorio Nacional (Dg 2-2024) | K88: Documento | L88: 0 | M88: 35 | N88: 35 | O88: 9 | P88: 0.2571428571 | Q88: 0 | R88: 20000000 | S88: 4984577.46 | T88: 0.249228873 | U88: 0 | V88: 0 | W88: 0 | X88: 0 | Y88: 0 | Z88: 0 | AA88: 0 | AB88: 0 | AC88: 0 | AD88: 0 | AE88: 0 | AF88: 0 | AG88: 35 | AH88: 0 | AI88: 0 | AJ88: 0 | AK88: 0 | AL88: 9 | AM88: 0 | AN88: 0 | AS88: 0 | AT88: 0 | AV88: 0 | AW88: 0 | AY88: 0 | AZ88: 0 | BB88: 0 | BC88: 0 | BE88: 0 | BF88: 0 | BH88: 0 | BI88: 0 | BK88: 20000000 | BL88: 0 | BN88: 0 | BO88: 1661525.82 | BQ88: 0 | BR88: 3323051.64 | BT88: 0 | BU88: 0
A89: 207 | B89: 15 | C89: 00 | D89: 000 | E89: 001 | F89: 000 | G89: 000-019 | H89: Dirección Y Coordinación | K89: Evento | L89: 233 | M89: -110 | N89: 123 | O89: 119 | P89: 0.9674796748 | Q89: 8687812 | R89: 8742895 | S89: 6626326.04 | T89: 0.7579098274 | U89: 0 | V89: 75 | W89: 0 | X89: 1 | Y89: 0 | Z89: 5 | AA89: 0 | AB89: 0 | AC89: 0 | AD89: 9 | AE89: 0 | AF89: 0 | AG89: -110 | AH89: 0 | AI89: 0 | AJ89: 0 | AK89: 0 | AL89: 0 | AM89: 0 | AN89: 29 | AO89: 0 | AP89: 0 | AQ89: 0 | AR89: 0 | AS89: 0 | AT89: 38837.05 | AU89: 450734.42 | AV89: 0 | AW89: 363531.05 | AX89: 408731.97 | AY89: -330173 | AZ89: 168186.39 | BA89: 410274.79 | BB89: 0 | BC89: 174037.67 | BD89: 490261 | BE89: 0 | BF89: 52886.39 | BG89: 445561 | BH89: 0 | BI89: 156734.5 | BJ89: 465294.34 | BK89: 98028 | BL89: 177556.45 | BM89: 497695.52 | BN89: 0 | BO89: 164516.8 | BP89: 487811 | BQ89: 287228 | BR89: 98122.96 | BS89: 477993.46 | BT89: 0 | BU89: 1097559.28
A90: 207 | B90: 15 | C90: 00 | D90: 000 | E90: 001 | F90: 000 | I90: 000-019-0001 | J90: Dirección Y Coordinación | K90: Evento | L90: 233 | M90: -110 | N90: 123 | O90: 119 | P90: 0.9674796748 | Q90: 8687812 | R90: 8742895 | S90: 6626326.04 | T90: 0.7579098274 | U90: 0 | V90: 75 | W90: 0 | X90: 1 | Y90: 0 | Z90: 5 | AA90: 0 | AB90: 0 | AC90: 0 | AD90: 9 | AE90: 0 | AF90: 0 | AG90: -110 | AH90: 0 | AI90: 0 | AJ90: 0 | AK90: 0 | AL90: 0 | AM90: 0 | AN90: 29 | AS90: 0 | AT90: 38837.05 | AU90: 450734.42 | AV90: 0 | AW90: 363531.05 | AX90: 408731.97 | AY90: -330173 | AZ90: 168186.39 | BA90: 410274.79 | BB90: 0 | BC90: 174037.67 | BD90: 490261 | BE90: 0 | BF90: 52886.39 | BG90: 445561 | BH90: 0 | BI90: 156734.5 | BJ90: 465294.34 | BK90: 98028 | BL90: 177556.45 | BM90: 497695.52 | BN90: 0 | BO90: 164516.8 | BP90: 487811 | BQ90: 287228 | BR90: 98122.96 | BS90: 477993.46 | BT90: 0 | BU90: 1097559.28
A91: 207 | B91: 15 | C91: 00 | D91: 000 | E91: 002 | F91: 000 | G91: 000-020 | H91: Personas Individuales Y Jurídicas Registradas En Radiodifusión Y Televisión | K91: Persona | L91: 997 | M91: -123 | N91: 874 | O91: 804 | P91: 0.9199084668 | Q91: 2150172 | R91: 2492776 | S91: 1955142.01 | T91: 0.7843231843 | U91: 0 | V91: 100 | W91: 0 | X91: 100 | Y91: 0 | Z91: 85 | AA91: 0 | AB91: 65 | AC91: 0 | AD91: 66 | AE91: 0 | AF91: 103 | AG91: 0 | AH91: 85 | AI91: 0 | AJ91: 76 | AK91: -70 | AL91: 54 | AM91: -53 | AN91: 70 | AO91: 0 | AP91: 0 | AQ91: 0 | AR91: 0 | AS91: 0 | AT91: 11850 | AU91: 156796.89 | AV91: 0 | AW91: 0 | AX91: 179211.75 | AY91: 298209 | AZ91: 9648 | BA91: 170056.52 | BB91: 0 | BC91: 20156.57 | BD91: 169842.41 | BE91: 0 | BF91: 0 | BG91: 173478.22 | BH91: 0 | BI91: 627.5 | BJ91: 325358.58 | BK91: 0 | BL91: 4381.63 | BM91: 170025.76 | BN91: 0 | BO91: 0 | BP91: 170096.52 | BQ91: 44395 | BR91: 35225 | BS91: 170300.86 | BT91: 0 | BU91: 188085.8
A92: 207 | B92: 15 | C92: 00 | D92: 000 | E92: 002 | F92: 000 | I92: 000-020-0003 | J92: Comerciales Registrados De Personas Jurídicas O Individuales | K92: Persona | L92: 790 | M92: -123 | N92: 667 | O92: 622 | P92: 0.9325337331 | Q92: 2055172 | R92: 2370681 | S92: 1855939.03 | T92: 0.7828716854 | U92: 0 | V92: 80 | W92: 0 | X92: 80 | Y92: 0 | Z92: 65 | AA92: 0 | AB92: 45 | AC92: 0 | AD92: 55 | AE92: 0 | AF92: 83 | AG92: 0 | AH92: 70 | AI92: 0 | AJ92: 61 | AK92: -70 | AL92: 33 | AM92: -53 | AN92: 50 | AS92: 0 | AT92: 0 | AU92: 156796.89 | AV92: 0 | AW92: 0 | AX92: 179211.75 | AY92: 320209 | AZ92: 0 | BA92: 170056.52 | BB92: 0 | BC92: 0 | BD92: 169842.41 | BE92: 0 | BF92: 0 | BG92: 173478.22 | BH92: 0 | BI92: 0 | BJ92: 325358.58 | BK92: 0 | BL92: 0 | BM92: 170025.76 | BN92: 0 | BO92: 0 | BP92: 170096.52 | BQ92: -4700 | BR92: 650 | BS92: 170300.86 | BT92: 0 | BU92: 170121.52
A93: 207 | B93: 15 | C93: 00 | D93: 000 | E93: 002 | F93: 000 | I93: 000-020-0004 | J93: Técnicos Con Registro En Radio Y/O Televisión | K93: Persona | L93: 3 | M93: 0 | N93: 3 | O93: 2 | P93: 0.6666666667 | Q93: 45000 | R93: 91938 | S93: 75187.28 | T93: 0.8178041724 | U93: 0 | V93: 0 | W93: 0 | X93: 0 | Y93: 0 | Z93: 0 | AA93: 0 | AB93: 0 | AC93: 0 | AD93: 1 | AE93: 0 | AF93: 0 | AG93: 0 | AH93: 0 | AI93: 0 | AJ93: 0 | AK93: 0 | AL93: 1 | AM93: 0 | AN93: 0 | AS93: 0 | AT93: 11850 | AV93: 0 | AW93: 0 | AY93: -12000 | AZ93: 8148 | BB93: 0 | BC93: 0 | BE93: 0 | BF93: 0 | BH93: 0 | BI93: 0 | BK93: 0 | BL93: 2650 | BN93: 0 | BO93: 0 | BQ93: 58938 | BR93: 34575 | BT93: 0 | BU93: 17964.28
A94: 207 | B94: 15 | C94: 00 | D94: 000 | E94: 002 | F94: 000 | I94: 000-020-0005 | J94: Locutores Registrados En Radio Y/O Televisión | K94: Persona | L94: 204 | M94: 0 | N94: 204 | O94: 180 | P94: 0.8823529412 | Q94: 50000 | R94: 30157 | S94: 24015.7 | T94: 0.7963557383 | U94: 0 | V94: 20 | W94: 0 | X94: 20 | Y94: 0 | Z94: 20 | AA94: 0 | AB94: 20 | AC94: 0 | AD94: 10 | AE94: 0 | AF94: 20 | AG94: 0 | AH94: 15 | AI94: 0 | AJ94: 15 | AK94: 0 | AL94: 20 | AM94: 0 | AN94: 20 | AS94: 0 | AT94: 0 | AV94: 0 | AW94: 0 | AY94: -10000 | AZ94: 1500 | BB94: 0 | BC94: 20156.57 | BE94: 0 | BF94: 0 | BH94: 0 | BI94: 627.5 | BK94: 0 | BL94: 1731.63 | BN94: 0 | BO94: 0 | BQ94: -9843 | BR94: 0 | BT94: 0 | BU94: 0
A95: 207 | B95: 15 | C95: 00 | D95: 000 | E95: 003 | F95: 000 | G95: 000-021 | H95: Servicios De Radiodifusión | K95: Evento | L95: 54998 | M95: 93200 | N95: 148198 | O95: 124880 | P95: 0.8426564461 | Q95: 4708006 | R95: 4862327 | S95: 3579200.18 | T95: 0.7361084888 | U95: 0 | V95: 4611 | W95: 0 | X95: 4626 | Y95: 0 | Z95: 4638 | AA95: 0 | AB95: 4638 | AC95: 0 | AD95: 4653 | AE95: 0 | AF95: 4668 | AG95: 0 | AH95: 4663 | AI95: 93200 | AJ95: 4656 | AK95: 0 | AL95: 76071 | AM95: 0 | AN95: 11656 | AO95: 0 | AP95: 0 | AQ95: 0 | AR95: 0 | AS95: 0 | AT95: 50127.98 | AU95: 196389.29 | AV95: 0 | AW95: 96551.94 | AX95: 196513.51 | AY95: 31964 | AZ95: 44070.15 | BA95: 182299.24 | BB95: 0 | BC95: 299757.54 | BD95: 186306.82 | BE95: 0 | BF95: 21606.54 | BG95: 185057.72 | BH95: 0 | BI95: 289140.56 | BJ95: 297506.21 | BK95: -98028 | BL95: 210050.95 | BM95: 230126.84 | BN95: 0 | BO95: 61902.61 | BP95: 176289.6 | BQ95: 220385 | BR95: 193391.72 | BS95: 218899 | BT95: 0 | BU95: 443211.96
A96: 207 | B96: 15 | C96: 00 | D96: 000 | E96: 003 | F96: 000 | I96: 000-021-0001 | J96: Programas Radiales A Control Remoto Difundidos | K96: Evento | L96: 2818 | M96: 0 | N96: 2818 | O96: 2340 | P96: 0.8303761533 | Q96: 129476 | R96: 86976 | S96: 75872.07 | T96: 0.8723334023 | U96: 0 | V96: 235 | W96: 0 | X96: 225 | Y96: 0 | Z96: 235 | AA96: 0 | AB96: 235 | AC96: 0 | AD96: 235 | AE96: 0 | AF96: 235 | AG96: 0 | AH96: 235 | AI96: 0 | AJ96: 235 | AK96: 0 | AL96: 235 | AM96: 0 | AN96: 235 | AS96: 0 | AT96: 3432.47 | AV96: 0 | AW96: 0 | AY96: -16000 | AZ96: 0 | BB96: 0 | BC96: 31547.69 | BE96: 0 | BF96: 7466.32 | BH96: 0 | BI96: 808 | BK96: 0 | BL96: 7725 | BN96: 0 | BO96: 0 | BQ96: -26500 | BR96: 0 | BT96: 0 | BU96: 24892.59
A97: 207 | B97: 15 | C97: 00 | D97: 000 | E97: 003 | F97: 000 | I97: 000-021-0002 | J97: Programas Radiales Difundidos | K97: Evento | L97: 11880 | M97: 0 | N97: 11880 | O97: 9890 | P97: 0.8324915825 | Q97: 1386359 | R97: 1189147 | S97: 1094495.38 | T97: 0.9204037684 | U97: 0 | V97: 951 | W97: 0 | X97: 976 | Y97: 0 | Z97: 978 | AA97: 0 | AB97: 978 | AC97: 0 | AD97: 993 | AE97: 0 | AF97: 1008 | AG97: 0 | AH97: 1003 | AI97: 0 | AJ97: 996 | AK97: 0 | AL97: 1011 | AM97: 0 | AN97: 996 | AS97: 0 | AT97: 46695.51 | AU97: 196389.29 | AV97: 0 | AW97: 47723.44 | AY97: -80000 | AZ97: 30065.15 | BB97: 0 | BC97: 252967.69 | BE97: 0 | BF97: 4134.86 | BH97: 0 | BI97: 188496.53 | BK97: 0 | BL97: 172801.95 | BN97: 0 | BO97: 46907.11 | BQ97: -117212 | BR97: 25712.44 | BT97: 0 | BU97: 82601.41
A98: 207 | B98: 15 | C98: 00 | D98: 000 | E98: 003 | F98: 000 | I98: 000-021-0003 | J98: Spot Gubernamentales Otorgados A Entidades Públicas | K98: Evento | L98: 40300 | M98: 93200 | N98: 133500 | O98: 112650 | P98: 0.8438202247 | Q98: 3192171 | R98: 3586204 | S98: 2408832.73 | T98: 0.6716942845 | U98: 0 | V98: 3425 | W98: 0 | X98: 3425 | Y98: 0 | Z98: 3425 | AA98: 0 | AB98: 3425 | AC98: 0 | AD98: 3425 | AE98: 0 | AF98: 3425 | AG98: 0 | AH98: 3425 | AI98: 93200 | AJ98: 3425 | AK98: 0 | AL98: 74825 | AM98: 0 | AN98: 10425 | AS98: 0 | AT98: 0 | AV98: 0 | AW98: 48828.5 | AX98: 196513.51 | AY98: 127964 | AZ98: 14005 | BA98: 182299.24 | BB98: 0 | BC98: 15242.16 | BD98: 186306.82 | BE98: 0 | BF98: 10005.36 | BG98: 185057.72 | BH98: 0 | BI98: 99836.03 | BJ98: 297506.21 | BK98: -98028 | BL98: 29524 | BM98: 230126.84 | BN98: 0 | BO98: 14995.5 | BP98: 176289.6 | BQ98: 364097 | BR98: 167679.28 | BS98: 218899 | BT98: 0 | BU98: 335717.96
A99: 208 | B99: 21 | C99: 00 | D99: 000 | E99: 001 | F99: 000 | G99: 000-024 | H99: Dirección Y Coordinación | K99: Evento | L99: 218 | M99: 0 | N99: 218 | O99: 67 | P99: 0.3073394495 | Q99: 8433472 | R99: 10376005 | S99: 4342032.86 | T99: 0.4184686553 | U99: 0 | V99: 45 | W99: 0 | X99: 2 | Y99: 0 | Z99: 1 | AA99: 0 | AB99: 2 | AC99: 0 | AD99: 0 | AE99: 0 | AF99: 1 | AG99: 0 | AH99: 3 | AI99: 0 | AJ99: 3 | AK99: 0 | AL99: 5 | AM99: 0 | AN99: 5 | AO99: 0 | AP99: 0 | AQ99: 0 | AR99: 0 | AS99: 0 | AT99: 27974.27 | AU99: 413760.79 | AV99: 0 | AW99: 16236.5 | AX99: 403776.07 | AY99: 0 | AZ99: 72572 | BA99: 323386.45 | BB99: 0 | BC99: 33079.54 | BD99: 345689.52 | BE99: 33462 | BF99: 118825.59 | BG99: 274925 | BH99: 0 | BI99: 210444.71 | BJ99: 225038.45 | BK99: 0 | BL99: 164881.18 | BM99: 194896.93 | BN99: 0 | BO99: 108524.14 | BP99: 286881.03 | BQ99: 1807945 | BR99: 102171.51 | BS99: 460797.05 | BT99: 101126 | BU99: 558172.13
A100: 208 | B100: 21 | C100: 00 | D100: 000 | E100: 001 | F100: 000 | I100: 000-024-0001 | J100: Dirección Y Coordinación | K100: Evento | L100: 218 | M100: 0 | N100: 218 | O100: 67 | P100: 0.3073394495 | Q100: 8433472 | R100: 10376005 | S100: 4342032.86 | T100: 0.4184686553 | U100: 0 | V100: 45 | W100: 0 | X100: 2 | Y100: 0 | Z100: 1 | AA100: 0 | AB100: 2 | AC100: 0 | AD100: 0 | AE100: 0 | AF100: 1 | AG100: 0 | AH100: 3 | AI100: 0 | AJ100: 3 | AK100: 0 | AL100: 5 | AM100: 0 | AN100: 5 | AS100: 0 | AT100: 27974.27 | AU100: 413760.79 | AV100: 0 | AW100: 16236.5 | AX100: 403776.07 | AY100: 0 | AZ100: 72572 | BA100: 323386.45 | BB100: 0 | BC100: 33079.54 | BD100: 345689.52 | BE100: 33462 | BF100: 118825.59 | BG100: 274925 | BH100: 0 | BI100: 210444.71 | BJ100: 225038.45 | BK100: 0 | BL100: 164881.18 | BM100: 194896.93 | BN100: 0 | BO100: 108524.14 | BP100: 286881.03 | BQ100: 1807945 | BR100: 102171.51 | BS100: 460797.05 | BT100: 101126 | BU100: 558172.13
A101: 208 | B101: 21 | C101: 00 | D101: 000 | E101: 002 | F101: 000 | G101: 000-025 | H101: Empresas De Cable Con Registro Y Supervisión | K101: Entidad | L101: 2958 | M101: 0 | N101: 2958 | O101: 1406 | P101: 0.4753211629 | Q101: 1851395 | R101: 1696307 | S101: 555339.75 | T101: 0.3273816296 | U101: 0 | V101: 162 | W101: 0 | X101: 289 | Y101: 0 | Z101: 232 | AA101: 0 | AB101: 298 | AC101: 0 | AD101: 0 | AE101: 0 | AF101: 99 | AG101: 0 | AH101: 0 | AI101: 0 | AJ101: 0 | AK101: 0 | AL101: 108 | AM101: 0 | AN101: 218 | AS101: 0 | AT101: 3112.5 | AU101: 0 | AV101: 0 | AW101: 80110.5 | AX101: 0 | AY101: 0 | AZ101: 70234 | BA101: 0 | BB101: 0 | BC101: 93905 | BD101: 0 | BE101: -33462 | BF101: 1250.26 | BH101: 0 | BI101: 3905 | BK101: 0 | BL101: 18701 | BN101: 0 | BO101: 9195.5 | BQ101: -20500 | BR101: 47548.29 | BS101: 0 | BT101: -101126 | BU101: 227377.7
A102: 208 | B102: 21 | C102: 00 | D102: 000 | E102: 002 | F102: 000 | I102: 000-025-0001 | J102: Empresas De Cable Con Visitas De Supervisión | K102: Entidad | L102: 2814 | M102: 0 | N102: 2814 | O102: 1344 | P102: 0.4776119403 | Q102: 808467 | R102: 729899 | S102: 429239.75 | T102: 0.5880810222 | U102: 0 | V102: 155 | W102: 0 | X102: 276 | Y102: 0 | Z102: 221 | AA102: 0 | AB102: 286 | AC102: 0 | AD102: 0 | AE102: 0 | AF102: 96 | AG102: 0 | AH102: 0 | AI102: 0 | AJ102: 0 | AK102: 0 | AL102: 100 | AM102: 0 | AN102: 210 | AS102: 0 | AT102: 3112.5 | AV102: 0 | AW102: 80110.5 | AY102: 0 | AZ102: 70234 | BB102: 0 | BC102: 93905 | BE102: -33462 | BF102: 1250.26 | BH102: 0 | BI102: 3905 | BK102: 0 | BL102: 18701 | BN102: 0 | BO102: 9195.5 | BQ102: -20500 | BR102: 47548.29 | BT102: -24606 | BU102: 101277.7
A103: 208 | B103: 21 | C103: 00 | D103: 000 | E103: 002 | F103: 000 | I103: 000-025-0002 | J103: Empresas De Cable Nuevas Con Registro | K103: Entidad | L103: 26 | M103: 0 | N103: 26 | O103: 12 | P103: 0.4615384615 | Q103: 568018 | R103: 825582 | S103: 113350 | T103: 0.1372970825 | U103: 0 | V103: 1 | W103: 0 | X103: 3 | Y103: 0 | Z103: 1 | AA103: 0 | AB103: 2 | AC103: 0 | AD103: 0 | AE103: 0 | AF103: 1 | AG103: 0 | AH103: 0 | AI103: 0 | AJ103: 0 | AK103: 0 | AL103: 1 | AM103: 0 | AN103: 3 | AS103: 0 | AT103: 0 | AV103: 0 | AW103: 0 | AY103: 0 | AZ103: 0 | BB103: 0 | BC103: 0 | BE103: 0 | BF103: 0 | BH103: 0 | BI103: 0 | BK103: 0 | BL103: 0 | BN103: 0 | BO103: 0 | BQ103: 0 | BR103: 0 | BT103: 257564 | BU103: 113350
A104: 208 | B104: 21 | C104: 00 | D104: 000 | E104: 002 | F104: 000 | I104: 000-025-0005 | J104: Empresas Sancionadas Por Incumplimiento A La Ley Del Cable | K104: Entidad | L104: 118 | M104: 0 | N104: 118 | O104: 50 | P104: 0.4237288136 | Q104: 474910 | R104: 140826 | S104: 12750 | T104: 0.09053725874 | U104: 0 | V104: 6 | W104: 0 | X104: 10 | Y104: 0 | Z104: 10 | AA104: 0 | AB104: 10 | AC104: 0 | AD104: 0 | AE104: 0 | AF104: 2 | AG104: 0 | AH104: 0 | AI104: 0 | AJ104: 0 | AK104: 0 | AL104: 7 | AM104: 0 | AN104: 5 | AS104: 0 | AT104: 0 | AV104: 0 | AW104: 0 | AY104: 0 | AZ104: 0 | BB104: 0 | BC104: 0 | BE104: 0 | BF104: 0 | BH104: 0 | BI104: 0 | BK104: 0 | BL104: 0 | BN104: 0 | BO104: 0 | BQ104: 0 | BR104: 0 | BT104: -334084 | BU104: 12750
A105: 209 | B105: 99 | C105: 00 | D105: 000 | E105: 002 | F105: 000 | G105: 000-005 | H105: Personas Jurídicas Beneficiadas Con Aportes Y/O Cuotas Para Comunicaciones | K105: Aporte | L105: 2 | M105: 0 | N105: 2 | O105: 0 | P105: 0 | Q105: 168000 | R105: 523954 | S105: 503843.79 | T105: 0.9616183673 | U105: -2 | V105: 0 | W105: 0 | X105: 0 | Y105: 0 | Z105: 0 | AA105: 0 | AB105: 0 | AC105: 0 | AD105: 0 | AE105: 0 | AF105: 0 | AG105: 0 | AH105: 0 | AI105: 0 | AJ105: 0 | AK105: 0 | AL105: 0 | AM105: 2 | AN105: 0 | AS105: 0 | AT105: 0 | AU105: 0 | AV105: 0 | AW105: 0 | AY105: 0 | AZ105: 0 | BB105: 0 | BC105: 0 | BE105: 315954 | BF105: 0 | BH105: 0 | BI105: 0 | BK105: 0 | BL105: 0 | BN105: 0 | BO105: 0 | BQ105: 40000 | BR105: 503843.79 | BS105: 0 | BT105: 0 | BU105: 0
A106: 209 | B106: 99 | C106: 00 | D106: 000 | E106: 002 | F106: 000 | I106: 000-005-0001 | J106: Personas Jurídicas Beneficiadas Con Aportes Y/O Cuotas Para Comunicaciones | K106: Aporte | L106: 2 | M106: 0 | N106: 2 | O106: 0 | P106: 0 | Q106: 168000 | R106: 523954 | S106: 503843.79 | T106: 0.9616183673 | U106: -2 | V106: 0 | W106: 0 | X106: 0 | Y106: 0 | Z106: 0 | AA106: 0 | AB106: 0 | AC106: 0 | AD106: 0 | AE106: 0 | AF106: 0 | AG106: 0 | AH106: 0 | AI106: 0 | AJ106: 0 | AK106: 0 | AL106: 0 | AM106: 2 | AN106: 0 | AS106: 0 | AT106: 0 | AV106: 0 | AW106: 0 | AY106: 0 | AZ106: 0 | BB106: 0 | BC106: 0 | BE106: 315954 | BF106: 0 | BH106: 0 | BI106: 0 | BK106: 0 | BL106: 0 | BN106: 0 | BO106: 0 | BQ106: 40000 | BR106: 503843.79 | BT106: 0 | BU106: 0
A107: 209 | B107: 99 | C107: 00 | D107: 000 | E107: 003 | F107: 000 | G107: 000-006 | H107: Personas Jurídicas Beneficiadas Con Aportes Y/O Cuotas Para Control Del Medio Ambiente | K107: Aporte | L107: 2 | M107: 0 | N107: 2 | O107: 0 | P107: 0 | Q107: 208000 | R107: 208000 | S107: 116245.95 | T107: 0.5588747596 | U107: -2 | V107: 0 | W107: 0 | X107: 0 | Y107: 0 | Z107: 0 | AA107: 0 | AB107: 0 | AC107: 0 | AD107: 0 | AE107: 0 | AF107: 0 | AG107: 0 | AH107: 0 | AI107: 0 | AJ107: 0 | AK107: 0 | AL107: 0 | AM107: 2 | AN107: 0 | AS107: 0 | AT107: 0 | AU107: 0 | AV107: 0 | AW107: 0 | AY107: 0 | AZ107: 0 | BB107: 0 | BC107: 0 | BE107: 40000 | BF107: 0 | BH107: 0 | BI107: 0 | BK107: 0 | BL107: 116245.95 | BN107: 0 | BO107: 0 | BQ107: -40000 | BR107: 0 | BS107: 0 | BT107: 0 | BU107: 0
A108: 209 | B108: 99 | C108: 00 | D108: 000 | E108: 003 | F108: 000 | I108: 000-006-0001 | J108: Personas Jurídicas Beneficiadas Con Aportes Y/O Cuotas Para Control Del Medio Ambiente | K108: Aporte | L108: 2 | M108: 0 | N108: 2 | O108: 0 | P108: 0 | Q108: 208000 | R108: 208000 | S108: 116245.95 | T108: 0.5588747596 | U108: -2 | V108: 0 | W108: 0 | X108: 0 | Y108: 0 | Z108: 0 | AA108: 0 | AB108: 0 | AC108: 0 | AD108: 0 | AE108: 0 | AF108: 0 | AG108: 0 | AH108: 0 | AI108: 0 | AJ108: 0 | AK108: 0 | AL108: 0 | AM108: 2 | AN108: 0 | AS108: 0 | AT108: 0 | AV108: 0 | AW108: 0 | AY108: 0 | AZ108: 0 | BB108: 0 | BC108: 0 | BE108: 40000 | BF108: 0 | BH108: 0 | BI108: 0 | BK108: 0 | BL108: 116245.95 | BN108: 0 | BO108: 0 | BQ108: -40000 | BR108: 0 | BT108: 0 | BU108: 0
A109: 209 | B109: 16 | C109: 00 | D109: 000 | E109: 001 | F109: 000 | G109: 020-006 | H109: Dirección Y Coordinación | K109: Evento | L109: 850 | M109: -66 | N109: 784 | O109: 629 | P109: 0.8022959184 | Q109: 15193176 | R109: 19157357 | S109: 12477330.95 | T109: 0.6513075342 | U109: -63 | V109: 0 | W109: 0 | X109: 79 | Y109: 0 | Z109: 66 | AA109: 0 | AB109: 66 | AC109: 0 | AD109: 66 | AE109: -3 | AF109: 66 | AG109: 0 | AH109: 66 | AI109: 0 | AJ109: 66 | AK109: 0 | AL109: 77 | AM109: 0 | AN109: 77 | AS109: 0 | AT109: 82637.35 | AU109: 666022.66 | AV109: 0 | AW109: 161436.48 | AX109: 612926 | AY109: 0 | AZ109: 171888.41 | BA109: 589746.93 | BB109: 0 | BC109: 295807.86 | BD109: 597243.5 | BE109: 0 | BF109: 224795.08 | BG109: 607261.18 | BH109: 0 | BI109: 590940.76 | BJ109: 741098.16 | BK109: 1166799 | BL109: 276454 | BM109: 651473.8 | BN109: 0 | BO109: 259192.08 | BP109: 766737.22 | BQ109: 2803996 | BR109: 1597503.39 | BS109: 810389.87 | BT109: -6614 | BU109: 2773776.22
A110: 209 | B110: 16 | C110: 00 | D110: 000 | E110: 001 | F110: 000 | I110: 020-006-0001 | J110: Dirección Y Coordinación | K110: Evento | L110: 850 | M110: -66 | N110: 784 | O110: 629 | P110: 0.8022959184 | Q110: 15193176 | R110: 19157357 | S110: 12477330.95 | T110: 0.6513075342 | U110: -63 | V110: 0 | W110: 0 | X110: 79 | Y110: 0 | Z110: 66 | AA110: 0 | AB110: 66 | AC110: 0 | AD110: 66 | AE110: -3 | AF110: 66 | AG110: 0 | AH110: 66 | AI110: 0 | AJ110: 66 | AK110: 0 | AL110: 77 | AM110: 0 | AN110: 77 | AS110: 0 | AT110: 82637.35 | AU110: 666022.66 | AV110: 0 | AW110: 161436.48 | AX110: 612926 | AY110: 0 | AZ110: 171888.41 | BA110: 589746.93 | BB110: 0 | BC110: 295807.86 | BD110: 597243.5 | BE110: 0 | BF110: 224795.08 | BG110: 607261.18 | BH110: 0 | BI110: 590940.76 | BJ110: 741098.16 | BK110: 1166799 | BL110: 276454 | BM110: 651473.8 | BN110: 0 | BO110: 259192.08 | BP110: 766737.22 | BQ110: 2803996 | BR110: 1597503.39 | BS110: 810389.87 | BT110: -6614 | BU110: 2773776.22
A111: 209 | B111: 16 | C111: 00 | D111: 000 | E111: 002 | F111: 000 | G111: 020-007 | H111: Boletines Con Información Climática | K111: Documento | L111: 16107 | M111: -2308 | N111: 13799 | O111: 11363 | P111: 0.8234654685 | Q111: 14901860 | R111: 13097212 | S111: 8266005.34 | T111: 0.6311270933 | U111: -2294 | V111: 0 | W111: 0 | X111: 2126 | Y111: 0 | Z111: 1143 | AA111: 0 | AB111: 1143 | AC111: 0 | AD111: 1143 | AE111: -14 | AF111: 1145 | AG111: 0 | AH111: 1145 | AI111: 0 | AJ111: 1139 | AK111: 0 | AL111: 1199 | AM111: 0 | AN111: 1180 | AS111: 0 | AT111: 7044.42 | AU111: 761111.55 | AV111: 0 | AW111: 45208.71 | AX111: 775385.03 | AY111: 0 | AZ111: 28706.97 | BA111: 781642.43 | BB111: 0 | BC111: 27674.46 | BD111: 777046.15 | BE111: -355954 | BF111: 59779.77 | BG111: 775659.66 | BH111: 0 | BI111: 42486.78 | BJ111: 961272.63 | BK111: -1442493 | BL111: 73723.65 | BM111: 768063.2 | BN111: 0 | BO111: 36868.72 | BP111: 766434.18 | BQ111: 0 | BR111: -7448.97 | BS111: 747997.8 | BT111: -6201 | BU111: 837348.2
A112: 209 | B112: 16 | C112: 00 | D112: 000 | E112: 002 | F112: 000 | I112: 020-007-0001 | J112: Usuarios Atendidos Con Información Climática | K112: Documento | L112: 12763 | M112: -1222 | N112: 11541 | O112: 9507 | P112: 0.8237587731 | Q112: 14190894 | R112: 12495711 | S112: 8060549.83 | T112: 0.6450653212 | U112: -1208 | V112: 0 | W112: 0 | X112: 1800 | Y112: 0 | Z112: 959 | AA112: 0 | AB112: 959 | AC112: 0 | AD112: 959 | AE112: -14 | AF112: 959 | AG112: 0 | AH112: 959 | AI112: 0 | AJ112: 953 | AK112: 0 | AL112: 986 | AM112: 0 | AN112: 973 | AS112: 0 | AT112: 6643.34 | AU112: 761111.55 | AV112: 0 | AW112: 1273.71 | AX112: 775385.03 | AY112: 0 | AZ112: 20418.95 | BA112: 781642.43 | BB112: 0 | BC112: 28736.79 | BD112: 777046.15 | BE112: -305954 | BF112: 8302.51 | BG112: 775659.66 | BH112: 0 | BI112: 6791.78 | BJ112: 961272.63 | BK112: -1389640 | BL112: 62079.92 | BM112: 768063.2 | BN112: 0 | BO112: 14255.21 | BP112: 766434.18 | BQ112: 0 | BR112: 10650.29 | BS112: 747997.8 | BT112: 411 | BU112: 786784.7
A113: 209 | B113: 16 | C113: 00 | D113: 000 | E113: 002 | F113: 000 | I113: 020-007-0002 | J113: Boletines Emitidos Con Información Meteorológica | K113: Documento | L113: 3344 | M113: -1086 | N113: 2258 | O113: 1856 | P113: 0.8219663419 | Q113: 710966 | R113: 601501 | S113: 205455.51 | T113: 0.3415713523 | U113: -1086 | V113: 0 | W113: 0 | X113: 326 | Y113: 0 | Z113: 184 | AA113: 0 | AB113: 184 | AC113: 0 | AD113: 184 | AE113: 0 | AF113: 186 | AG113: 0 | AH113: 186 | AI113: 0 | AJ113: 186 | AK113: 0 | AL113: 213 | AM113: 0 | AN113: 207 | AS113: 0 | AT113: 401.08 | AV113: 0 | AW113: 43935 | AY113: 0 | AZ113: 8288.02 | BB113: 0 | BC113: -1062.33 | BE113: -50000 | BF113: 51477.26 | BH113: 0 | BI113: 35695 | BK113: -52853 | BL113: 11643.73 | BN113: 0 | BO113: 22613.51 | BQ113: 0 | BR113: -18099.26 | BT113: -6612 | BU113: 50563.5
A114: 209 | B114: 16 | C114: 00 | D114: 000 | E114: 003 | F114: 000 | G114: 020-008 | H114: Información De Amenaza Sísmica Y Volcánica Registrada | K114: Documento | L114: 8100 | M114: 3880 | N114: 11980 | O114: 9361 | P114: 0.7813856427 | Q114: 4918597 | R114: 4777284 | S114: 3457711.02 | T114: 0.7237817597 | U114: 3880 | V114: 0 | W114: 0 | X114: 1403 | Y114: 0 | Z114: 335 | AA114: 0 | AB114: 999 | AC114: 0 | AD114: 999 | AE114: 0 | AF114: 999 | AG114: 0 | AH114: 999 | AI114: 0 | AJ114: 999 | AK114: 0 | AL114: 1314 | AM114: 0 | AN114: 1314 | AO114: 0 | AP114: 0 | AQ114: 0 | AR114: 0 | AS114: 0 | AT114: 0 | AU114: 275098.9 | AV114: 0 | AW114: 18195 | AX114: 283793.48 | AY114: 0 | AZ114: 16442.25 | BA114: 285978.72 | BB114: 0 | BC114: 41784.35 | BD114: 276898.6 | BE114: 0 | BF114: 48980 | BG114: 341439.12 | BH114: 0 | BI114: 42109.95 | BJ114: 333505.27 | BK114: -139650 | BL114: 68811.75 | BM114: 281233.7 | BN114: 0 | BO114: 94061.7 | BP114: 274411.58 | BQ114: 0 | BR114: 10194.9 | BS114: 373541.37 | BT114: -1663 | BU114: 391230.38
A115: 209 | B115: 16 | C115: 00 | D115: 000 | E115: 003 | F115: 000 | I115: 020-008-0001 | J115: Boletines Emitidos Con Información Geológica | K115: Documento | L115: 3872 | M115: 2072 | N115: 5944 | O115: 4780 | P115: 0.8041722746 | Q115: 3746500 | R115: 3583000 | S115: 2604510.04 | T115: 0.7269076305 | U115: 2072 | V115: 0 | W115: 0 | X115: 825 | Y115: 0 | Z115: 309 | AA115: 0 | AB115: 496 | AC115: 0 | AD115: 496 | AE115: 0 | AF115: 496 | AG115: 0 | AH115: 496 | AI115: 0 | AJ115: 496 | AK115: 0 | AL115: 583 | AM115: 0 | AN115: 583 | AS115: 0 | AT115: 0 | AU115: 223706.85 | AV115: 0 | AW115: 0 | AX115: 230777.17 | AY115: 0 | AZ115: 11218.25 | BA115: 232554.18 | BB115: 0 | BC115: 16082.85 | BD115: 225170.34 | BE115: 0 | BF115: 22855 | BG115: 277653.85 | BH115: 0 | BI115: 6633 | BJ115: 271202.15 | BK115: -128500 | BL115: 35145.75 | BM115: 228695.59 | BN115: 0 | BO115: 13028.6 | BP115: 223147.93 | BQ115: 0 | BR115: 8343 | BS115: 303758.99 | BT115: -35000 | BU115: 274536.54
A116: 209 | B116: 16 | C116: 00 | D116: 000 | E116: 003 | F116: 000 | I116: 020-008-0002 | J116: Informes Emitidos Sobre Deslizamiento De Tierra | K116: Documento | L116: 4228 | M116: 1808 | N116: 6036 | O116: 4581 | P116: 0.7589463221 | Q116: 1172097 | R116: 1194284 | S116: 853200.98 | T116: 0.7144037599 | U116: 1808 | V116: 0 | W116: 0 | X116: 578 | Y116: 0 | Z116: 26 | AA116: 0 | AB116: 503 | AC116: 0 | AD116: 503 | AE116: 0 | AF116: 503 | AG116: 0 | AH116: 503 | AI116: 0 | AJ116: 503 | AK116: 0 | AL116: 731 | AM116: 0 | AN116: 731 | AS116: 0 | AT116: 0 | AU116: 51392.05 | AV116: 0 | AW116: 18195 | AX116: 53016.31 | AY116: 0 | AZ116: 5224 | BA116: 53424.54 | BB116: 0 | BC116: 25701.5 | BD116: 51728.26 | BE116: 0 | BF116: 26125 | BG116: 63785.27 | BH116: 0 | BI116: 35476.95 | BJ116: 62303.12 | BK116: -11150 | BL116: 33666 | BM116: 52538.11 | BN116: 0 | BO116: 81033.1 | BP116: 51263.65 | BQ116: 0 | BR116: 1851.9 | BS116: 69782.38 | BT116: 33337 | BU116: 116693.84
A117: 209 | B117: 16 | C117: 00 | D117: 000 | E117: 004 | F117: 000 | G117: 020-009 | H117: Información De Actividad Hidrológica Registrada | K117: Documento | L117: 9508 | M117: 61 | N117: 9569 | O117: 7942 | P117: 0.8299717839 | Q117: 14693204 | R117: 13711983 | S117: 5625735.21 | T117: 0.4102787474 | U117: 74 | V117: 0 | W117: 0 | X117: 1595 | Y117: 0 | Z117: 797 | AA117: 0 | AB117: 800 | AC117: 0 | AD117: 796 | AE117: -13 | AF117: 796 | AG117: 0 | AH117: 796 | AI117: 0 | AJ117: 795 | AK117: 0 | AL117: 807 | AM117: 0 | AN117: 760 | AO117: 0 | AP117: 0 | AQ117: 0 | AR117: 0 | AS117: 0 | AT117: 48710.64 | AU117: 446732.09 | AV117: 0 | AW117: 16956.89 | AX117: 439289.17 | AY117: 0 | AZ117: 119587.47 | BA117: 436877.25 | BB117: 0 | BC117: 71273.39 | BD117: 418269.5 | BE117: 0 | BF117: 35539.01 | BG117: 467338.26 | BH117: 0 | BI117: 127683.5 | BJ117: 656921.39 | BK117: -995699 | BL117: 84423.52 | BM117: 443747.01 | BN117: 0 | BO117: 90823.2 | BP117: 453510.35 | BQ117: 0 | BR117: 130746.66 | BS117: 482752.92 | BT117: 14478 | BU117: 654552.99
A118: 209 | B118: 16 | C118: 00 | D118: 000 | E118: 004 | F118: 000 | I118: 020-009-0001 | J118: Boletines Con Información Hidrológica | K118: Documento | L118: 3265 | M118: 1107 | N118: 4372 | O118: 3649 | P118: 0.8346294602 | Q118: 5748425 | R118: 4829522 | S118: 2240832.68 | T118: 0.4639864318 | U118: 1120 | V118: 0 | W118: 0 | X118: 727 | Y118: 0 | Z118: 363 | AA118: 0 | AB118: 366 | AC118: 0 | AD118: 362 | AE118: -13 | AF118: 362 | AG118: 0 | AH118: 362 | AI118: 0 | AJ118: 357 | AK118: 0 | AL118: 382 | AM118: 0 | AN118: 368 | AS118: 0 | AT118: 2204.63 | AU118: 232224.29 | AV118: 0 | AW118: 764.08 | AX118: 194043.69 | AY118: 0 | AZ118: 20866.43 | BA118: 192978.29 | BB118: 0 | BC118: 17472 | BD118: 184758.84 | BE118: 0 | BF118: 15619.41 | BG118: 206433.59 | BH118: 0 | BI118: 1857 | BJ118: 290176.63 | BK118: -920043 | BL118: 25771.03 | BM118: 196012.82 | BN118: 0 | BO118: 21317.72 | BP118: 200325.5 | BQ118: 0 | BR118: 11648 | BS118: 213242.59 | BT118: 1140 | BU118: 213116.14
A119: 209 | B119: 16 | C119: 00 | D119: 000 | E119: 004 | F119: 000 | I119: 020-009-0002 | J119: Publicaciones Anuales Con Información Consolidada De Efemérides Solar, Pronóstico De Mareas, Estudios De Calidad De Agua Y De Cuencas | K119: Documento | L119: 2985 | M119: -45 | N119: 2940 | O119: 2459 | P119: 0.8363945578 | Q119: 8542513 | R119: 8513496 | S119: 3298298.17 | T119: 0.3874199471 | U119: -45 | V119: 0 | W119: 0 | X119: 492 | Y119: 0 | Z119: 246 | AA119: 0 | AB119: 246 | AC119: 0 | AD119: 246 | AE119: 0 | AF119: 246 | AG119: 0 | AH119: 246 | AI119: 0 | AJ119: 250 | AK119: 0 | AL119: 244 | AM119: 0 | AN119: 243 | AS119: 0 | AT119: 40230.15 | AU119: 214507.8 | AV119: 0 | AW119: 14482.35 | AX119: 245245.48 | AY119: 0 | AZ119: 82638.05 | BA119: 243898.96 | BB119: 0 | BC119: 47579.39 | BD119: 233510.66 | BE119: 0 | BF119: 13315.56 | BG119: 260904.67 | BH119: 0 | BI119: 122046.5 | BJ119: 366744.76 | BK119: -38072 | BL119: 58577.49 | BM119: 247734.19 | BN119: 0 | BO119: 57783.99 | BP119: 253184.85 | BQ119: 0 | BR119: 87136.66 | BS119: 269510.33 | BT119: 9055 | BU119: 439266.33
A120: 209 | B120: 16 | C120: 00 | D120: 000 | E120: 004 | F120: 000 | I120: 020-009-0003 | J120: Boletines Emitidos Con Información Del Índice De Calidad Del Aire | K120: Documento | L120: 3258 | M120: -1001 | N120: 2257 | O120: 1834 | P120: 0.8125830749 | Q120: 402266 | R120: 368965 | S120: 86604.36 | T120: 0.2347224262 | U120: -1001 | V120: 0 | W120: 0 | X120: 376 | Y120: 0 | Z120: 188 | AA120: 0 | AB120: 188 | AC120: 0 | AD120: 188 | AE120: 0 | AF120: 188 | AG120: 0 | AH120: 188 | AI120: 0 | AJ120: 188 | AK120: 0 | AL120: 181 | AM120: 0 | AN120: 149 | AS120: 0 | AT120: 6275.86 | AV120: 0 | AW120: 1710.46 | AY120: 0 | AZ120: 16082.99 | BB120: 0 | BC120: 6222 | BE120: 0 | BF120: 6604.04 | BH120: 0 | BI120: 3780 | BK120: -37584 | BL120: 75 | BN120: 0 | BO120: 11721.49 | BQ120: 0 | BR120: 31962 | BT120: 4283 | BU120: 2170.52
A121: 210 | B121: 99 | C121: 00 | D121: 000 | E121: 002 | F121: 000 | G121: 000-005 | H121: Personas Jurídicas Beneficiadas Con Aportes Y/O Cuotas Para Comunicaciones | K121: Aporte | L121: 3 | M121: -1 | N121: 2 | O121: 2 | P121: 1 | Q121: 615180 | R121: 659642 | S121: 643169.17 | T121: 0.975027621 | U121: -1 | V121: 0 | W121: 0 | X121: 0 | Y121: 0 | Z121: 0 | AA121: 0 | AB121: 0 | AC121: 0 | AD121: 1 | AE121: 0 | AF121: 1 | AG121: 0 | AH121: 0 | AI121: 0 | AJ121: 0 | AK121: 0 | AL121: 0 | AM121: 0 | AN121: 0 | AO121: 0 | AP121: 0 | AQ121: 0 | AR121: 0 | AS121: 0 | AT121: 0 | AU121: 0 | AV121: 0 | AW121: 0 | AY121: 0 | AZ121: 0 | BB121: 0 | BC121: 0 | BE121: 0 | BF121: 245041.65 | BH121: 44462 | BI121: 0 | BK121: 0 | BL121: 0 | BN121: 0 | BO121: 0 | BQ121: 0 | BR121: 398127.52 | BS121: 0 | BT121: 0 | BU121: 0
A122: 210 | B122: 99 | C122: 00 | D122: 000 | E122: 002 | F122: 000 | I122: 000-005-0001 | J122: Personas Jurídicas Beneficiadas Con Aportes Y/O Cuotas Para Comunicaciones | K122: Aporte | L122: 3 | M122: -1 | N122: 2 | O122: 2 | P122: 1 | Q122: 615180 | R122: 659642 | S122: 643169.17 | T122: 0.975027621 | U122: -1 | V122: 0 | W122: 0 | X122: 0 | Y122: 0 | Z122: 0 | AA122: 0 | AB122: 0 | AC122: 0 | AD122: 1 | AE122: 0 | AF122: 1 | AG122: 0 | AH122: 0 | AI122: 0 | AJ122: 0 | AK122: 0 | AL122: 0 | AM122: 0 | AN122: 0 | AS122: 0 | AT122: 0 | AV122: 0 | AW122: 0 | AY122: 0 | AZ122: 0 | BB122: 0 | BC122: 0 | BE122: 0 | BF122: 245041.65 | BH122: 44462 | BI122: 0 | BK122: 0 | BL122: 0 | BN122: 0 | BO122: 0 | BQ122: 0 | BR122: 398127.52 | BT122: 0 | BU122: 0
A123: 210 | B123: 17 | C123: 00 | D123: 000 | E123: 001 | F123: 000 | G123: 000-029 | H123: Dirección Y Coordinación | K123: Evento | L123: 608 | M123: 43 | N123: 651 | O123: 327 | P123: 0.5023041475 | Q123: 16300622 | R123: 17842533 | S123: 11010203.08 | T123: 0.6170762346 | U123: -8 | V123: 39 | W123: -1 | X123: 2 | Y123: 50 | Z123: 3 | AA123: 0 | AB123: 115 | AC123: 0 | AD123: 2 | AE123: 0 | AF123: 46 | AG123: 0 | AH123: 17 | AI123: 1 | AJ123: 40 | AK123: 1 | AL123: 29 | AM123: 0 | AN123: 34 | AO123: 0 | AP123: 0 | AQ123: 0 | AR123: 0 | AS123: 0 | AT123: 19252.25 | AU123: 690711.08 | AV123: -485300 | AW123: 105945.65 | AX123: 647755.22 | AY123: 0 | AZ123: 61920 | BA123: 539339.78 | BB123: -13996 | BC123: 750070.42 | BD123: 752194.38 | BE123: 148000 | BF123: 683329.93 | BG123: 809013.24 | BH123: 0 | BI123: 521475.5 | BJ123: 682598 | BK123: 0 | BL123: 116374.99 | BM123: 656062.79 | BN123: 0 | BO123: 349441.73 | BP123: 646296.64 | BQ123: 1893207 | BR123: 212541.63 | BS123: 699632.42 | BT123: 0 | BU123: 2066247.43
A124: 210 | B124: 17 | C124: 00 | D124: 000 | E124: 001 | F124: 000 | I124: 000-029-0001 | J124: Dirección Y Coordinación | K124: Evento | L124: 608 | M124: 43 | N124: 651 | O124: 327 | P124: 0.5023041475 | Q124: 16300622 | R124: 17842533 | S124: 11010203.08 | T124: 0.6170762346 | U124: -8 | V124: 39 | W124: -1 | X124: 2 | Y124: 50 | Z124: 3 | AA124: 0 | AB124: 115 | AC124: 0 | AD124: 2 | AE124: 0 | AF124: 46 | AG124: 0 | AH124: 17 | AI124: 1 | AJ124: 40 | AK124: 1 | AL124: 29 | AM124: 0 | AN124: 34 | AS124: 0 | AT124: 19252.25 | AU124: 690711.08 | AV124: -485300 | AW124: 105945.65 | AX124: 647755.22 | AY124: 0 | AZ124: 61920 | BA124: 539339.78 | BB124: -13996 | BC124: 750070.42 | BD124: 752194.38 | BE124: 148000 | BF124: 683329.93 | BG124: 809013.24 | BH124: 0 | BI124: 521475.5 | BJ124: 682598 | BK124: 0 | BL124: 116374.99 | BM124: 656062.79 | BN124: 0 | BO124: 349441.73 | BP124: 646296.64 | BQ124: 1893207 | BR124: 212541.63 | BS124: 699632.42 | BT124: 0 | BU124: 2066247.43
A125: 210 | B125: 17 | C125: 00 | D125: 000 | E125: 002 | F125: 000 | G125: 000-030 | H125: Personas Individuales Y/O Jurídicas Con Servicios Postales Otorgados | K125: Persona | L125: 476400 | M125: 173456 | N125: 649856 | O125: 474092 | P125: 0.7295339275 | Q125: 12442858 | R125: 13467639 | S125: 8582347.35 | T125: 0.6372570092 | U125: 71142 | V125: 27430 | W125: 106 | X125: 31560 | Y125: -5449 | Z125: 28822 | AA125: 0 | AB125: 22678 | AC125: 0 | AD125: 119490 | AE125: 0 | AF125: 38953 | AG125: 0 | AH125: 40505 | AI125: -48 | AJ125: 39191 | AK125: 107705 | AL125: 45296 | AM125: 0 | AN125: 80167 | AO125: 0 | AP125: 0 | AQ125: 0 | AR125: 0 | AS125: 0 | AT125: 12836.1 | AU125: 782532.27 | AV125: 485300 | AW125: 104447.24 | AX125: 828913.79 | AY125: 0 | AZ125: 50170.39 | BA125: 781693.56 | BB125: 13996 | BC125: 49710.83 | BD125: 633551.72 | BE125: -148000 | BF125: 71288.9 | BG125: 948000 | BH125: -44462 | BI125: 63927.21 | BJ125: 783500 | BK125: 0 | BL125: 73959.17 | BM125: 709225.69 | BN125: 0 | BO125: 114952.86 | BP125: 757774.19 | BQ125: 717947 | BR125: 183441.81 | BS125: 760630.1 | BT125: 0 | BU125: 871791.52
A126: 210 | B126: 17 | C126: 00 | D126: 000 | E126: 002 | F126: 000 | I126: 000-030-0001 | J126: Personas Individuales Y/O Jurídicas Con Servicios Postales Otorgados | K126: Persona | L126: 476400 | M126: 173456 | N126: 649856 | O126: 474092 | P126: 0.7295339275 | Q126: 12442858 | R126: 13467639 | S126: 8582347.35 | T126: 0.6372570092 | U126: 71142 | V126: 27430 | W126: 106 | X126: 31560 | Y126: -5449 | Z126: 28822 | AA126: 0 | AB126: 22678 | AC126: 0 | AD126: 119490 | AE126: 0 | AF126: 38953 | AG126: 0 | AH126: 40505 | AI126: -48 | AJ126: 39191 | AK126: 107705 | AL126: 45296 | AM126: 0 | AN126: 80167 | AS126: 0 | AT126: 12836.1 | AU126: 782532.27 | AV126: 485300 | AW126: 104447.24 | AX126: 828913.79 | AY126: 0 | AZ126: 50170.39 | BA126: 781693.56 | BB126: 13996 | BC126: 49710.83 | BD126: 633551.72 | BE126: -148000 | BF126: 71288.9 | BG126: 948000 | BH126: -44462 | BI126: 63927.21 | BJ126: 783500 | BK126: 0 | BL126: 73959.17 | BM126: 709225.69 | BN126: 0 | BO126: 114952.86 | BP126: 757774.19 | BQ126: 717947 | BR126: 183441.81 | BS126: 760630.1 | BT126: 0 | BU126: 871791.52
A127: 211 | B127: 99 | C127: 00 | D127: 000 | E127: 002 | F127: 000 | G127: 000-005 | H127: Personas Jurídicas Beneficiadas Con Aportes Y/O Cuotas Para Comunicaciones | K127: Aporte | L127: 2 | M127: 0 | N127: 2 | O127: 0 | P127: 0 | Q127: 900000 | R127: 900000 | S127: 651176.35 | T127: 0.7235292778 | U127: 0 | V127: 0 | W127: 0 | X127: 0 | Y127: 0 | Z127: 0 | AA127: 0 | AB127: 0 | AC127: 0 | AD127: 0 | AE127: 0 | AF127: 0 | AG127: 0 | AH127: 0 | AI127: 0 | AJ127: 0 | AK127: 0 | AL127: 0 | AM127: 0 | AN127: 0 | AO127: 0 | AP127: 0 | AQ127: 0 | AR127: 0 | AS127: 0 | AT127: 0 | AU127: 0 | AV127: 0 | AW127: 132829.67 | AY127: 0 | AZ127: 0 | BB127: 0 | BC127: 0 | BE127: 0 | BF127: 0 | BH127: 0 | BI127: 0 | BK127: 0 | BL127: 0 | BN127: 0 | BO127: 0 | BQ127: 0 | BR127: 0 | BS127: 0 | BT127: 0 | BU127: 518346.68
A128: 211 | B128: 99 | C128: 00 | D128: 000 | E128: 002 | F128: 000 | I128: 000-005-0001 | J128: Personas Jurídicas Beneficiadas Con Aportes Y/O Cuotas Para Comunicaciones | K128: Aporte | L128: 2 | M128: 0 | N128: 2 | O128: 0 | P128: 0 | Q128: 900000 | R128: 900000 | S128: 651176.35 | T128: 0.7235292778 | U128: 0 | V128: 0 | W128: 0 | X128: 0 | Y128: 0 | Z128: 0 | AA128: 0 | AB128: 0 | AC128: 0 | AD128: 0 | AE128: 0 | AF128: 0 | AG128: 0 | AH128: 0 | AI128: 0 | AJ128: 0 | AK128: 0 | AL128: 0 | AM128: 0 | AN128: 0 | AS128: 0 | AT128: 0 | AV128: 0 | AW128: 132829.67 | AY128: 0 | AZ128: 0 | BB128: 0 | BC128: 0 | BE128: 0 | BF128: 0 | BH128: 0 | BI128: 0 | BK128: 0 | BL128: 0 | BN128: 0 | BO128: 0 | BQ128: 0 | BR128: 0 | BT128: 0 | BU128: 518346.68
A129: 211 | B129: 22 | C129: 00 | D129: 000 | E129: 001 | F129: 000 | G129: 022-007 | H129: Dirección Y Coordinación | K129: Evento | L129: 154 | M129: 0 | N129: 154 | O129: 121 | P129: 0.7857142857 | Q129: 18250293 | R129: 24102162 | S129: 9553456.09 | T129: 0.3963734079 | U129: 0 | V129: 51 | W129: 0 | X129: 4 | Y129: 0 | Z129: 10 | AA129: 0 | AB129: 5 | AC129: 0 | AD129: 5 | AE129: 0 | AF129: 5 | AG129: 0 | AH129: 20 | AI129: 0 | AJ129: 5 | AK129: 0 | AL129: 11 | AM129: 0 | AN129: 5 | AO129: 0 | AP129: 0 | AQ129: 0 | AR129: 0 | AS129: 0 | AT129: 209747.53 | AU129: 706765.72 | AV129: 0 | AW129: 499944.5 | AX129: 511394.54 | AY129: 0 | AZ129: 280938 | BA129: 491219.18 | BB129: 0 | BC129: 428899.19 | BD129: 478791.6 | BE129: 0 | BF129: 193458.02 | BG129: 490992.31 | BH129: 0 | BI129: 573642.24 | BJ129: 435737.74 | BK129: 0 | BL129: 266648.47 | BM129: 697137.06 | BN129: 0 | BO129: 134445.55 | BP129: 602097.22 | BQ129: 5851869 | BR129: 525397.71 | BS129: 526820.78 | BT129: 0 | BU129: 1499378.73
A130: 211 | B130: 22 | C130: 00 | D130: 000 | E130: 001 | F130: 000 | I130: 022-007-0001 | J130: Dirección Y Coordinación | K130: Evento | L130: 154 | M130: 0 | N130: 154 | O130: 121 | P130: 0.7857142857 | Q130: 18250293 | R130: 24102162 | S130: 9553456.09 | T130: 0.3963734079 | U130: 0 | V130: 51 | W130: 0 | X130: 4 | Y130: 0 | Z130: 10 | AA130: 0 | AB130: 5 | AC130: 0 | AD130: 5 | AE130: 0 | AF130: 5 | AG130: 0 | AH130: 20 | AI130: 0 | AJ130: 5 | AK130: 0 | AL130: 11 | AM130: 0 | AN130: 5 | AS130: 0 | AT130: 209747.53 | AU130: 706765.72 | AV130: 0 | AW130: 499944.5 | AX130: 511394.54 | AY130: 0 | AZ130: 280938 | BA130: 491219.18 | BB130: 0 | BC130: 428899.19 | BD130: 478791.6 | BE130: 0 | BF130: 193458.02 | BG130: 490992.31 | BH130: 0 | BI130: 573642.24 | BJ130: 435737.74 | BK130: 0 | BL130: 266648.47 | BM130: 697137.06 | BN130: 0 | BO130: 134445.55 | BP130: 602097.22 | BQ130: 5851869 | BR130: 525397.71 | BS130: 526820.78 | BT130: 0 | BU130: 1499378.73
A131: 211 | B131: 22 | C131: 00 | D131: 000 | E131: 002 | F131: 000 | G131: 022-008 | H131: Proveedores, Usuarios Y Usufructuarios De Frecuencias Con Servicios De Regulación | K131: Documento | L131: 4 | M131: 36 | N131: 40 | O131: 4 | P131: 0.1 | Q131: 1919786 | R131: 1919786 | S131: 971203.63 | T131: 0.5058916098 | U131: 0 | V131: 0 | W131: 0 | X131: 0 | Y131: 0 | Z131: 1 | AA131: 0 | AB131: 0 | AC131: 0 | AD131: 1 | AE131: 0 | AF131: 0 | AG131: 0 | AH131: 0 | AI131: 0 | AJ131: 0 | AK131: 0 | AL131: 2 | AM131: 36 | AN131: 0 | AO131: 0 | AP131: 0 | AQ131: 0 | AR131: 0 | AS131: 0 | AT131: 0 | AU131: 122744.68 | AV131: 0 | AW131: 0 | AX131: 74690 | AY131: 0 | AZ131: 7950 | BA131: 81931.38 | BB131: 0 | BC131: 27430 | BD131: 74690 | BE131: 0 | BF131: 0 | BG131: 74690 | BH131: 0 | BI131: 0 | BJ131: 74690 | BK131: 0 | BL131: 0 | BM131: 123306 | BN131: 0 | BO131: -27430 | BP131: 70690 | BQ131: 0 | BR131: 0 | BS131: 134092.16 | BT131: 0 | BU131: 131729.41
A132: 211 | B132: 22 | C132: 00 | D132: 000 | E132: 002 | F132: 000 | I132: 022-008-0001 | J132: Títulos De Usufructo Emitidos Para Personas Individuales Y/O Jurídicas | K132: Documento | L132: 1 | M132: 33 | N132: 34 | O132: 1 | P132: 0.02941176471 | Q132: 1848739 | R132: 1848739 | S132: 963253.63 | T132: 0.521032785 | U132: 0 | V132: 0 | W132: 0 | X132: 0 | Y132: 0 | Z132: 1 | AA132: 0 | AB132: 0 | AC132: 0 | AD132: 0 | AE132: 0 | AF132: 0 | AG132: 0 | AH132: 0 | AI132: 0 | AJ132: 0 | AK132: 0 | AL132: 0 | AM132: 33 | AN132: 0 | AS132: 0 | AT132: 0 | AU132: 122744.68 | AV132: 0 | AW132: 0 | AX132: 74690 | AY132: 0 | AZ132: 0 | BA132: 81931.38 | BB132: 0 | BC132: 9375 | BD132: 74690 | BE132: 0 | BF132: 0 | BG132: 74690 | BH132: 0 | BI132: 0 | BJ132: 74690 | BK132: 0 | BL132: 0 | BM132: 123306 | BN132: 0 | BO132: -9375 | BP132: 70690 | BQ132: 0 | BR132: 0 | BS132: 134092.16 | BT132: 0 | BU132: 131729.41
A133: 211 | B133: 22 | C133: 00 | D133: 000 | E133: 002 | F133: 000 | I133: 022-008-0002 | J133: Licencias Emitidas A Proveedores Satelitales | K133: Documento | L133: 2 | M133: 1 | N133: 3 | O133: 2 | P133: 0.6666666667 | Q133: 14245 | R133: 14245 | S133: 0 | T133: 0 | U133: 0 | V133: 0 | W133: 0 | X133: 0 | Y133: 0 | Z133: 0 | AA133: 0 | AB133: 0 | AC133: 0 | AD133: 1 | AE133: 0 | AF133: 0 | AG133: 0 | AH133: 0 | AI133: 0 | AJ133: 0 | AK133: 0 | AL133: 1 | AM133: 1 | AN133: 0 | AS133: 0 | AT133: 0 | AV133: 0 | AW133: 0 | AY133: 0 | AZ133: 0 | BB133: 0 | BC133: 0 | BE133: 0 | BF133: 0 | BH133: 0 | BI133: 0 | BK133: 0 | BL133: 0 | BN133: 0 | BO133: 0 | BQ133: 0 | BR133: 0 | BT133: 0 | BU133: 0
A134: 211 | B134: 22 | C134: 00 | D134: 000 | E134: 002 | F134: 000 | I134: 022-008-0003 | J134: Licencias Emitidas A Usuarios Satelitales | K134: Documento | L134: 1 | M134: 2 | N134: 3 | O134: 1 | P134: 0.3333333333 | Q134: 36627 | R134: 36627 | S134: 0 | T134: 0 | U134: 0 | V134: 0 | W134: 0 | X134: 0 | Y134: 0 | Z134: 0 | AA134: 0 | AB134: 0 | AC134: 0 | AD134: 0 | AE134: 0 | AF134: 0 | AG134: 0 | AH134: 0 | AI134: 0 | AJ134: 0 | AK134: 0 | AL134: 1 | AM134: 2 | AN134: 0 | AS134: 0 | AT134: 0 | AV134: 0 | AW134: 0 | AY134: 0 | AZ134: 0 | BB134: 0 | BC134: 17435 | BE134: 0 | BF134: 0 | BH134: 0 | BI134: 0 | BK134: 0 | BL134: 0 | BN134: 0 | BO134: -17435 | BQ134: 0 | BR134: 0 | BT134: 0 | BU134: 0
A135: 211 | B135: 22 | C135: 00 | D135: 000 | E135: 002 | F135: 000 | I135: 022-008-0004 | J135: Monitoreo Al Espectro Radioeléctrico | K135: Evento | L135: 175 | M135: -85 | N135: 90 | O135: 40 | P135: 0.4444444444 | Q135: 20175 | R135: 20175 | S135: 7950 | T135: 0.3940520446 | U135: 0 | V135: 0 | W135: 0 | X135: 0 | Y135: 0 | Z135: 0 | AA135: 0 | AB135: 10 | AC135: 0 | AD135: 10 | AE135: 0 | AF135: 0 | AG135: 0 | AH135: 15 | AI135: 0 | AJ135: 5 | AK135: 0 | AL135: 0 | AM135: -85 | AN135: 0 | AS135: 0 | AT135: 0 | AV135: 0 | AW135: 0 | AY135: 0 | AZ135: 7950 | BB135: 0 | BC135: 620 | BE135: 0 | BF135: 0 | BH135: 0 | BI135: 0 | BK135: 0 | BL135: 0 | BN135: 0 | BO135: -620 | BQ135: 0 | BR135: 0 | BT135: 0 | BU135: 0
A136: 211 | B136: 22 | C136: 00 | D136: 000 | E136: 003 | F136: 000 | G136: 022-009 | H136: Recursos De Telefonía Regulados | K136: Documento | L136: 5267 | M136: 65 | N136: 5332 | O136: 5227 | P136: 0.9803075769 | Q136: 1951012 | R136: 1951012 | S136: 1318457.94 | T136: 0.6757815636 | U136: 0 | V136: 2126 | W136: 0 | X136: 168 | Y136: 0 | Z136: 157 | AA136: 0 | AB136: 154 | AC136: 0 | AD136: 370 | AE136: 0 | AF136: 404 | AG136: 0 | AH136: 380 | AI136: 0 | AJ136: 331 | AK136: 0 | AL136: 1132 | AM136: 65 | AN136: 5 | AO136: 0 | AP136: 0 | AS136: 0 | AT136: 0 | AU136: 181804.32 | AV136: 0 | AW136: 0 | AX136: 115401.8 | AY136: 0 | AZ136: 0 | BA136: 128436.28 | BB136: 0 | BC136: 0 | BD136: 115401.8 | BE136: 0 | BF136: 0 | BG136: 115401.8 | BH136: 0 | BI136: 0 | BJ136: 115401.8 | BK136: 0 | BL136: 0 | BM136: 170229.6 | BN136: 0 | BO136: 0 | BP136: 95607.65 | BQ136: 0 | BR136: 0 | BS136: 152334.06 | BT136: 0 | BU136: 128438.83
A137: 211 | B137: 22 | C137: 00 | D137: 000 | E137: 003 | F137: 000 | I137: 022-009-0001 | J137: Operadores De Telefonía Registrados | K137: Registro | L137: 184 | M137: 46 | N137: 230 | O137: 184 | P137: 0.8 | Q137: 1933072 | R137: 1933072 | S137: 1318457.94 | T137: 0.6820531982 | U137: 0 | V137: 12 | W137: 0 | X137: 44 | Y137: 0 | Z137: 20 | AA137: 0 | AB137: 5 | AC137: 0 | AD137: 14 | AE137: 0 | AF137: 5 | AG137: 0 | AH137: 12 | AI137: 0 | AJ137: 21 | AK137: 0 | AL137: 51 | AM137: 46 | AN137: 0 | AS137: 0 | AT137: 0 | AU137: 181804.32 | AV137: 0 | AW137: 0 | AX137: 115401.8 | AY137: 0 | AZ137: 0 | BA137: 128436.28 | BB137: 0 | BC137: 0 | BD137: 115401.8 | BE137: 0 | BF137: 0 | BG137: 115401.8 | BH137: 0 | BI137: 0 | BJ137: 115401.8 | BK137: 0 | BL137: 0 | BM137: 170229.6 | BN137: 0 | BO137: 0 | BP137: 95607.65 | BQ137: 0 | BR137: 0 | BS137: 152334.06 | BT137: 0 | BU137: 128438.83
A138: 211 | B138: 22 | C138: 00 | D138: 000 | E138: 003 | F138: 000 | I138: 022-009-0002 | J138: Numeración Asignada A Personas Jurídicas Y /O Individuales | K138: Documento | L138: 125 | M138: 0 | N138: 125 | O138: 98 | P138: =+O138/N138 -> 0.784 | Q138: 3533 | R138: 3533 | S138: 0 | T138: =+S138/R138 -> 0 | U138: 0 | V138: 12 | W138: 0 | X138: 17 | Y138: 0 | Z138: 17 | AA138: 0 | AB138: 14 | AC138: 0 | AD138: 4 | AE138: 0 | AF138: 3 | AG138: 0 | AH138: 5 | AI138: 0 | AJ138: 5 | AK138: 0 | AL138: 19 | AM138: 0 | AN138: 2 | AS138: 0 | AT138: 0 | AV138: 0 | AW138: 0 | AY138: 0 | AZ138: 0 | BB138: 0 | BC138: 0 | BE138: 0 | BF138: 0 | BH138: 0 | BI138: 0 | BK138: 0 | BL138: 0 | BN138: 0 | BO138: 0 | BQ138: 0 | BR138: 0 | BT138: 0 | BU138: 0
A139: 211 | B139: 22 | C139: 00 | D139: 000 | E139: 003 | F139: 000 | I139: 022-009-0003 | J139: Puntos De Señalización Asignados A Personas Jurídicas Y/O Individuales | K139: Documento | L139: 30 | M139: -12 | N139: 18 | O139: 17 | P139: 0.9444444444 | Q139: 11392 | R139: 11392 | S139: 0 | T139: 0 | U139: 0 | V139: 0 | W139: 0 | X139: 1 | Y139: 0 | Z139: 0 | AA139: 0 | AB139: 0 | AC139: 0 | AD139: 6 | AE139: 0 | AF139: 1 | AG139: 0 | AH139: 0 | AI139: 0 | AJ139: 1 | AK139: 0 | AL139: 5 | AM139: -12 | AN139: 3 | AS139: 0 | AT139: 0 | AV139: 0 | AW139: 0 | AY139: 0 | AZ139: 0 | BB139: 0 | BC139: 0 | BE139: 0 | BF139: 0 | BH139: 0 | BI139: 0 | BK139: 0 | BL139: 0 | BN139: 0 | BO139: 0 | BQ139: 0 | BR139: 0 | BT139: 0 | BU139: 0
A140: 211 | B140: 22 | C140: 00 | D140: 000 | E140: 003 | F140: 000 | I140: 022-009-0004 | J140: Constancias De Inscripción De Usuarios Jurídicos Y/O Individuales De Telecomunicaciones Móviles | K140: Documento | L140: 5112 | M140: 77 | N140: 5189 | O140: 5112 | P140: 0.9851609173 | Q140: 3015 | R140: 3015 | S140: 0 | T140: 0 | U140: 0 | V140: 2114 | W140: 0 | X140: 150 | Y140: 0 | Z140: 140 | AA140: 0 | AB140: 140 | AC140: 0 | AD140: 360 | AE140: 0 | AF140: 400 | AG140: 0 | AH140: 375 | AI140: 0 | AJ140: 325 | AK140: 0 | AL140: 1108 | AM140: 77 | AN140: 0 | AS140: 0 | AT140: 0 | AV140: 0 | AW140: 0 | AY140: 0 | AZ140: 0 | BB140: 0 | BC140: 0 | BE140: 0 | BF140: 0 | BH140: 0 | BI140: 0 | BK140: 0 | BL140: 0 | BN140: 0 | BO140: 0 | BQ140: 0 | BR140: 0 | BT140: 0 | BU140: 0
A141: 212 | B141: 23 | C141: 00 | D141: 000 | E141: 001 | F141: 000 | G141: 000-010 | H141: Dirección Y Coordinación | K141: Evento | L141: 38 | M141: -4 | N141: 34 | O141: 34 | P141: 1 | Q141: 5076663 | R141: 5096481 | S141: 2109694.26 | T141: 0.4139511675 | U141: -4 | V141: 0 | W141: 0 | X141: 32 | Y141: 0 | Z141: 1 | AA141: 0 | AB141: 1 | AC141: 0 | AD141: 0 | AE141: 0 | AF141: 0 | AG141: 0 | AH141: 0 | AI141: 0 | AJ141: 0 | AK141: 0 | AL141: 0 | AM141: 0 | AN141: 0 | AS141: 0 | AT141: 48500 | AU141: 269151.66 | AV141: 0 | AW141: 90521.25 | AX141: 208922.1 | AY141: 0 | AZ141: 102407.35 | BA141: 220999.69 | BB141: 0 | BC141: 109904.5 | BD141: 196492 | BE141: 19818 | BF141: 112355.91 | BG141: 234429.78 | BH141: 0 | BI141: 241496.2 | BJ141: 156816.52 | BK141: 0 | BL141: 18063.25 | BM141: 99634.05 | BN141: 0 | BO141: 0 | BP141: 0 | BQ141: 0 | BR141: 0 | BT141: 0 | BU141: 0
A142: 212 | B142: 23 | C142: 00 | D142: 000 | E142: 001 | F142: 000 | I142: 000-010-0001 | J142: Dirección Y Coordinación | K142: Evento | L142: 38 | M142: -4 | N142: 34 | O142: 34 | P142: 1 | Q142: 5076663 | R142: 5096481 | S142: 2109694.26 | T142: 0.4139511675 | U142: -4 | V142: 0 | W142: 0 | X142: 32 | Y142: 0 | Z142: 1 | AA142: 0 | AB142: 1 | AC142: 0 | AD142: 0 | AE142: 0 | AF142: 0 | AG142: 0 | AH142: 0 | AI142: 0 | AJ142: 0 | AK142: 0 | AL142: 0 | AM142: 0 | AN142: 0 | AS142: 0 | AT142: 48500 | AU142: 269151.66 | AV142: 0 | AW142: 90521.25 | AX142: 208922.1 | AY142: 0 | AZ142: 102407.35 | BA142: 220999.69 | BB142: 0 | BC142: 109904.5 | BD142: 196492 | BE142: 19818 | BF142: 112355.91 | BG142: 234429.78 | BH142: 0 | BI142: 241496.2 | BJ142: 156816.52 | BK142: 0 | BL142: 18063.25 | BM142: 99634.05 | BN142: 0 | BO142: 0 | BQ142: 0 | BR142: 0 | BT142: 0 | BU142: 0
A143: 212 | B143: 23 | C143: 00 | D143: 000 | E143: 002 | F143: 000 | G143: 000-015 | H143: Personas Beneficiadas Con Proyectos, Supervisión De Telefonía Y Conectividad Subsidiados | K143: Persona | L143: 707 | M143: -681 | N143: 26 | O143: 0 | P143: 0 | Q143: 2145715 | R143: 2125897 | S143: 494682.31 | T143: 0.2326934513 | U143: -681 | V143: 0 | W143: 0 | X143: 0 | Y143: 0 | Z143: 0 | AA143: 0 | AB143: 0 | AC143: 0 | AD143: 0 | AE143: 0 | AF143: 0 | AG143: 0 | AH143: 0 | AI143: 0 | AJ143: 0 | AK143: 0 | AL143: 0 | AM143: 0 | AN143: 0 | AS143: 0 | AT143: 20500 | AU143: 78580.64 | AV143: 0 | AW143: 20500 | AX143: 70551.72 | AY143: 0 | AZ143: 0 | BA143: 54000 | BB143: 0 | BC143: 0 | BD143: 47750 | BE143: -19818 | BF143: 57474.47 | BG143: 41500 | BH143: 0 | BI143: 52793.22 | BJ143: 41500 | BK143: 0 | BL143: 0 | BM143: 9532.26 | BN143: 0 | BO143: 0 | BP143: 0 | BQ143: 0 | BR143: 0 | BT143: 0 | BU143: 0
A144: 212 | B144: 23 | C144: 00 | D144: 000 | E144: 002 | F144: 000 | I144: 000-015-0001 | J144: Personas Beneficiadas Con Proyectos, Supervisión De Telefonía Y Conectividad Subsidiados | K144: Persona | L144: 707 | M144: -681 | N144: 26 | O144: 0 | P144: 0 | Q144: 2145715 | R144: 2125897 | S144: 494682.31 | T144: 0.2326934513 | U144: -681 | V144: 0 | W144: 0 | X144: 0 | Y144: 0 | Z144: 0 | AA144: 0 | AB144: 0 | AC144: 0 | AD144: 0 | AE144: 0 | AF144: 0 | AG144: 0 | AH144: 0 | AI144: 0 | AJ144: 0 | AK144: 0 | AL144: 0 | AM144: 0 | AN144: 0 | AS144: 0 | AT144: 20500 | AU144: 78580.64 | AV144: 0 | AW144: 20500 | AX144: 70551.72 | AY144: 0 | AZ144: 0 | BA144: 54000 | BB144: 0 | BC144: 0 | BD144: 47750 | BE144: -19818 | BF144: 57474.47 | BG144: 41500 | BH144: 0 | BI144: 52793.22 | BJ144: 41500 | BK144: 0 | BL144: 0 | BM144: 9532.26 | BN144: 0 | BO144: 0 | BQ144: 0 | BR144: 0 | BT144: 0 | BU144: 0
A145: 214 | B145: 20 | C145: 00 | D145: 000 | E145: 001 | F145: 000 | G145: 000-022 | H145: Dirección Y Coordinación | K145: Evento | L145: 201 | M145: 0 | N145: 201 | O145: 184 | P145: 0.9154228856 | Q145: 10935606 | R145: 15620126 | S145: 10850738.04 | T145: 0.6946639252 | U145: 0 | V145: 0 | W145: 0 | X145: 0 | Y145: 0 | Z145: 60 | AA145: 0 | AB145: 4 | AC145: 0 | AD145: 0 | AE145: 0 | AF145: 4 | AG145: 0 | AH145: 6 | AI145: 0 | AJ145: 17 | AK145: 0 | AL145: 67 | AM145: 0 | AN145: 26 | AS145: 0 | AT145: 343101.22 | AU145: 253259.68 | AV145: 0 | AW145: 305008.12 | AX145: 246808.06 | AY145: 0 | AZ145: 491841.25 | BA145: 288126.62 | BB145: 0 | BC145: 270943.07 | BD145: 253175 | BE145: 0 | BF145: 250068.36 | BG145: 334425 | BH145: 0 | BI145: 639219.43 | BJ145: 284929.03 | BK145: 778648 | BL145: 465020.89 | BM145: 293426.82 | BN145: 0 | BO145: 1799560.96 | BP145: 281316.13 | BQ145: 3905872 | BR145: 640693.23 | BS145: 313383.87 | BT145: 0 | BU145: 3096431.3
A146: 214 | B146: 20 | C146: 00 | D146: 000 | E146: 001 | F146: 000 | I146: 000-022-0001 | J146: Dirección Y Coordinación | K146: Evento | L146: 201 | M146: 0 | N146: 201 | O146: 184 | P146: 0.9154228856 | Q146: 10935606 | R146: 15620126 | S146: 10850738.04 | T146: 0.6946639252 | U146: 0 | V146: 0 | W146: 0 | X146: 0 | Y146: 0 | Z146: 60 | AA146: 0 | AB146: 4 | AC146: 0 | AD146: 0 | AE146: 0 | AF146: 4 | AG146: 0 | AH146: 6 | AI146: 0 | AJ146: 17 | AK146: 0 | AL146: 67 | AM146: 0 | AN146: 26 | AS146: 0 | AT146: 343101.22 | AU146: 253259.68 | AV146: 0 | AW146: 305008.12 | AX146: 246808.06 | AY146: 0 | AZ146: 491841.25 | BA146: 288126.62 | BB146: 0 | BC146: 270943.07 | BD146: 253175 | BE146: 0 | BF146: 250068.36 | BG146: 334425 | BH146: 0 | BI146: 639219.43 | BJ146: 284929.03 | BK146: 778648 | BL146: 465020.89 | BM146: 293426.82 | BN146: 0 | BO146: 1799560.96 | BP146: 281316.13 | BQ146: 3905872 | BR146: 640693.23 | BS146: 313383.87 | BT146: 0 | BU146: 3096431.3
A147: 214 | B147: 20 | C147: 00 | D147: 000 | E147: 002 | F147: 000 | G147: 000-023 | H147: Familias Beneficiadas Con Adjudicación De Propiedad De Vivienda | K147: Familia | L147: 126 | M147: 399 | N147: 525 | O147: 0 | P147: 0 | Q147: 86456 | R147: 1311313 | S147: 145959.75 | T147: 0.1113080935 | U147: -126 | V147: 0 | W147: 0 | X147: 0 | Y147: 0 | Z147: 0 | AA147: 0 | AB147: 0 | AC147: 0 | AD147: 0 | AE147: 0 | AF147: 0 | AG147: 0 | AH147: 0 | AI147: 0 | AJ147: 0 | AK147: 0 | AL147: 0 | AM147: 0 | AN147: 0 | AS147: 0 | AT147: 0 | AU147: 0 | AV147: 0 | AW147: 0 | AX147: 0 | AY147: 0 | AZ147: 0 | BA147: 0 | BB147: 0 | BC147: 20993.83 | BD147: 0 | BE147: 0 | BF147: 0 | BG147: 0 | BH147: 0 | BI147: 0 | BJ147: 0 | BK147: 1221352 | BL147: 0 | BM147: 0 | BN147: 0 | BO147: 13476 | BP147: 0 | BQ147: 0 | BR147: 59989.92 | BS147: 0 | BT147: 0 | BU147: 51500
A148: 214 | B148: 20 | C148: 00 | D148: 000 | E148: 002 | F148: 000 | I148: 000-023-0001 | J148: Familias Beneficiadas Con Adjudicación De Propiedad De Vivienda | K148: Familia | L148: 126 | M148: -126 | N148: 0 | O148: 0 | P148: 0 | Q148: 86456 | R148: 0 | S148: 0 | T148: 0 | U148: -126 | V148: 0 | W148: 0 | X148: 0 | Y148: 0 | Z148: 0 | AA148: 0 | AB148: 0 | AC148: 0 | AD148: 0 | AE148: 0 | AF148: 0 | AG148: 0 | AH148: 0 | AI148: 0 | AJ148: 0 | AK148: 0 | AL148: 0 | AM148: 0 | AN148: 0 | AS148: 0 | AT148: 0 | AV148: -86456 | AW148: 0 | AY148: 0 | AZ148: 0 | BB148: 0 | BC148: 0 | BE148: 0 | BF148: 0 | BH148: 0 | BI148: 0 | BK148: 0 | BL148: 0 | BN148: 0 | BO148: 0 | BQ148: 0 | BR148: 0 | BT148: 0 | BU148: 0
A149: 214 | B149: 20 | C149: 00 | D149: 000 | E149: 002 | F149: 000 | I149: 000-023-0002 | J149: Recuperación De La Cartera Crediticia | K149: Unidad monetaria | L149: 1389000 | M149: -1389000 | N149: 0 | O149: 0 | P149: 0 | Q149: 3505 | R149: 0 | S149: 0 | T149: 0 | U149: -1389000 | V149: 0 | W149: 0 | X149: 0 | Y149: 0 | Z149: 0 | AA149: 0 | AB149: 0 | AC149: 0 | AD149: 0 | AE149: 0 | AF149: 0 | AG149: 0 | AH149: 0 | AI149: 0 | AJ149: 0 | AK149: 0 | AL149: 0 | AM149: 0 | AN149: 0 | AS149: 0 | AT149: 0 | AV149: -3505 | AW149: 0 | AY149: 0 | AZ149: 0 | BB149: 0 | BC149: 0 | BE149: 0 | BF149: 0 | BH149: 0 | BI149: 0 | BK149: 0 | BL149: 0 | BN149: 0 | BO149: 0 | BQ149: 0 | BR149: 0 | BT149: 0 | BU149: 0
A150: 214 | B150: 20 | C150: 00 | D150: 000 | E150: 002 | F150: 000 | I150: 000-023-0003 | J150: Familias Beneficiadas Con Legalización De Bien Inmueble | K150: Familia | L150: 0 | M150: 525 | N150: 525 | O150: 0 | P150: 0 | Q150: 0 | R150: 809640 | S150: 5989.94 | T150: 0.007398275777 | U150: 14 | V150: 0 | W150: 0 | X150: 0 | Y150: 0 | Z150: 0 | AA150: 386 | AB150: 0 | AC150: 0 | AD150: 0 | AE150: 0 | AF150: 0 | AG150: 0 | AH150: 0 | AI150: 125 | AJ150: 0 | AK150: 0 | AL150: 0 | AM150: 0 | AN150: 0 | AS150: 0 | AT150: 0 | AV150: 22140 | AW150: 0 | AY150: 0 | AZ150: 0 | BB150: 0 | BC150: 0 | BE150: 0 | BF150: 0 | BH150: 0 | BI150: 0 | BK150: 600000 | BL150: 0 | BN150: 0 | BO150: 0 | BQ150: 187500 | BR150: 5989.94 | BT150: 0 | BU150: 0
A151: 214 | B151: 20 | C151: 00 | D151: 000 | E151: 002 | F151: 000 | I151: 000-023-0004 | J151: Familias Beneficiadas Con Proceso De Elegibilidad Para Adjudicación De Bien Inmueble | K151: Familia | L151: 0 | M151: 290 | N151: 290 | O151: 278 | P151: 0.9586206897 | Q151: 0 | R151: 501673 | S151: 139969.81 | T151: 0.2790060657 | U151: 45 | V151: 0 | W151: 0 | X151: 0 | Y151: 0 | Z151: 20 | AA151: 245 | AB151: 25 | AC151: 0 | AD151: 0 | AE151: 0 | AF151: 0 | AG151: 0 | AH151: 169 | AI151: 0 | AJ151: 50 | AK151: 0 | AL151: 7 | AM151: 0 | AN151: 7 | AS151: 0 | AT151: 0 | AV151: 67821 | AW151: 0 | AY151: 0 | AZ151: 0 | BB151: 0 | BC151: 20993.83 | BE151: 0 | BF151: 0 | BH151: 0 | BI151: 0 | BK151: 621352 | BL151: 0 | BN151: 0 | BO151: 13476 | BQ151: -187500 | BR151: 53999.98 | BT151: 0 | BU151: 51500
A152: 216 | B152: 18 | C152: 00 | D152: 000 | E152: 001 | F152: 000 | G152: 021-001 | H152: Dirección Y Coordinación | K152: Evento | L152: 720 | M152: -539 | N152: 181 | O152: 155 | P152: 0.8563535912 | Q152: 19713706 | R152: 27362407 | S152: 17640297.04 | T152: 0.644690982 | U152: -527 | V152: 14 | W152: 0 | X152: 16 | Y152: 0 | Z152: 15 | AA152: 0 | AB152: 18 | AC152: 0 | AD152: 16 | AE152: 0 | AF152: 16 | AG152: 0 | AH152: 17 | AI152: -12 | AJ152: 16 | AK152: 0 | AL152: 14 | AM152: 0 | AN152: 13 | AS152: 0 | AT152: 95229.24 | AU152: 726100.07 | AV152: 0 | AW152: 196261.32 | AX152: 752900 | AY152: 0 | AZ152: 396357.04 | BA152: 813819.36 | BB152: 0 | BC152: 413139.57 | BD152: 770650 | BE152: -33931 | BF152: 1379654.93 | BG152: 748504.84 | BH152: 0 | BI152: 1457493.48 | BJ152: 739150 | BK152: 0 | BL152: 327447.54 | BM152: 751923.22 | BN152: 90693 | BO152: 639196.55 | BP152: 25250 | BQ152: 7591939 | BR152: 306671.13 | BS152: 5819377.11 | BT152: 0 | BU152: 1281171.64
A153: 216 | B153: 18 | C153: 00 | D153: 000 | E153: 001 | F153: 000 | I153: 021-001-0001 | J153: Dirección Y Coordinación | K153: Evento | L153: 720 | M153: -539 | N153: 181 | O153: 155 | P153: 0.8563535912 | Q153: 19713706 | R153: 27362407 | S153: 17640297.04 | T153: 0.644690982 | U153: -527 | V153: 14 | W153: 0 | X153: 16 | Y153: 0 | Z153: 15 | AA153: 0 | AB153: 18 | AC153: 0 | AD153: 16 | AE153: 0 | AF153: 16 | AG153: 0 | AH153: 17 | AI153: -12 | AJ153: 16 | AK153: 0 | AL153: 14 | AM153: 0 | AN153: 13 | AS153: 0 | AT153: 95229.24 | AU153: 726100.07 | AV153: 0 | AW153: 196261.32 | AX153: 752900 | AY153: 0 | AZ153: 396357.04 | BA153: 813819.36 | BB153: 0 | BC153: 413139.57 | BD153: 770650 | BE153: -33931 | BF153: 1379654.93 | BG153: 748504.84 | BH153: 0 | BI153: 1457493.48 | BJ153: 739150 | BK153: 0 | BL153: 327447.54 | BM153: 751923.22 | BN153: 90693 | BO153: 639196.55 | BP153: 25250 | BQ153: 7591939 | BR153: 306671.13 | BS153: 5819377.11 | BT153: 0 | BU153: 1281171.64
A154: 216 | B154: 18 | C154: 00 | D154: 000 | E154: 002 | F154: 000 | G154: 021-002 | H154: Conductores Beneficiados Con Servicios De Vigilancia Y Asistencia Vial | K154: Persona | L154: 318887 | M154: -97 | N154: 318790 | O154: 275668 | P154: 0.8647322689 | Q154: 29569131 | R154: 40251087 | S154: 30555840.2 | T154: 0.7591308081 | U154: 25143 | V154: 28660 | W154: 0 | X154: 28125 | Y154: 0 | Z154: 27466 | AA154: 0 | AB154: 31898 | AC154: 0 | AD154: 29777 | AE154: 0 | AF154: 27997 | AG154: 0 | AH154: 29400 | AI154: -30560 | AJ154: 29507 | AK154: 5320 | AL154: 22765 | AM154: 0 | AN154: 20073 | AS154: 0 | AT154: 2855 | AU154: 3081984.32 | AV154: 0 | AW154: 262925 | AX154: 3041960 | AY154: 0 | AZ154: 347978.61 | BA154: 3040452.52 | BB154: 0 | BC154: 290617.71 | BD154: 3032035 | BE154: 33931 | BF154: 267075.7 | BG154: 3023212.42 | BH154: 0 | BI154: 124304.5 | BJ154: 3002298.56 | BK154: 0 | BL154: 221595.31 | BM154: 3260290 | BN154: -90693 | BO154: 974638 | BP154: 279790 | BQ154: 10738718 | BR154: 821206.16 | BS154: 980788.39 | BT154: 0 | BU154: 4499833
A155: 216 | B155: 18 | C155: 00 | D155: 000 | E155: 002 | F155: 000 | I155: 021-002-0001 | J155: Personas Capacitadas En El Programa De Educación Y Seguridad Vial | K155: Persona | L155: 23100 | M155: -4100 | N155: 19000 | O155: 17710 | P155: 0.9321052632 | Q155: 23000 | R155: 7000 | S155: 2966.5 | T155: 0.4237857143 | U155: -3100 | V155: 885 | W155: 0 | X155: 1977 | Y155: 0 | Z155: 1408 | AA155: 0 | AB155: 2527 | AC155: 0 | AD155: 2335 | AE155: 0 | AF155: 2173 | AG155: 0 | AH155: 2217 | AI155: -1000 | AJ155: 2393 | AK155: 0 | AL155: 915 | AM155: 0 | AN155: 880 | AS155: 0 | AT155: 0 | AV155: 0 | AW155: 0 | AY155: 0 | AZ155: 0 | BB155: 0 | BC155: 1862.5 | BE155: 0 | BF155: 0 | BH155: 0 | BI155: 0 | BK155: 0 | BL155: 0 | BN155: 0 | BO155: 0 | BQ155: -16000 | BR155: 1104 | BT155: 0 | BU155: 0
A156: 216 | B156: 18 | C156: 00 | D156: 000 | E156: 002 | F156: 000 | I156: 021-002-0002 | J156: Elementos Formados Como Brigadas De Protección Y Seguridad Vial En Carretera | K156: Persona | L156: 107 | M156: -77 | N156: 30 | O156: 0 | P156: 0 | Q156: 320400 | R156: 305465 | S156: 305203 | T156: 0.9991422913 | U156: 343 | V156: 0 | W156: 0 | X156: 0 | Y156: 0 | Z156: 0 | AA156: 0 | AB156: 0 | AC156: 0 | AD156: 0 | AE156: 0 | AF156: 0 | AG156: 0 | AH156: 0 | AI156: -420 | AJ156: 0 | AK156: 0 | AL156: 0 | AM156: 0 | AN156: 0 | AS156: 0 | AT156: 0 | AV156: 0 | AW156: 232605 | AY156: 0 | AZ156: 0 | BB156: 0 | BC156: 20840 | BE156: 0 | BF156: 0 | BH156: 0 | BI156: 0 | BK156: 0 | BL156: 0 | BN156: 0 | BO156: 51038 | BQ156: -14935 | BR156: 720 | BT156: 0 | BU156: 0
A157: 216 | B157: 18 | C157: 00 | D157: 000 | E157: 002 | F157: 000 | I157: 021-002-0003 | J157: Conductores Atendidos Con Servicios De Seguridad Y Asistencia Vial En Carretera | K157: Persona | L157: 64680 | M157: 1290 | N157: 65970 | O157: 53704 | P157: 0.8140670002 | Q157: 639450 | R157: 1372557 | S157: 728761.71 | T157: 0.530951873 | U157: 110 | V157: 5389 | W157: 0 | X157: 4890 | Y157: 0 | Z157: 5850 | AA157: 0 | AB157: 6475 | AC157: 0 | AD157: 6014 | AE157: 0 | AF157: 5433 | AG157: 0 | AH157: 5361 | AI157: -4140 | AJ157: 5619 | AK157: 5320 | AL157: 4616 | AM157: 0 | AN157: 4057 | AS157: 0 | AT157: 2855 | AV157: 0 | AW157: 650 | AY157: 0 | AZ157: 129306.61 | BB157: 0 | BC157: 43065 | BE157: 0 | BF157: 42802.84 | BH157: 0 | BI157: 22065 | BK157: 0 | BL157: 10153.36 | BN157: -26000 | BO157: 8200 | BQ157: 759107 | BR157: 18869.92 | BT157: 0 | BU157: 450793.98
A158: 216 | B158: 18 | C158: 00 | D158: 000 | E158: 002 | F158: 000 | I158: 021-002-0004 | J158: Servicios De Regulación Para Beneficio De Conductores Que Transitan En Carretera | K158: Evento | L158: 7710 | M158: 10830 | N158: 18540 | O158: 10653 | P158: 0.5745954693 | Q158: 25743932 | R158: 35457215 | S158: 26986625.8 | T158: 0.7611039333 | U158: 4965 | V158: 780 | W158: 0 | X158: 695 | Y158: 0 | Z158: 822 | AA158: 0 | AB158: 1228 | AC158: 0 | AD158: 1160 | AE158: 0 | AF158: 1052 | AG158: 0 | AH158: 1181 | AI158: 0 | AJ158: 1140 | AK158: 5865 | AL158: 1546 | AM158: 0 | AN158: 1049 | AS158: 0 | AT158: 0 | AU158: 3081984.32 | AV158: 0 | AW158: 0 | AX158: 3041960 | AY158: 0 | AZ158: 0 | BA158: 3040452.52 | BB158: 0 | BC158: 0 | BD158: 3032035 | BE158: 33931 | BF158: 0 | BG158: 3023212.42 | BH158: 0 | BI158: 0 | BJ158: 3002298.56 | BK158: 0 | BL158: 0 | BM158: 3260290 | BN158: 103851 | BO158: 0 | BP158: 279790 | BQ158: 9575501 | BR158: 683930.19 | BS158: 980788.39 | BT158: 0 | BU158: 3559884.4
A159: 216 | B159: 18 | C159: 00 | D159: 000 | E159: 002 | F159: 000 | I159: 021-002-0005 | J159: Personas Atendidas Telefónicamente Por Medio Del Sistema 1520 (Emergencia Vial) | K159: Persona | L159: 231000 | M159: 2790 | N159: 233790 | O159: 204254 | P159: 0.8736643997 | Q159: 60000 | R159: 9980 | S159: 9980 | T159: 1 | U159: 27790 | V159: 22386 | W159: 0 | X159: 21258 | Y159: 0 | Z159: 20208 | AA159: 0 | AB159: 22896 | AC159: 0 | AD159: 21428 | AE159: 0 | AF159: 20391 | AG159: 0 | AH159: 21822 | AI159: -25000 | AJ159: 21495 | AK159: 0 | AL159: 17234 | AM159: 0 | AN159: 15136 | AS159: 0 | AT159: 0 | AV159: 0 | AW159: 0 | AY159: 0 | AZ159: 0 | BB159: 0 | BC159: 0 | BE159: 0 | BF159: 0 | BH159: 0 | BI159: 0 | BK159: 0 | BL159: 9980 | BN159: 0 | BO159: 0 | BQ159: -50020 | BR159: 0 | BT159: 0 | BU159: 0
A160: 216 | B160: 18 | C160: 00 | D160: 000 | E160: 002 | F160: 000 | I160: 021-002-0006 | J160: Boleta De Llamada De Atención A Conductores Infractores | K160: Documento | L160: 3234 | M160: 16 | N160: 3250 | O160: 2281 | P160: 0.7018461538 | Q160: 2714475 | R160: 3056746 | S160: 2480303.19 | T160: 0.8114194604 | U160: -296 | V160: 75 | W160: 0 | X160: 146 | Y160: 0 | Z160: 289 | AA160: 0 | AB160: 401 | AC160: 0 | AD160: 220 | AE160: 0 | AF160: 217 | AG160: 0 | AH160: 206 | AI160: -158 | AJ160: 229 | AK160: 470 | AL160: 258 | AM160: 0 | AN160: 240 | AS160: 0 | AT160: 0 | AV160: 0 | AW160: 29670 | AY160: 0 | AZ160: 218672 | BB160: 0 | BC160: 200100.21 | BE160: 0 | BF160: 207022.86 | BH160: 0 | BI160: 102239.5 | BK160: 0 | BL160: 201461.95 | BN160: -168544 | BO160: 915400 | BQ160: 510815 | BR160: 116582.05 | BT160: 0 | BU160: 489154.62
A161: 216 | B161: 18 | C161: 00 | D161: 000 | E161: 002 | F161: 000 | I161: 021-002-0007 | J161: Investigaciones Realizadas De Accidentes De Tránsito En Carreteras | K161: Evento | L161: 37 | M161: 13 | N161: 50 | O161: 42 | P161: 0.84 | Q161: 67874 | R161: 42124 | S161: 42000 | T161: 0.9970563099 | U161: 63 | V161: 2 | W161: 0 | X161: 2 | Y161: 0 | Z161: 2 | AA161: 0 | AB161: 5 | AC161: 0 | AD161: 4 | AE161: 0 | AF161: 4 | AG161: 0 | AH161: 7 | AI161: -50 | AJ161: 6 | AK161: 0 | AL161: 4 | AM161: 0 | AN161: 6 | AS161: 0 | AT161: 0 | AV161: 0 | AW161: 0 | AY161: 0 | AZ161: 0 | BB161: 0 | BC161: 24750 | BE161: 0 | BF161: 17250 | BH161: 0 | BI161: 0 | BK161: 0 | BL161: 0 | BN161: 0 | BO161: 0 | BQ161: -25750 | BR161: 0 | BT161: 0 | BU161: 0
A162: 217 | B162: 20 | C162: 00 | D162: 000 | E162: 001 | F162: 000 | G162: 000-022 | H162: Dirección Y Coordinación | K162: Evento | L162: 263 | M162: 0 | N162: 263 | O162: 164 | P162: 0.6235741445 | Q162: 50492933 | R162: 49782776 | S162: 25969416.6 | T162: 0.5216546502 | U162: 0 | V162: 0 | W162: 0 | X162: 20 | Y162: 0 | Z162: 13 | AA162: 0 | AB162: 15 | AC162: -10 | AD162: 14 | AE162: 0 | AF162: 8 | AG162: 0 | AH162: 27 | AI162: 0 | AJ162: 25 | AK162: 10 | AL162: 20 | AM162: 0 | AN162: 22 | AS162: 0 | AT162: 29146.4 | AU162: 1730697.93 | AV162: 0 | AW162: 168554.18 | AX162: 1748716.77 | AY162: 0 | AZ162: 913356.17 | BA162: 1683447.59 | BB162: 0 | BC162: 839634.78 | BD162: 1548034.42 | BE162: 0 | BF162: 1352215.74 | BG162: 1692058.48 | BH162: 0 | BI162: 1155990.94 | BJ162: 1544454.35 | BK162: -7309185 | BL162: 679744.47 | BM162: 1647983.2 | BN162: 0 | BO162: 2219647.59 | BP162: 1680405.5 | BQ162: 6599028 | BR162: 748549.44 | BS162: 1667812.09 | BT162: 0 | BU162: 2918966.56
A163: 217 | B163: 20 | C163: 00 | D163: 000 | E163: 001 | F163: 000 | I163: 000-022-0001 | J163: Dirección Y Coordinación | K163: Evento | L163: 263 | M163: 0 | N163: 263 | O163: 164 | P163: 0.6235741445 | Q163: 50492933 | R163: 49782776 | S163: 25969416.6 | T163: 0.5216546502 | U163: 0 | V163: 0 | W163: 0 | X163: 20 | Y163: 0 | Z163: 13 | AA163: 0 | AB163: 15 | AC163: -10 | AD163: 14 | AE163: 0 | AF163: 8 | AG163: 0 | AH163: 27 | AI163: 0 | AJ163: 25 | AK163: 10 | AL163: 20 | AM163: 0 | AN163: 22 | AS163: 0 | AT163: 29146.4 | AU163: 1730697.93 | AV163: 0 | AW163: 168554.18 | AX163: 1748716.77 | AY163: 0 | AZ163: 913356.17 | BA163: 1683447.59 | BB163: 0 | BC163: 839634.78 | BD163: 1548034.42 | BE163: 0 | BF163: 1352215.74 | BG163: 1692058.48 | BH163: 0 | BI163: 1155990.94 | BJ163: 1544454.35 | BK163: -7309185 | BL163: 679744.47 | BM163: 1647983.2 | BN163: 0 | BO163: 2219647.59 | BP163: 1680405.5 | BQ163: 6599028 | BR163: 748549.44 | BS163: 1667812.09 | BT163: 0 | BU163: 2918966.56
A164: 217 | B164: 11 | C164: 00 | D164: 000 | E164: 002 | F164: 000 | G164: 017-005 | H164: Red Vial Con Servicios De Mantenimiento | K164: Kilómetro | L164: 219 | M164: -132 | N164: 87 | O164: 71 | P164: 0.816091954 | Q164: 23113645 | R164: 21520670 | S164: 4607535.52 | T164: 0.2140981447 | U164: -127 | V164: 0 | W164: 0 | X164: 9 | Y164: 0 | Z164: 8 | AA164: -3 | AB164: 8 | AC164: -2 | AD164: 8 | AE164: 0 | AF164: 8 | AG164: 0 | AH164: 8 | AI164: 0 | AJ164: 8 | AK164: 0 | AL164: 7 | AM164: 0 | AN164: 7 | AS164: 0 | AT164: 0 | AU164: 381209.74 | AV164: 0 | AW164: 0 | AX164: 402500 | AY164: 0 | AZ164: 0 | BA164: 402500 | BB164: 0 | BC164: 0 | BD164: 363700 | BE164: 0 | BF164: 9860 | BG164: 397000 | BH164: 0 | BI164: 6667.07 | BJ164: 373000 | BK164: -1592975 | BL164: 707505 | BM164: 373000 | BN164: 0 | BO164: 47068.71 | BP164: 380000 | BQ164: 0 | BR164: 3525 | BS164: 380000 | BT164: 0 | BU164: 380000
A165: 217 | B165: 11 | C165: 00 | D165: 000 | E165: 002 | F165: 000 | I165: 017-005-0001 | J165: Red Vial Con Servicios De Mantenimiento | K165: Kilómetro | L165: 219 | M165: -132 | N165: 87 | O165: 71 | P165: 0.816091954 | Q165: 15037645 | R165: 8791543 | S165: 20052.07 | T165: 0.002280836254 | U165: -127 | V165: 0 | W165: 0 | X165: 9 | Y165: 0 | Z165: 8 | AA165: -3 | AB165: 8 | AC165: -2 | AD165: 8 | AE165: 0 | AF165: 8 | AG165: 0 | AH165: 8 | AI165: 0 | AJ165: 8 | AK165: 0 | AL165: 7 | AM165: 0 | AN165: 7 | AS165: 0 | AT165: 0 | AV165: 0 | AW165: 0 | AY165: 0 | AZ165: 0 | BB165: 0 | BC165: 0 | BE165: 0 | BF165: 9860 | BH165: 0 | BI165: 6667.07 | BK165: -6246102 | BL165: 0 | BN165: 0 | BO165: 0 | BQ165: 0 | BR165: 3525 | BT165: 0 | BU165: 0
A166: 217 | B166: 11 | C166: 00 | D166: 000 | E166: 002 | F166: 000 | I166: 017-005-0002 | J166: Dirección Y Coordinación (Convoyes) | K166: Evento | L166: 128 | M166: 18 | N166: 146 | O166: 106 | P166: 0.7260273973 | Q166: 8076000 | R166: 12729127 | S166: 4587483.45 | T166: 0.3603926216 | U166: 10 | V166: 0 | W166: 0 | X166: 18 | Y166: 0 | Z166: 10 | AA166: 8 | AB166: 10 | AC166: 0 | AD166: 11 | AE166: 0 | AF166: 11 | AG166: 0 | AH166: 11 | AI166: 0 | AJ166: 13 | AK166: 0 | AL166: 11 | AM166: 0 | AN166: 11 | AS166: 0 | AT166: 0 | AU166: 381209.74 | AV166: 0 | AW166: 0 | AX166: 402500 | AY166: 0 | AZ166: 0 | BA166: 402500 | BB166: 0 | BC166: 0 | BD166: 363700 | BE166: 0 | BF166: 0 | BG166: 397000 | BH166: 0 | BI166: 0 | BJ166: 373000 | BK166: 4653127 | BL166: 707505 | BM166: 373000 | BN166: 0 | BO166: 47068.71 | BP166: 380000 | BQ166: 0 | BR166: 0 | BS166: 380000 | BT166: 0 | BU166: 380000
A167: 217 | B167: 94 | C167: 14 | D167: 000 | E167: 001 | F167: 000 | G167: 000-049 | H167: Intervenciones Realizadas Para La Atención De La Emergencia Por Época Lluviosa, Temporada Ciclónica Y Sistema De Baja Presión | K167: Kilómetro | L167: 0 | M167: 16 | N167: 16 | O167: 8 | P167: 0.5 | Q167: 0 | R167: 26922930 | S167: 17397661.31 | T167: 0.6462023751 | U167: 0 | V167: 0 | W167: 0 | X167: 0 | Y167: 0 | Z167: 0 | AA167: 0 | AB167: 0 | AC167: 0 | AD167: 0 | AE167: 0 | AF167: 0 | AG167: 8 | AH167: 0 | AI167: 0 | AJ167: 0 | AK167: 8 | AL167: 6 | AM167: 0 | AN167: 2 | AO167: 0 | AP167: 0 | AQ167: 0 | AR167: 0 | AS167: 0 | AT167: 0 | AU167: 0 | AV167: 0 | AW167: 0 | AX167: 0 | AY167: 0 | AZ167: 0 | BA167: 0 | BB167: 0 | BC167: 0 | BD167: 0 | BE167: 0 | BF167: 0 | BH167: 0 | BI167: 0 | BK167: 8902160 | BL167: 0 | BN167: 0 | BO167: 8153299.63 | BQ167: 18020770 | BR167: 9244361.68 | BS167: 0 | BT167: 0 | BU167: 0
A168: 217 | B168: 94 | C168: 14 | D168: 000 | E168: 001 | F168: 000 | I168: 000-049-0001 | J168: Intervenciones Realizadas Para La Atención De La Emergencia Por Época Lluviosa, Temporada Ciclónica Y Sistema De Baja Presión | K168: Kilómetro | L168: 0 | M168: 16 | N168: 16 | O168: 8 | P168: 0.5 | Q168: 0 | R168: 26922930 | S168: 17397661.31 | T168: 0.6462023751 | U168: 0 | V168: 0 | W168: 0 | X168: 0 | Y168: 0 | Z168: 0 | AA168: 0 | AB168: 0 | AC168: 0 | AD168: 0 | AE168: 0 | AF168: 0 | AG168: 8 | AH168: 0 | AI168: 0 | AJ168: 0 | AK168: 8 | AL168: 6 | AM168: 0 | AN168: 2 | AS168: 0 | AT168: 0 | AV168: 0 | AW168: 0 | AY168: 0 | AZ168: 0 | BB168: 0 | BC168: 0 | BE168: 0 | BF168: 0 | BH168: 0 | BI168: 0 | BK168: 8902160 | BL168: 0 | BN168: 0 | BO168: 8153299.63 | BQ168: 18020770 | BR168: 9244361.68 | BT168: 0 | BU168: 0
A169: 218 | B169: 19 | C169: 00 | D169: 000 | E169: 001 | F169: 000 | G169: 019-001 | H169: Dirección Y Coordinación | K169: Evento | L169: 225 | M169: 0 | N169: 225 | O169: 135 | P169: 0.6 | Q169: 50000000 | R169: 49599484 | S169: 19391900.8 | T169: 0.3909698093 | U169: 0 | V169: 0 | W169: 0 | X169: 0 | Y169: 0 | Z169: 0 | AA169: 0 | AB169: 10 | AC169: 0 | AD169: 5 | AE169: 0 | AF169: 30 | AG169: 0 | AH169: 35 | AI169: 0 | AJ169: 5 | AK169: 0 | AL169: 25 | AM169: 0 | AN169: 25 | AS169: 0 | AT169: 389124.46 | AU169: 1154345.19 | AV169: 0 | AW169: 369440.91 | AX169: 1173398.56 | AY169: 0 | AZ169: 269462.07 | BA169: 863448.08 | BB169: 0 | BC169: 637441.36 | BD169: 1336814.17 | BE169: 0 | BF169: 1066603.49 | BG169: 1199571.26 | BH169: 0 | BI169: 583038.11 | BJ169: 1197783.75 | BK169: -2000000 | BL169: 512655.25 | BM169: 1058461.4 | BN169: 0 | BO169: 994571.69 | BP169: 1058357.54 | BQ169: 1599484 | BR169: 1436874.38 | BS169: 1223518.83 | BT169: 0 | BU169: 2866990.3
A170: 218 | B170: 19 | C170: 00 | D170: 000 | E170: 001 | F170: 000 | I170: 019-001-0001 | J170: Dirección Y Coordinación | K170: Evento | L170: 225 | M170: 0 | N170: 225 | O170: 135 | P170: 0.6 | Q170: 50000000 | R170: 49599484 | S170: 19391900.8 | T170: 0.3909698093 | U170: 0 | V170: 0 | W170: 0 | X170: 0 | Y170: 0 | Z170: 0 | AA170: 0 | AB170: 10 | AC170: 0 | AD170: 5 | AE170: 0 | AF170: 30 | AG170: 0 | AH170: 35 | AI170: 0 | AJ170: 5 | AK170: 0 | AL170: 25 | AM170: 0 | AN170: 25 | AS170: 0 | AT170: 389124.46 | AU170: 1154345.19 | AV170: 0 | AW170: 369440.91 | AX170: 1173398.56 | AY170: 0 | AZ170: 269462.07 | BA170: 863448.08 | BB170: 0 | BC170: 637441.36 | BD170: 1336814.17 | BE170: 0 | BF170: 1066603.49 | BG170: 1199571.26 | BH170: 0 | BI170: 583038.11 | BJ170: 1197783.75 | BK170: -2000000 | BL170: 512655.25 | BM170: 1058461.4 | BN170: 0 | BO170: 994571.69 | BP170: 1058357.54 | BQ170: 1599484 | BR170: 1436874.38 | BS170: 1223518.83 | BT170: 0 | BU170: 2866990.3
A171: 218 | B171: 19 | C171: 00 | D171: 000 | E171: 002 | F171: 000 | G171: 019-002 | H171: Familias Beneficiadas Con Subsidios Para La Vivienda | K171: Familia | L171: 17349 | M171: 236 | N171: 17585 | O171: 2966 | P171: 0.1686664771 | Q171: 610666000 | R171: 622366000 | S171: 113238450 | T171: 0.181948323 | U171: -27 | V171: 0 | W171: 0 | X171: 0 | Y171: 0 | Z171: 0 | AA171: 0 | AB171: 0 | AC171: 0 | AD171: 0 | AE171: 45 | AF171: 840 | AG171: 27 | AH171: 1068 | AI171: 0 | AJ171: 176 | AK171: 334 | AL171: 192 | AM171: -143 | AN171: 690 | AO171: 0 | AP171: 0 | AQ171: 0 | AR171: 0 | AS171: 0 | AT171: 9544500 | AU171: 0 | AV171: 0 | AW171: 1331750 | AY171: 0 | AZ171: 0 | BB171: 0 | BC171: 0 | BE171: 0 | BF171: 0 | BH171: 0 | BI171: 29414900 | BK171: 0 | BL171: 31442250 | BN171: 0 | BO171: 6129000 | BQ171: 11700000 | BR171: 12267500 | BS171: 0 | BT171: 0 | BU171: 23108550
A172: 218 | B172: 19 | C172: 00 | D172: 000 | E172: 002 | F172: 000 | I172: 019-002-0001 | J172: Familias Con Subsidio Para Adquisición De Lote Con Servicios Básicos | K172: Familia | L172: 360 | M172: -165 | N172: 195 | O172: 0 | P172: 0 | Q172: 12600000 | R172: 6825000 | S172: 0 | T172: 0 | U172: 0 | V172: 0 | W172: 0 | X172: 0 | Y172: 0 | Z172: 0 | AA172: 0 | AB172: 0 | AC172: 0 | AD172: 0 | AE172: 0 | AF172: 0 | AG172: 0 | AH172: 0 | AI172: 0 | AJ172: 0 | AK172: 0 | AL172: 0 | AM172: -165 | AN172: 0 | AS172: 0 | AT172: 0 | AV172: 0 | AW172: 0 | AY172: 0 | AZ172: 0 | BB172: 0 | BC172: 0 | BE172: 0 | BF172: 0 | BH172: 0 | BI172: 0 | BK172: 0 | BL172: 0 | BN172: 0 | BO172: 0 | BQ172: 0 | BR172: 0 | BT172: -5775000 | BU172: 0
A173: 218 | B173: 19 | C173: 00 | D173: 000 | E173: 002 | F173: 000 | I173: 019-002-0002 | J173: Familias Con Subsidio Para Adquisición De Lote Con Vivienda | K173: Familia | L173: 430 | M173: -29 | N173: 401 | O173: 0 | P173: 0 | Q173: 15050000 | R173: 14021000 | S173: 0 | T173: 0 | U173: 0 | V173: 0 | W173: 0 | X173: 0 | Y173: 0 | Z173: 0 | AA173: 0 | AB173: 0 | AC173: 0 | AD173: 0 | AE173: 0 | AF173: 0 | AG173: 0 | AH173: 0 | AI173: 0 | AJ173: 0 | AK173: 0 | AL173: 0 | AM173: -29 | AN173: 0 | AS173: 0 | AT173: 0 | AV173: 0 | AW173: 0 | AY173: 0 | AZ173: 0 | BB173: 0 | BC173: 0 | BE173: 0 | BF173: 0 | BH173: 0 | BI173: 0 | BK173: 0 | BL173: 0 | BN173: 0 | BO173: 0 | BQ173: 0 | BR173: 0 | BT173: -1029000 | BU173: 0
A174: 218 | B174: 19 | C174: 00 | D174: 000 | E174: 002 | F174: 000 | I174: 019-002-0003 | J174: Familias Con Subsidio Para La Adquisición De Módulo Habitacional En Propiedad Horizontal | K174: Familia | L174: 264 | M174: -40 | N174: 224 | O174: 0 | P174: 0 | Q174: 9254000 | R174: 7857000 | S174: 0 | T174: 0 | U174: 0 | V174: 0 | W174: 0 | X174: 0 | Y174: 0 | Z174: 0 | AA174: 0 | AB174: 0 | AC174: 0 | AD174: 0 | AE174: 0 | AF174: 0 | AG174: 0 | AH174: 0 | AI174: 0 | AJ174: 0 | AK174: 0 | AL174: 0 | AM174: -40 | AN174: 0 | AS174: 0 | AT174: 0 | AV174: 0 | AW174: 0 | AY174: 0 | AZ174: 0 | BB174: 0 | BC174: 0 | BE174: 0 | BF174: 0 | BH174: 0 | BI174: 0 | BK174: 0 | BL174: 0 | BN174: 0 | BO174: 0 | BQ174: 0 | BR174: 0 | BT174: -1397000 | BU174: 0
A175: 218 | B175: 19 | C175: 00 | D175: 000 | E175: 002 | F175: 000 | I175: 019-002-0004 | J175: Familias Con Subsidio Para El Mejoramiento, Ampliación Y Reparación De Vivienda | K175: Familia | L175: 1422 | M175: -376 | N175: 1046 | O175: 0 | P175: 0 | Q175: 49546000 | R175: 41392000 | S175: 0 | T175: 0 | U175: 0 | V175: 0 | W175: 0 | X175: 0 | Y175: 0 | Z175: 0 | AA175: 0 | AB175: 0 | AC175: 0 | AD175: 0 | AE175: 0 | AF175: 0 | AG175: 0 | AH175: 0 | AI175: 0 | AJ175: 0 | AK175: 0 | AL175: 0 | AM175: -376 | AN175: 0 | AS175: 0 | AT175: 0 | AV175: 0 | AW175: 0 | AY175: 0 | AZ175: 0 | BB175: 0 | BC175: 0 | BE175: 0 | BF175: 0 | BH175: 0 | BI175: 0 | BK175: 0 | BL175: 0 | BN175: 0 | BO175: 0 | BQ175: 0 | BR175: 0 | BT175: -8154000 | BU175: 0
A176: 218 | B176: 19 | C176: 00 | D176: 000 | E176: 002 | F176: 000 | I176: 019-002-0006 | J176: Familias Con Subsidio Para Construcción De Vivienda | K176: Familia | L176: 14873 | M176: 846 | N176: 15719 | O176: 2966 | P176: 0.1886888479 | Q176: 524216000 | R176: 552271000 | S176: 113238450 | T176: 0.2050414561 | U176: -27 | V176: 0 | W176: 0 | X176: 0 | Y176: 0 | Z176: 0 | AA176: 0 | AB176: 0 | AC176: 0 | AD176: 0 | AE176: 45 | AF176: 840 | AG176: 27 | AH176: 1068 | AI176: 0 | AJ176: 176 | AK176: 334 | AL176: 192 | AM176: 467 | AN176: 690 | AS176: 0 | AT176: 9544500 | AV176: 0 | AW176: 1331750 | AY176: 0 | AZ176: 0 | BB176: 0 | BC176: 0 | BE176: 0 | BF176: 0 | BH176: 0 | BI176: 29414900 | BK176: 0 | BL176: 31442250 | BN176: 0 | BO176: 6129000 | BQ176: 11700000 | BR176: 12267500 | BT176: 16355000 | BU176: 23108550
A177: 218 | B177: 94 | C177: 10 | D177: 000 | E177: 002 | F177: 000 | G177: 000-052 | H177: Familias Beneficiadas Con Subsidios Para La Vivienda Por Atención de Daños | K177: Familia | L177: 0 | M177: 25 | N177: 25 | O177: 0 | P177: 0 | Q177: 0 | R177: 0 | S177: 0 | T177: 0 | U177: 0 | V177: 0 | W177: 0 | X177: 0 | Y177: 0 | Z177: 0 | AA177: 0 | AB177: 0 | AC177: 0 | AD177: 0 | AE177: 0 | AF177: 0 | AG177: 0 | AH177: 0 | AI177: 0 | AJ177: 0 | AK177: 0 | AL177: 0 | AM177: 25 | AN177: 0 | AS177: 0 | AT177: 0 | AU177: 0 | AV177: 0 | AW177: 0 | AY177: 0 | AZ177: 0 | BB177: 0 | BC177: 0 | BE177: 0 | BF177: 0 | BH177: 0 | BI177: 0 | BK177: 0 | BL177: 0 | BN177: 0 | BO177: 0 | BQ177: 0 | BR177: 0 | BT177: 0 | BU177: 0
A178: 218 | B178: 94 | C178: 10 | D178: 000 | E178: 002 | F178: 000 | I178: 000-052-0001 | J178: Familias Con Subsidio Para Adquisición De Lote Con Vivienda Por Atención de Daños | K178: Familia | L178: 0 | M178: 25 | N178: 25 | O178: 0 | P178: 0 | Q178: 0 | R178: 0 | S178: 0 | T178: 0 | U178: 0 | V178: 0 | W178: 0 | X178: 0 | Y178: 0 | Z178: 0 | AA178: 0 | AB178: 0 | AC178: 0 | AD178: 0 | AE178: 0 | AF178: 0 | AG178: 0 | AH178: 0 | AI178: 0 | AJ178: 0 | AK178: 0 | AL178: 0 | AM178: 25 | AN178: 0 | AS178: 0 | AT178: 0 | AV178: 0 | AW178: 0 | AY178: 0 | AZ178: 0 | BB178: 0 | BC178: 0 | BE178: 0 | BF178: 0 | BH178: 0 | BI178: 0 | BK178: 0 | BL178: 0 | BN178: 0 | BO178: 0 | BQ178: 0 | BR178: 0 | BT178: 0 | BU178: 0
A179: 218 | B179: 94 | C179: 10 | D179: 000 | E179: 002 | F179: 000 | I179: 000-052-0002 | J179: Familias Beneficiadas Con Subsidio Para Construcción De Vivienda Por Atención De Daños | K179: Familia | L179: 0 | M179: 35 | N179: 35 | O179: 0 | P179: 0 | Q179: 0 | R179: 0 | S179: 0 | T179: 0 | U179: 0 | V179: 0 | W179: 0 | X179: 0 | Y179: 0 | Z179: 0 | AA179: 0 | AB179: 0 | AC179: 0 | AD179: 0 | AE179: 0 | AF179: 0 | AG179: 0 | AH179: 0 | AI179: 0 | AJ179: 0 | AK179: 0 | AL179: 0 | AM179: 35 | AN179: 0 | AS179: 0 | AT179: 0 | AV179: 0 | AW179: 0 | AY179: 0 | AZ179: 0 | BB179: 0 | BC179: 0 | BE179: 0 | BF179: 0 | BH179: 0 | BI179: 0 | BK179: 0 | BL179: 0 | BN179: 0 | BO179: 0 | BQ179: 0 | BR179: 0 | BT179: 0 | BU179: 0
A180: TOTAL | Q180: =+Q9+Q11+Q13+Q15+Q17+Q19+Q21+Q23+Q25+Q27+Q29+Q33+Q35+Q37+Q41+Q43+Q47+Q50+Q52+Q54+Q61+Q63+Q65+Q73+Q75+Q77+Q81+Q83+Q85+Q87+Q89+Q91+Q95+Q99+Q101+Q105+Q107+Q109+Q111+Q114+Q117+Q121+Q123+Q125+Q127+Q129+Q131+Q136+Q141+Q143+Q145+Q147+Q152+Q154+Q162+Q164+Q167+Q169+Q171+Q177 -> 3452689828 | R180: =+R9+R11+R13+R39+R31+R15+R17+R19+R21+R23+R25+R27+R29+R33+R35+R37+R41+R43+R47+R50+R52+R54+R61+R63+R65+R73+R75+R77+R81+R83+R85+R87+R89+R91+R95+R99+R101+R105+R107+R109+R111+R114+R117+R121+R123+R125+R127+R129+R131+R136+R141+R143+R145+R147+R152+R154+R162+R164+R167+R169+R171+R177 -> 4032981752 | S180: =+S9+S11+S13+S15+S17+S19+S21+S23+S25+S27+S29+S33+S35+S37+S41+S43+S47+S50+S52+S54+S61+S63+S65+S73+S75+S77+S81+S83+S85+S87+S89+S91+S95+S99+S101+S105+S107+S109+S111+S114+S117+S121+S123+S125+S127+S129+S131+S136+S141+S143+S145+S147+S152+S154+S162+S164+S167+S169+S171+S177 -> 1942903109 | T180: =+S180/R180 -> 0.4817535086 | BU180: =+BU9+BU11+BU13+BU15+BU17+BU19+BU21+BU23+BU25+BU27+BU29+BU33+BU35+BU37+BU41+BU43+BU47+BU50+BU52+BU54+BU61+BU63+BU65+BU73+BU75+BU77+BU81+BU83+BU85+BU87+BU89+BU91+BU95+BU99+BU101+BU105+BU107+BU109+BU111+BU114+BU117+BU121+BU123+BU125+BU127+BU129+BU131+BU136+BU141+BU143+BU145+BU147+BU152+BU154+BU162+BU164+BU167+BU169+BU171+BU177 -> 585777349.6
